Workbook

Sheet Sheet1
A1: 物件番号 | B1: データ種類 | C1: 物件種別 | D1: 物件種目 | E1: 会員名 | F1: 代表電話番号 | G1: 問合せ担当者（1） | H1: 問合せ電話番号（1） | I1: Eメールアドレス（1） | J1: 図面 | K1: 登録年月日 | L1: 変更年月日 | M1: 取引条件の有効期限 | N1: 新築中古区分 | O1: 都道府県名 | P1: 所在地名1 | Q1: 所在地名2 | R1: 所在地名3 | S1: 建物名 | T1: 部屋番号 | U1: その他所在地表示 | V1: 棟番号 | W1: 沿線略称（1） | X1: 駅名（1） | Y1: 徒歩（分）1（1） | Z1: 徒歩（m）2（1） | AA1: バス（1） | AB1: バス路線名（1） | AC1: バス停名称（1） | AD1: 停歩（分）（1） | AE1: 停歩（m）（1） | AF1: 車（km）（1） | AG1: その他交通手段 | AH1: 交通（分）1 | AI1: 交通（m）2 | AJ1: 現況 | AK1: 現況予定年月 | AL1: 引渡時期 | AM1: 引渡年月（西暦） | AN1: 引渡旬 | AO1: 入居年月（西暦） | AP1: 入居日 | AQ1: 取引態様 | AR1: 報酬形態 | AS1: 手数料割合率 | AT1: 手数料 | AU1: 価格 | AV1: 価格消費税 | AW1: 坪単価 | AX1: ㎡単価 | AY1: 想定利回り（％） | AZ1: 面積計測方式 | BA1: 土地面積 | BB1: 土地共有持分面積 | BC1: 土地共有持分（分子） | BD1: 土地共有持分（分母） | BE1: 建物面積1 | BF1: 専有面積 | BG1: 私道負担有無 | BH1: 私道面積 | BI1: バルコニー（テラス）面積 | BJ1: 専用庭面積 | BK1: セットバック区分 | BL1: 後退距離（m） | BM1: セットバック面積（㎡） | BN1: 開発面積／総面積 | BO1: 販売総面積 | BP1: 販売区画数 | BQ1: 工事完了年月（西暦） | BR1: 建築面積 | BS1: 延べ面積 | BT1: 敷地延長の有無 | BU1: 敷地延長（30%以上表示） | BV1: 借地料 | BW1: 借地期間 | BX1: 借地期限（西暦） | BY1: 施設費用項目（1） | BZ1: 施設費用（1） | CA1: 国土法届出 | CB1: 登記簿地目 | CC1: 現況地目 | CD1: 都市計画 | CE1: 用途地域（1） | CF1: 用途地域（2） | CG1: 最適用途 | CH1: 建ぺい率 | CI1: 容積率 | CJ1: 土地×容積率 | CK1: 容積率÷30平米 | CL1: 四捨五入（部屋数） | CM1: 一部屋賃料(月々) | CN1: 合計賃料(年間) | CO1: 建物坪換算(坪) | CP1: 建物価格(万円) | CQ1: 建物土地合計価格(万円) | CR1: 利回り | CS1: 土地面積×建ぺい | CT1: 左記に÷30m2で切り捨て | CU1: 3階建と仮定した延面積 | CV1: 容積と比較した述べ床面積 | CW1: 注意！ | CX1: 定借保証金 | CY1: 定借敷金 | CZ1: 地勢 | DA1: 建築条件 | DB1: オーナーチェンジ | DC1: 管理組合有無 | DD1: 管理形態 | DE1: 管理会社名 | DF1: 管理人状況 | DG1: 管理費 | DH1: 管理費消費税 | DI1: 修繕積立金 | DJ1: その他月額費名称1 | DK1: その他月額費用金額1 | DL1: 施主 | DM1: 施工会社名 | DN1: 分譲会社名 | DO1: 一括下請負人 | DP1: 接道状況 | DQ1: 接道種別1 | DR1: 接道接面1 | DS1: 接道位置指定1 | DT1: 接道方向1 | DU1: 接道幅員1 | DV1: 接道種別2 | DW1: 接道接面2 | DX1: 接道位置指定2 | DY1: 接道方向2 | DZ1: 接道幅員2 | EA1: 接道種別3 | EB1: 接道接面3 | EC1: 接道位置指定3 | ED1: 接道方向3 | EE1: 接道幅員3 | EF1: 接道種別4 | EG1: 接道接面4 | EH1: 接道位置指定4 | EI1: 接道方向4 | EJ1: 接道幅員4 | EK1: 接道舗装 | EL1: 間取タイプ（1） | EM1: 間取部屋数（1） | EN1: 部屋位置 | EO1: 納戸数 | EP1: 室所在階1（1） | EQ1: 室タイプ1（1） | ER1: 室広さ1（1） | ES1: 室数1（1） | ET1: 室所在階2（1） | EU1: 室タイプ2（1） | EV1: 室広さ2（1） | EW1: 室数2（1） | EX1: 室所在階3（1） | EY1: 室タイプ3（1） | EZ1: 室広さ3（1） | FA1: 室数3（1） | FB1: 室所在階4（1） | FC1: 室タイプ4（1） | FD1: 室広さ4（1） | FE1: 室数4（1） | FF1: 室所在階5（1） | FG1: 室タイプ5（1） | FH1: 室広さ5（1） | FI1: 室数5（1） | FJ1: 室所在階6（1） | FK1: 室タイプ6（1） | FL1: 室広さ6（1） | FM1: 室数6（1） | FN1: 室所在階7（1） | FO1: 室タイプ7（1） | FP1: 室広さ7（1） | FQ1: 室数7（1） | FR1: 間取りその他（1） | FS1: 駐車場在否 | FT1: 駐車場月額 | FU1: 駐車場月額消費税 | FV1: 駐車場敷金（額） | FW1: 駐車場敷金（ヶ月） | FX1: 駐車場礼金（額） | FY1: 駐車場礼金（ヶ月） | FZ1: 建物構造 | GA1: 建物工法 | GB1: 建物形式 | GC1: 地上階層 | GD1: 地下階層 | GE1: 所在階 | GF1: 築年月（西暦） | GG1: 総戸数 | GH1: 棟総戸数 | GI1: 連棟戸数 | GJ1: バルコニー方向（1） | GK1: 増改築年月1 | GL1: 増改築履歴1 | GM1: 増改築年月2 | GN1: 増改築履歴2 | GO1: 増改築年月3 | GP1: 増改築履歴3 | GQ1: 周辺環境1（フリー） | GR1: 距離1 | GS1: 時間1 | GT1: 周辺アクセス１ | GU1: 備考1 | GV1: 備考2 | GW1: 自社管理欄 | GX1: 再建築不可フラグ
A2: 100098804917 | B2: 1 | C2: 1 | D2: 1 | E2: （株）クレス | F2: 03-3222-8011 | G2: 板垣 | H2: 03-3222-8011 | J2: 2 | K2: 2019-05-08 | L2: 2019-05-08 | O2: 神奈川県 | P2: 小田原市 | Q2: 酒匂２丁目 | W2: 東海道線 | X2: 鴨宮 | Y2: 15 | Z2: 1200 | AJ2: 2 | AL2: 2 | AQ2: 5 | AR2: 1 | AU2: 27000000 | AW2: 279000 | AX2: 85000 | AZ2: 1 | BA2: 320.65 | CB2: 1 | CD2: 1 | CE2: 11 | CG2: 1 | CH2: 60 | CI2: 200 | CJ2: =IF(ISBLANK(CI2),100,CI2)/100*BA2 -> 641.3 | CK2: =CJ2/30 -> 21.37666667 | CL2: =ROUND(CK2,0) -> 21 | CM2: 5 | CN2: =CM2*12*CL2 -> 1260 | CO2: =CJ2/3.3 -> 194.3333333 | CP2: =CO2*40*1.2 -> 9328 | CQ2: =CP2+(AU2/10000) -> 12028 | CR2: =CN2/CQ2 -> 0.1047555703 | CS2: =IF(ISBLANK(CH2),60,CH2)/100*BA2 -> 192.39 | CT2: =ROUNDDOWN((CS2/30),0) -> 6 | CU2: =CT2*30*3 -> 540 | CV2: =CJ2-CU2 -> 101.3 | CW2: =IF(CV2>0, "!","") -> ! | DP2: 5 | DQ2: 1 | DT2: 1 | DU2: 4.8 | DV2: 1 | DY2: 7 | DZ2: 4 | GW2: Ｓ５７９１
A3: 100098807283 | B3: 1 | C3: 1 | D3: 1 | E3: 大都物産（株） | F3: 046-222-2301 | J3: 2 | K3: 2019-05-08 | O3: 神奈川県 | P3: 愛甲郡愛川町 | Q3: 半原 | AJ3: 1 | AL3: 1 | AQ3: 4 | AR3: 1 | AU3: 10230000 | AW3: 100000 | AX3: 31000 | AZ3: 2 | BA3: 338.36 | CB3: 3 | CD3: 1 | CE3: 6 | CG3: 1 | CH3: 60 | CI3: 200 | CJ3: =IF(ISBLANK(CI3),100,CI3)/100*BA3 -> 676.72 | CK3: =CJ3/30 -> 22.55733333 | CL3: =ROUND(CK3,0) -> 23 | CM3: 5 | CN3: =CM3*12*CL3 -> 1380 | CO3: =CJ3/3.3 -> 205.0666667 | CP3: =CO3*40*1.2 -> 9843.2 | CQ3: =CP3+(AU3/10000) -> 10866.2 | CR3: =CN3/CQ3 -> 0.126999319 | CS3: =IF(ISBLANK(CH3),60,CH3)/100*BA3 -> 203.016 | CT3: =ROUNDDOWN((CS3/30),0) -> 6 | CU3: =CT3*30*3 -> 540 | CV3: =CJ3-CU3 -> 136.72 | CW3: =IF(CV3>0, "!","") -> ! | CZ3: 1 | DP3: 5 | EK3: 1
A4: 100098807491 | B4: 1 | C4: 1 | D4: 1 | E4: （株）三春情報センター 港南台駅前店 | F4: 045-832-5211 | G4: 大野 | H4: 070-1535-0888 | J4: 2 | K4: 2019-05-08 | O4: 神奈川県 | P4: 横浜市南区 | Q4: 永田山王台 | W4: 京浜急行線 | X4: 弘明寺 | Y4: 10 | AJ4: 2 | AL4: 2 | AQ4: 4 | AU4: 25800000 | AW4: 282000 | AX4: 86000 | AZ4: 1 | BA4: 303 | BG4: 2 | CB4: 1 | CD4: 1 | CE4: 1 | CH4: 50 | CI4: 100 | CJ4: 303 | CK4: 10.1 | CL4: 10 | CM4: 5 | CN4: 600 | CO4: 91.81818182 | CP4: 4407.272727 | CQ4: 6987.272727 | CR4: 0.08587041374 | CS4: 151.5 | CT4: 5 | CU4: 450 | CV4: -147 | CZ4: 5 | DP4: 1
A5: 100098808945 | B5: 1 | C5: 1 | D5: 1 | E5: 住信ハウジング（株） | F5: 03-3876-2701 | G5: イシマキ | J5: 2 | K5: 2019-05-08 | O5: 神奈川県 | P5: 横須賀市 | Q5: ハイランド３丁目 | R5: １番 | W5: 久里浜線 | X5: ＹＲＰ野比 | Y5: 19 | AJ5: 1 | AL5: 2 | AQ5: 2 | AR5: 4 | AS5: 3 | AU5: 16800000 | AW5: 20000 | AX5: 6000 | AZ5: 2 | BA5: 2849.74 | CB5: 1 | CD5: 1 | CE5: 1 | CG5: 1 | CH5: 40 | CI5: 80 | CJ5: 2279.792 | CK5: 75.99306667 | CL5: 76 | CM5: 5 | CN5: 4560 | CO5: 690.8460606 | CP5: 33160.61091 | CQ5: 34840.61091 | CR5: 0.1308817464 | CS5: 1139.896 | CT5: 37 | CU5: 3330 | CV5: -1050.208 | DF5: 2 | DU5: 1 | DV5: 1 | DW5: 31 | DY5: 8 | DZ5: 6 | EP5: 1 | HB5: 広告承諾を得て、広告をしてください。 | IB5: 開発申請、最低敷地面積：８０㎡
A6: 100098812131 | B6: 1 | C6: 1 | D6: 1 | E6: 幸栄建設（株） 東京営業所 | F6: 03-6450-4571 | J6: 2 | K6: 2019-05-08 | L6: 2019-05-14 | O6: 神奈川県 | P6: 横浜市港北区 | Q6: 仲手原１丁目 | W6: 東横線 | X6: 妙蓮寺 | Y6: 3 | AJ6: 1 | AL6: 2 | AQ6: 1 | AU6: 40800000 | AW6: 1055000 | AX6: 320000 | AZ6: 2 | BA6: 127.85 | BG6: 1 | BH6: 1.94 | BK6: 1 | BM6: 1.51 | CB6: 1 | CD6: 1 | CE6: 1 | CH6: 50 | CI6: 100 | CJ6: 127.85 | CK6: 4.261666667 | CL6: 4 | CM6: 5 | CN6: 240 | CO6: 38.74242424 | CP6: 1859.636364 | CQ6: 5939.636364 | CR6: 0.04040651402 | CS6: 63.925 | CT6: 2 | CU6: 180 | CV6: -52.15 | DQ6: 1 | DS6: 2 | DT6: 7 | DU6: 2.7
A7: 100098812146 | B7: 1 | C7: 1 | D7: 1 | E7: 幸栄建設（株） 東京営業所 | F7: 03-6450-4571 | J7: 2 | K7: 2019-05-08 | L7: 2019-05-14 | O7: 神奈川県 | P7: 横浜市港北区 | Q7: 仲手原１丁目 | W7: 東横線 | X7: 妙蓮寺 | Y7: 3 | AJ7: 1 | AL7: 2 | AQ7: 1 | AU7: 39800000 | AW7: 1043000 | AX7: 316000 | AZ7: 2 | BA7: 126.19 | BG7: 1 | BH7: 1.93 | BK7: 1 | BM7: 1.51 | CB7: 1 | CD7: 1 | CE7: 1 | CH7: 50 | CI7: 100 | CJ7: 126.19 | CK7: 4.206333333 | CL7: 4 | CM7: 5 | CN7: 240 | CO7: 38.23939394 | CP7: 1835.490909 | CQ7: 5815.490909 | CR7: 0.04126908695 | CS7: 63.095 | CT7: 2 | CU7: 180 | CV7: -53.81 | DQ7: 1 | DT7: 7 | DU7: 2.7
A8: 100098812430 | B8: 1 | C8: 1 | D8: 1 | E8: 一般社団法人 不動産売却支援ネット | F8: 03-6860-8432 | G8: 岩峪（いわさこ） | H8: 03-6860-8432 | J8: 2 | K8: 2019-05-08 | O8: 神奈川県 | P8: 海老名市 | Q8: 東柏ケ谷６丁目 | W8: 相鉄線 | X8: さがみ野 | Y8: 9 | AJ8: 2 | AL8: 2 | AQ8: 3 | AR8: 1 | AU8: 37000000 | AW8: 793000 | AX8: 240000 | AZ8: 2 | BA8: 154.43 | BG8: 2 | BK8: 0 | CB8: 1 | CD8: 1 | CE8: 12 | CG8: 1 | CH8: 60 | CI8: 200 | CJ8: 308.86 | CK8: 10.29533333 | CL8: 10 | CM8: 5 | CN8: 600 | CO8: 93.59393939 | CP8: 4492.509091 | CQ8: 8192.509091 | CR8: 0.07323763616 | CS8: 92.658 | CT8: 3 | CU8: 270 | CV8: 38.86 | CW8: ! | CZ8: 1 | DA8: 2 | DP8: 1 | DQ8: 1 | DR8: 11 | DU8: 4 | EK8: 1
A9: 100098812510 | B9: 1 | C9: 1 | D9: 1 | E9: ハーティス（株） | F9: 03-6667-0152 | G9: 加古 | H9: 9017368063 | I9: otsutakoka@icloud.com | J9: 2 | K9: 2019-05-08 | M9: 2019-08-06 | O9: 神奈川県 | P9: 足柄下郡箱根町 | Q9: 仙石原 | W9: 箱根登山線 | X9: 強羅 | AF9: 6.7 | AL9: 2 | AQ9: 4 | AR9: 1 | AU9: 10900000 | AW9: 21000 | AX9: 7000 | AZ9: 1 | BA9: 1799 | CB9: 4 | CD9: 3 | CE9: 1 | CH9: 20 | CI9: 40 | CJ9: 719.6 | CK9: 23.98666667 | CL9: 24 | CM9: 5 | CN9: 1440 | CO9: 218.0606061 | CP9: 10466.90909 | CQ9: 11556.90909 | CR9: 0.1246007898 | CS9: 359.8 | CT9: 11 | CU9: 990 | CV9: -270.4 | DA9: 2 | DP9: 1 | DQ9: 2 | DR9: 28.4 | DT9: 6 | DU9: 5.2 | EK9: 1
A10: 100098813058 | B10: 1 | C10: 1 | D10: 1 | E10: （有）新シン不動産 | F10: 046-875-0977 | J10: 2 | K10: 2019-05-08 | L10: 2019-05-08 | O10: 神奈川県 | P10: 三浦郡葉山町 | Q10: 堀内 | R10: 1788 | W10: 横須賀線 | X10: 逗子 | AA10: 10 | AC10: 向原 | AD10: 2 | AE10: 160 | AJ10: 2 | AL10: 1 | AQ10: 5 | AR10: 1 | AU10: 43600000 | AW10: 401000 | AX10: 122000 | AZ10: 1 | BA10: 360.3 | BG10: 1 | BH10: 128.25 | CB10: 1 | CD10: 1 | CE10: 1 | CG10: 1 | CH10: 40 | CI10: 100 | CJ10: 360.3 | CK10: 12.01 | CL10: 12 | CM10: 5 | CN10: 720 | CO10: 109.1818182 | CP10: 5240.727273 | CQ10: 9600.727273 | CR10: 0.07499431861 | CS10: 144.12 | CT10: 4 | CU10: 360 | CV10: 0.3 | CW10: !
A11: 100098815088 | B11: 1 | C11: 1 | D11: 1 | E11: オフィスランディック（株） | F11: 03-6661-1212 | G11: 塚谷 | J11: 2 | K11: 2019-05-08 | O11: 神奈川県 | P11: 横浜市港北区 | Q11: 富士塚１丁目 | R11: 2019-05-07 | W11: 東横線 | X11: 妙蓮寺 | Y11: 7 | AJ11: 1 | AL11: 3 | AM11: 201908 | AN11: 1 | AQ11: 1 | AS11: 3 | AU11: 48800000 | AW11: 1281000 | AX11: 388000 | AZ11: 2 | BA11: 126.01 | BK11: 1 | BM11: 1.52 | CB11: 1 | CC11: 1 | CD11: 1 | CE11: 1 | CG11: 1 | CH11: 40 | CI11: 80 | CJ11: 100.808 | CK11: 3.360266667 | CL11: 3 | CM11: 5 | CN11: 180 | CO11: 30.54787879 | CP11: 1466.298182 | CQ11: 6346.298182 | CR11: 0.02836299128 | CS11: 50.404 | CT11: 1 | CU11: 90 | CV11: 10.808 | CW11: ! | CZ11: 1 | DP11: 2 | EK11: 1
A12: 100098815153 | B12: 1 | C12: 1 | D12: 1 | E12: オフィスランディック（株） | F12: 03-6661-1212 | G12: 塚谷 | J12: 2 | K12: 2019-05-08 | L12: 2019-05-08 | O12: 神奈川県 | P12: 横浜市港北区 | Q12: 富士塚１丁目 | R12: 2019-05-07 | W12: 東横線 | X12: 妙蓮寺 | Y12: 7 | AJ12: 1 | AL12: 3 | AM12: 201908 | AN12: 1 | AQ12: 1 | AS12: 3 | AU12: 72800000 | AW12: 1023000 | AX12: 310000 | AZ12: 2 | BA12: 235.27 | BK12: 1 | BM12: 3.76 | CB12: 1 | CC12: 1 | CD12: 1 | CE12: 1 | CG12: 1 | CH12: 40 | CI12: 80 | CJ12: 188.216 | CK12: 6.273866667 | CL12: 6 | CM12: 5 | CN12: 360 | CO12: 57.03515152 | CP12: 2737.687273 | CQ12: 10017.68727 | CR12: 0.03593643824 | CS12: 94.108 | CT12: 3 | CU12: 270 | CV12: -81.784 | CZ12: 1
A13: 100098815587 | B13: 1 | C13: 1 | D13: 1 | E13: （株）三春情報センター 港南台駅前店 | F13: 045-832-5211 | G13: 山田 | J13: 2 | K13: 2019-05-08 | O13: 神奈川県 | P13: 横浜市栄区 | Q13: 東上郷町 | W13: 根岸線 | X13: 港南台 | AA13: 14 | AD13: 3 | AJ13: 2 | AL13: 2 | AQ13: 5 | AU13: 23500000 | AW13: 379000 | AX13: 115000 | BA13: 205.08 | BG13: 2 | CD13: 1 | CE13: 1 | CJ13: 205.08 | CK13: 6.836 | CL13: 7 | CM13: 5 | CN13: 420 | CO13: 62.14545455 | CP13: 2982.981818 | CQ13: 5332.981818 | CR13: 0.07875519068 | CS13: 123.048 | CT13: 4 | CU13: 360 | CV13: -154.92 | DP13: 1
A14: 100098815730 | B14: 1 | C14: 1 | D14: 1 | E14: 相鉄不動産販売（株） 流通事業部横浜店 | F14: 045-319-2411 | G14: 髙橋 智之 | H14: 453192411 | J14: 2 | K14: 2019-05-08 | O14: 神奈川県 | P14: 横浜市保土ケ谷区 | Q14: 川辺町 | W14: 相鉄線 | X14: 星川 | Y14: 6 | AJ14: 1 | AL14: 2 | AQ14: 4 | AU14: 75000000 | AW14: 1959000 | AX14: 593000 | AZ14: 1 | BA14: 126.57 | CA14: 3 | CB14: 1 | CD14: 1 | CE14: 4 | CH14: 80 | CI14: 300 | CJ14: 379.71 | CK14: 12.657 | CL14: 13 | CM14: 5 | CN14: 780 | CO14: 115.0636364 | CP14: 5523.054545 | CQ14: 13023.05455 | CR14: 0.05989378277 | CS14: 101.256 | CT14: 3 | CU14: 270 | CV14: 109.71 | CW14: ! | DA14: 2 | DP14: 5 | DQ14: 1 | DR14: 15.1 | DT14: 1 | DU14: 22 | DV14: 1 | DW14: 13.4 | DY14: 7 | DZ14: 5.7 | GU14: ＳＲＥ０９４７１
A15: 100098815760 | B15: 1 | C15: 1 | D15: 1 | E15: 三井住友トラスト不動産（株） 相模大野センター | F15: 042-765-4911 | G15: 石井 俊充 | H15: 042-765-4911 | I15: sagamiono@smtrc.jp | J15: 2 | K15: 2019-05-08 | O15: 神奈川県 | P15: 座間市 | Q15: 栗原中央５丁目 | W15: 相鉄線 | X15: さがみ野 | Y15: 20 | AJ15: 1 | AL15: 2 | AQ15: 4 | AU15: 18000000 | AW15: 437000 | AX15: 132000 | AZ15: 1 | BA15: 136.43 | BG15: 1 | CA15: 3 | CB15: 1 | CC15: 1 | CD15: 1 | CE15: 11 | CH15: 60 | CI15: 150 | CJ15: 204.645 | CK15: 6.8215 | CL15: 7 | CM15: 5 | CN15: 420 | CO15: 62.01363636 | CP15: 2976.654545 | CQ15: 4776.654545 | CR15: 0.08792764811 | CS15: 81.858 | CT15: 2 | CU15: 180 | CV15: 24.645 | CW15: ! | DA15: 2 | DP15: 1 | DQ15: 2 | DS15: 1 | DT15: 7 | DU15: 4.5 | GQ15: クリエイトエス・ディー座間栗原中央店 | GR15: 560 | GW15: Ｂｓｏ１８０６５４
A16: 100098815852 | B16: 1 | C16: 1 | D16: 1 | E16: 三井住友トラスト不動産（株） 藤沢センター | F16: 0466-24-3147 | G16: 松本 直矢 | H16: 0466-24-3147 | I16: fujisawa@smtrc.jp | J16: 2 | K16: 2019-05-08 | L16: 2019-05-09 | O16: 神奈川県 | P16: 藤沢市 | Q16: 亀井野 | W16: 江ノ島線 | X16: 六会日大前 | Y16: 17 | AJ16: 1 | AL16: 2 | AQ16: 4 | AU16: 23800000 | AW16: 525000 | AX16: 159000 | AZ16: 2 | BA16: 150.08 | BG16: 2 | BK16: 1 | BP16: 1 | CA16: 3 | CB16: 1 | CC16: 1 | CD16: 2 | CH16: 50 | CI16: 80 | CJ16: 120.064 | CK16: 4.002133333 | CL16: 4 | CM16: 5 | CN16: 240 | CO16: =CJ16/3.3 -> 36.3830303 | CP16: 1746.385455 | CQ16: =CP16+(AU16/10000) -> 4126.385455 | CR16: =CN16/CQ16 -> 0.05816228335 | CS16: 75.04 | CT16: 2 | CU16: 180 | CV16: -59.936 | CZ16: 1 | DA16: 2 | DP16: 2 | DQ16: 1 | DS16: 2 | DT16: 2 | DU16: 5 | DV16: 1 | DX16: 2 | DY16: 1 | DZ16: 5 | GQ16: ファミリーマート 藤沢亀井野店 | GR16: 350 | GW16: Ｂｆｗ１８０３８４
A17: 100098815855 | B17: 1 | C17: 1 | D17: 1 | E17: 三井住友トラスト不動産（株） 藤沢センター | F17: 0466-24-3147 | G17: 松本 直矢 | H17: 0466-24-3147 | I17: fujisawa@smtrc.jp | J17: 2 | K17: 2019-05-08 | L17: 2019-05-09 | O17: 神奈川県 | P17: 藤沢市 | Q17: 亀井野 | W17: 江ノ島線 | X17: 六会日大前 | Y17: 17 | AJ17: 1 | AL17: 2 | AQ17: 4 | AU17: 25800000 | AW17: 565000 | AX17: 171000 | AZ17: 2 | BA17: 151.04 | BG17: 2 | BK17: 1 | BP17: 1 | CA17: 3 | CB17: 1 | CC17: 1 | CD17: 2 | CH17: 50 | CI17: 80 | CJ17: 120.832 | CK17: 4.027733333 | CL17: 4 | CM17: 5 | CN17: 240 | CO17: 36.61575758 | CP17: 1757.556364 | CQ17: 4337.556364 | CR17: 0.05533069311 | CS17: 75.52 | CT17: 2 | CU17: 180 | CV17: -59.168 | CZ17: 1 | DA17: 2 | DP17: 1 | DQ17: 1 | DS17: 2 | DT17: 1 | DU17: 5 | GQ17: ファミリーマート 藤沢亀井野店 | GR17: 350 | GW17: Ｂｆｗ１８０３８５
A18: 100098815858 | B18: 1 | C18: 1 | D18: 1 | E18: 三井住友トラスト不動産（株） 藤沢センター | F18: 0466-24-3147 | G18: 松本 直矢 | H18: 0466-24-3147 | I18: fujisawa@smtrc.jp | J18: 2 | K18: 2019-05-08 | L18: 2019-05-09 | O18: 神奈川県 | P18: 藤沢市 | Q18: 亀井野 | W18: 江ノ島線 | X18: 六会日大前 | Y18: 17 | AJ18: 1 | AL18: 2 | AQ18: 4 | AU18: 29800000 | AW18: 657000 | AX18: 199000 | AZ18: 2 | BA18: 150 | BG18: 2 | BK18: 1 | BP18: 1 | CA18: 3 | CB18: 1 | CC18: 1 | CD18: 2 | CH18: 50 | CI18: 80 | CJ18: 120 | CK18: 4 | CL18: 4 | CM18: 5 | CN18: 240 | CO18: 36.36363636 | CP18: 1745.454545 | CQ18: 4725.454545 | CR18: 0.05078876491 | CS18: 75 | CT18: 2 | CU18: 180 | CV18: -60 | CZ18: 1 | DA18: 2 | DP18: 2 | DQ18: 1 | DS18: 2 | DT18: 2 | DU18: 5 | DV18: 2 | DX18: 2 | DY18: 4 | DZ18: 6 | GQ18: ファミリーマート藤沢亀井野店 | GR18: 350 | GW18: Ｂｆｗ１８０３８６
A19: 100098815859 | B19: 1 | C19: 1 | D19: 1 | E19: 三井住友トラスト不動産（株） 藤沢センター | F19: 0466-24-3147 | G19: 松本 直矢 | H19: 0466-24-3147 | I19: fujisawa@smtrc.jp | J19: 2 | K19: 2019-05-08 | L19: 2019-05-09 | O19: 神奈川県 | P19: 藤沢市 | Q19: 亀井野 | W19: 江ノ島線 | X19: 六会日大前 | Y19: 17 | AJ19: 1 | AL19: 2 | AQ19: 4 | AU19: 31800000 | AW19: 631000 | AX19: 191000 | AZ19: 2 | BA19: 166.64 | BG19: 2 | BP19: 1 | CA19: 3 | CB19: 1 | CC19: 1 | CD19: 2 | CH19: 50 | CI19: 80 | CJ19: 133.312 | CK19: 4.443733333 | CL19: 4 | CM19: 5 | CN19: 240 | CO19: 40.39757576 | CP19: 1939.083636 | CQ19: 5119.083636 | CR19: 0.04688339106 | CS19: 83.32 | CT19: 2 | CU19: 180 | CV19: -46.688 | CZ19: 1 | DA19: 2 | DP19: 2 | DQ19: 2 | DS19: 2 | DT19: 2 | DU19: 6 | DV19: 1 | DX19: 2 | DY19: 4 | DZ19: 5.2 | GQ19: ファミリーマート藤沢亀井野店 | GR19: 350 | GW19: Ｂｆｗ１８０３９７
A20: 100098817534 | B20: 1 | C20: 1 | D20: 1 | E20: 八重咲地所（株） | F20: 0463-27-1717 | G20: 坂本 | J20: 2 | K20: 2019-05-08 | L20: 2019-05-09 | O20: 神奈川県 | P20: 平塚市 | Q20: 岡崎 | R20: 3069-05-01 | W20: 東海道線 | X20: 平塚 | AA20: 22 | AC20: 稲荷坂 | AJ20: 2 | AL20: 1 | AQ20: 4 | AR20: 1 | AU20: 11000000 | AW20: 210000 | AX20: 64000 | AZ20: 1 | BA20: 173.83 | CB20: 1 | CC20: 1 | CD20: 2 | CE20: 99 | CG20: 1 | CH20: 50 | CI20: 100 | CJ20: 173.83 | CK20: 5.794333333 | CL20: 6 | CM20: 5 | CN20: 360 | CO20: 52.67575758 | CP20: 2528.436364 | CQ20: 3628.436364 | CR20: 0.09921629152 | CS20: 86.915 | CT20: 2 | CU20: 180 | CV20: -6.17 | CZ20: 1 | DA20: 2 | DP20: 1 | DQ20: 1 | DU20: 4 | EK20: 1
A21: 100098819968 | B21: 1 | C21: 1 | D21: 1 | E21: （株）ジャパンムーヴメント | F21: 03-3787-0066 | J21: 3 | K21: 2019-05-08 | L21: 2019-05-09 | O21: 神奈川県 | P21: 川崎市高津区 | Q21: 末長１丁目 | R21: ２６－１７ | W21: 田園都市線 | X21: 梶が谷 | Y21: 8 | Z21: 570 | AA21: 2 | AD21: 8 | AE21: 570 | AF21: 0.6 | AG21: 東急バス「姿見台」バス停 | AH21: 8 | AI21: 570 | AJ21: 1 | AL21: 1 | AQ21: 1 | AR21: 9 | AU21: 64800000 | AW21: 338000 | AX21: 103000 | BA21: 635 | BM21: 89.25 | CB21: 5 | CD21: 1 | CE21: 1 | CH21: 50 | CI21: 80 | CJ21: 508 | CK21: 16.93333333 | CL21: 17 | CM21: 5 | CN21: 1020 | CO21: 153.9393939 | CP21: 7389.090909 | CQ21: 13869.09091 | CR21: 0.07354483482 | CS21: 317.5 | CT21: 10 | CU21: 900 | CV21: -392 | CZ21: 1 | DA21: 2 | DP21: 1 | DQ21: 1 | DR21: 50.3 | DS21: 2 | DT21: 2 | DU21: 1.8 | GU21: 諸条件相談可
A22: 100098820044 | B22: 1 | C22: 1 | D22: 1 | E22: 横浜不動産情報（株） | F22: 045-314-0314 | G22: 佐藤 | J22: 2 | K22: 2019-05-08 | O22: 神奈川県 | P22: 横浜市戸塚区 | Q22: 汲沢３丁目 | W22: 横浜ブルー | X22: 踊場 | Y22: 16 | AJ22: 2 | AL22: 2 | AQ22: 5 | AR22: 1 | AU22: 26000000 | AW22: 485000 | AX22: 147000 | AZ22: 1 | BA22: 177.52 | BG22: 2 | BK22: 0 | BT22: 2 | CA22: 3 | CB22: 1 | CD22: 1 | CE22: 1 | CH22: 50 | CI22: 80 | CJ22: 142.016 | CK22: 4.733866667 | CL22: 5 | CM22: 5 | CN22: 300 | CO22: 43.03515152 | CP22: 2065.687273 | CQ22: 4665.687273 | CR22: 0.06429920877 | CS22: 88.76 | CT22: 2 | CU22: 180 | CV22: -37.984 | DP22: 4 | DQ22: 1 | DR22: 13.6 | DT22: 3 | DU22: 6 | DV22: 1 | DY22: 7 | DZ22: 2 | EA22: 1 | ED22: 5 | EE22: 2 | EF22: 1 | EG22: 13.5 | EI22: 1 | EJ22: 4
A23: 100098820552 | B23: 1 | C23: 1 | D23: 1 | E23: （株）ベストパートナー | F23: 03-3362-0586 | G23: 高橋 | I23: gyoumu@bestp.co.jp | J23: 2 | K23: 2019-05-08 | O23: 神奈川県 | P23: 横浜市磯子区 | Q23: 杉田３丁目 | W23: 京浜急行線 | X23: 杉田 | Y23: 9 | AJ23: 1 | AL23: 2 | AQ23: 5 | AU23: 17800000 | AW23: 253000 | AX23: 77000 | AZ23: 2 | BA23: 232.82 | CB23: 1 | CD23: 1 | CE23: 1 | CH23: 50 | CI23: 100 | CJ23: 232.82 | CK23: 7.760666667 | CL23: 8 | CM23: 5 | CN23: 480 | CO23: 70.55151515 | CP23: 3386.472727 | CQ23: 5166.472727 | CR23: 0.09290671321 | CS23: 116.41 | CT23: 3 | CU23: 270 | CV23: -37.18 | DP23: 1 | DT23: 1 | DU23: 5
A24: 100098820571 | B24: 1 | C24: 1 | D24: 1 | E24: 一般社団法人 不動産売却支援ネット | F24: 03-6860-8432 | G24: 加藤 | J24: 2 | K24: 2019-05-08 | L24: 2019-05-13 | O24: 神奈川県 | P24: 鎌倉市 | Q24: 山ノ内 | W24: 横須賀線 | X24: 北鎌倉 | Y24: 13 | AJ24: 2 | AL24: 2 | AQ24: 3 | AR24: 1 | AU24: 32000000 | AW24: 363000 | AX24: 110000 | AZ24: 1 | BA24: 291.61 | CB24: 4 | CD24: 1 | CE24: 1 | CG24: 1 | CH24: 40 | CI24: 80 | CJ24: 233.288 | CK24: 7.776266667 | CL24: 8 | CM24: 5 | CN24: 480 | CO24: 70.69333333 | CP24: 3393.28 | CQ24: 6593.28 | CR24: 0.07280139779 | CS24: 116.644 | CT24: 3 | CU24: 270 | CV24: -36.712 | DP24: 5 | DQ24: 1 | DT24: 1 | DU24: 2 | DV24: 1 | DY24: 3 | DZ24: 1.9
A25: 100098825078 | B25: 1 | C25: 1 | D25: 1 | E25: （株）杉浦商事 | F25: 045-441-8522 | G25: 本間 | H25: 090-3082-8522 | I25: honma@sugiura-syoji.co.jp | J25: 2 | K25: 2019-05-08 | O25: 神奈川県 | P25: 横浜市保土ケ谷区 | Q25: 鎌谷町 | W25: 相鉄線 | X25: 星川 | Y25: 14 | AJ25: 1 | AL25: 2 | AQ25: 4 | AR25: 1 | AU25: 61600000 | AW25: 771000 | AX25: 233000 | AZ25: 1 | BA25: 264.46 | BG25: 1 | BK25: 0 | CB25: 1 | CD25: 1 | CE25: 1 | CG25: 15 | CH25: 60 | CI25: 100 | CJ25: 264.46 | CK25: 8.815333333 | CL25: 9 | CM25: 5 | CN25: 540 | CO25: 80.13939394 | CP25: 3846.690909 | CQ25: 10006.69091 | CR25: 0.05396389325 | CS25: 158.676 | CT25: 5 | CU25: 450 | CV25: -185.54 | CZ25: 1 | DA25: 2 | DP25: 1 | DQ25: 1 | DR25: 10.5 | DT25: 6 | DU25: 6 | EK25: 1
A26: 100098828294 | B26: 1 | C26: 1 | D26: 1 | E26: （有）坪井企業 | F26: 042-763-0008 | J26: 2 | K26: 2019-05-09 | L26: 2019-05-10 | O26: 神奈川県 | P26: 相模原市中央区 | Q26: 横山６丁目 | R26: ８－４４ | W26: 相模線 | X26: 上溝 | Y26: 6 | Z26: 480 | AJ26: 2 | AL26: 2 | AQ26: 5 | AR26: 1 | AU26: 56000000 | AW26: 429000 | AX26: 130000 | AZ26: 2 | BA26: 432 | BG26: 1 | BH26: 43.09 | CB26: 1 | CD26: 1 | CE26: 3 | CG26: 1 | CH26: 60 | CI26: 200 | CJ26: 864 | CK26: 28.8 | CL26: 29 | CM26: 5 | CN26: 1740 | CO26: 261.8181818 | CP26: 12567.27273 | CQ26: 18167.27273 | CR26: 0.0957766213 | CS26: 259.2 | CT26: 8 | CU26: 720 | CV26: 144 | CW26: ! | CZ26: 2 | DQ26: 2 | DR26: 3.9 | DS26: 1 | DT26: 1 | DU26: 4 | GV26: 建物有（昭和５８年９月新築）
A27: 100098829687 | B27: 1 | C27: 1 | D27: 1 | E27: 野村不動産アーバンネット（株） 新百合ケ丘センター | F27: 044-954-2241 | G27: 大関 真央 | H27: 044-954-2241 | J27: 2 | K27: 2019-05-09 | L27: 2019-05-12 | O27: 神奈川県 | P27: 川崎市多摩区 | Q27: 栗谷２丁目 | W27: 小田急線 | X27: 生田 | Y27: 15 | AJ27: 1 | AL27: 2 | AQ27: 4 | AU27: 27800000 | AW27: 679000 | AX27: 206000 | BA27: 135.42 | BG27: 1 | BH27: 25.46 | BK27: 0 | CA27: 3 | CB27: 1 | CD27: 1 | CE27: 1 | CG27: 1 | CH27: 50 | CI27: 80 | CJ27: 108.336 | CK27: 3.6112 | CL27: 4 | CM27: 5 | CN27: 240 | CO27: 32.82909091 | CP27: 1575.796364 | CQ27: 4355.796364 | CR27: 0.05509899453 | CS27: 67.71 | CT27: 2 | CU27: 180 | CV27: -71.664 | CZ27: 1 | DA27: 2 | DP27: 3 | DQ27: 2 | DR27: 8.9 | DS27: 1 | DT27: 4 | DU27: 6 | DV27: 2 | DW27: 10 | DX27: 1 | DY27: 6 | DZ27: 6 | EA27: 1 | EB27: 13 | EC27: 2 | ED27: 2 | EE27: 2 | EK27: 1 | GW27: Ｅ６７Ｖ４０４３（１９２３４６１）
A28: 100098829690 | B28: 1 | C28: 1 | D28: 1 | E28: 野村不動産アーバンネット（株） 藤沢センター | F28: 0466-27-5711 | G28: 森 浩平 | H28: 0466-27-5711 | J28: 2 | K28: 2019-05-09 | L28: 2019-05-12 | O28: 神奈川県 | P28: 藤沢市 | Q28: 鵠沼松が岡５丁目 | W28: 江ノ島線 | X28: 鵠沼海岸 | Y28: 9 | AJ28: 2 | AL28: 2 | AQ28: 4 | AR28: 1 | AU28: 37800000 | AW28: 954000 | AX28: 289000 | AZ28: 1 | BA28: 131.11 | BG28: 2 | BK28: 0 | CA28: 3 | CB28: 1 | CC28: 1 | CD28: 1 | CE28: 1 | CG28: 1 | CH28: 40 | CI28: 80 | CJ28: 104.888 | CK28: 3.496266667 | CL28: 3 | CM28: 5 | CN28: 180 | CO28: 31.78424242 | CP28: 1525.643636 | CQ28: 5305.643636 | CR28: 0.03392613834 | CS28: 52.444 | CT28: 1 | CU28: 90 | CV28: 14.888 | CW28: ! | CZ28: 1 | DA28: 2 | DP28: 1 | DQ28: 1 | DR28: 11.4 | DS28: 2 | DT28: 8 | DU28: 4.5 | EK28: 1 | GW28: Ｅ６０Ｖ４０２８（１９２３４６８）
A29: 100098833179 | B29: 1 | C29: 1 | D29: 1 | E29: シティレジデンス株式会社 | F29: 045-228-7838 | J29: 2 | K29: 2019-05-09 | O29: 神奈川県 | P29: 横浜市青葉区 | Q29: 美しが丘３丁目 | W29: 田園都市線 | X29: たまプラーザ | Y29: 20 | AJ29: 1 | AL29: 2 | AQ29: 1 | AU29: 51000000 | AW29: 1227000 | AX29: 371000 | AZ29: 1 | BA29: 137.47 | CB29: 1 | CD29: 1 | CE29: 1 | CH29: 50 | CI29: 80 | CJ29: 109.976 | CK29: 3.665866667 | CL29: 4 | CM29: 5 | CN29: 240 | CO29: 33.32606061 | CP29: 1599.650909 | CQ29: 6699.650909 | CR29: 0.035822762 | CS29: 68.735 | CT29: 2 | CU29: 180 | CV29: -70.024 | CZ29: 1 | DA29: 2 | DP29: 1 | DQ29: 1 | DR29: 12.9 | DT29: 5 | DU29: 5
A30: 100098833888 | B30: 1 | C30: 1 | D30: 1 | E30: タクトホーム（株） 藤沢店 | F30: 0466-55-6588 | G30: 矢部 | J30: 2 | K30: 2019-05-09 | O30: 神奈川県 | P30: 厚木市 | Q30: 王子２丁目 | W30: 小田急線 | X30: 本厚木 | AA30: 13 | AQ30: 1 | AU30: 22800000 | AW30: 503000 | AX30: 152000 | AZ30: 1 | BA30: 150 | CB30: 3 | CD30: 1 | CE30: 1 | CH30: 50 | CI30: 100 | CJ30: 150 | CK30: 5 | CL30: 5 | CM30: 5 | CN30: 300 | CO30: 45.45454545 | CP30: 2181.818182 | CQ30: 4461.818182 | CR30: 0.06723716381 | CS30: 75 | CT30: 2 | CU30: 180 | CV30: -30 | CZ30: 1 | DP30: 1 | DQ30: 1 | DR30: 12.9 | DU30: 5.7 | EK30: 1
A31: 100098833906 | B31: 1 | C31: 1 | D31: 1 | E31: タクトホーム（株） 藤沢店 | F31: 0466-55-6588 | G31: 矢部 | J31: 2 | K31: 2019-05-09 | O31: 神奈川県 | P31: 藤沢市 | Q31: 羽鳥２丁目 | W31: 東海道線 | X31: 辻堂 | Y31: 14 | AJ31: 1 | AL31: 4 | AM31: 201906 | AN31: 3 | AQ31: 1 | AU31: 37800000 | AW31: 711000 | AX31: 216000 | AZ31: 1 | BA31: 175.79 | CB31: 3 | CD31: 1 | CE31: 1 | CH31: 50 | CI31: 80 | CJ31: 140.632 | CK31: 4.687733333 | CL31: 5 | CM31: 5 | CN31: 300 | CO31: 42.61575758 | CP31: 2045.556364 | CQ31: 5825.556364 | CR31: 0.05149722726 | CS31: 87.895 | CT31: 2 | CU31: 180 | CV31: -39.368 | CZ31: 1 | DA31: 2 | DQ31: 1 | DU31: 4.5
A32: 100098834717 | B32: 1 | C32: 1 | D32: 1 | E32: （株）原忠 | F32: 03-5729-1591 | J32: 2 | K32: 2019-05-09 | O32: 神奈川県 | P32: 川崎市麻生区 | Q32: 細山５丁目 | W32: 小田急線 | X32: 読売ランド前 | Y32: 16 | AJ32: 1 | AL32: 1 | AQ32: 1 | AR32: 4 | AS32: 3 | AU32: 27800000 | AW32: 662000 | AX32: 201000 | AZ32: 1 | BA32: 138.84 | CJ32: 138.84 | CK32: 4.628 | CL32: 5 | CM32: 5 | CN32: 300 | CO32: 42.07272727 | CP32: 2019.490909 | CQ32: 4799.490909 | CR32: 0.06250662949 | CS32: 83.304 | CT32: 2 | CU32: 180 | CV32: -41.16
A33: 100098834801 | B33: 1 | C33: 1 | D33: 1 | E33: （株）東信 | F33: 045-785-6381 | G33: 金沢八景店 松井 | J33: 2 | K33: 2019-05-09 | L33: 2019-05-10 | O33: 神奈川県 | P33: 横須賀市 | Q33: 追浜町１丁目 | W33: 京浜急行線 | X33: 追浜 | Y33: 10 | AJ33: 1 | AL33: 1 | AQ33: 4 | AU33: 14800000 | AW33: 302000 | AX33: 92000 | BA33: 162.21 | CB33: 1 | CD33: 1 | CE33: 12 | CH33: 60 | CI33: 200 | CJ33: 324.42 | CK33: 10.814 | CL33: 11 | CM33: 5 | CN33: 660 | CO33: 98.30909091 | CP33: 4718.836364 | CQ33: 6198.836364 | CR33: 0.1064715958 | CS33: 97.326 | CT33: 3 | CU33: 270 | CV33: 54.42 | CW33: ! | CZ33: 1 | DA33: 2 | DP33: 1 | DQ33: 2 | EK33: 1 | GQ33: 駅まで平坦
A34: 100098834950 | B34: 1 | C34: 1 | D34: 1 | E34: 富士リアルティ（株） | F34: 0466-50-7000 | J34: 2 | K34: 2019-05-09 | O34: 神奈川県 | P34: 藤沢市 | Q34: 辻堂３丁目 | R34: １８－６５ | W34: 東海道線 | X34: 辻堂 | Y34: 12 | AJ34: 1 | AL34: 1 | AQ34: 1 | AU34: 43800000 | AW34: 1184000 | AX34: 359000 | AZ34: 1 | BA34: 122.33 | CB34: 1 | CD34: 1 | CE34: 1 | CG34: 1 | CH34: 50 | CI34: 80 | CJ34: 97.864 | CK34: 3.262133333 | CL34: 3 | CM34: 5 | CN34: 180 | CO34: 29.65575758 | CP34: 1423.476364 | CQ34: 5803.476364 | CR34: 0.03101589267 | CS34: 61.165 | CT34: 2 | CU34: 180 | CV34: -82.136 | DA34: 2 | DP34: 1 | EK34: 1
A35: 100098835394 | B35: 1 | C35: 1 | D35: 1 | E35: （株）アゼリアホーム | F35: 044-959-0123 | G35: 中溝 俊介 | H35: 090-4549-6074 | I35: nakamizo@azalea-home.co.jp | J35: 2 | K35: 2019-05-09 | L35: 2019-05-10 | O35: 神奈川県 | P35: 川崎市多摩区 | Q35: 西生田４丁目 | W35: 小田急線 | X35: 読売ランド前 | Y35: 4 | AJ35: 1 | AL35: 1 | AQ35: 1 | AU35: 41800000 | AW35: 860000 | AX35: 260000 | AZ35: 2 | BA35: 160.84 | BK35: 1 | BM35: 4.81 | CB35: 1 | CC35: 1 | CD35: 1 | CE35: 1 | CG35: 15 | CH35: 50 | CI35: 100 | CJ35: 160.84 | CK35: 5.361333333 | CL35: 5 | CM35: 5 | CN35: 300 | CO35: 48.73939394 | CP35: 2339.490909 | CQ35: 6519.490909 | CR35: 0.04601586292 | CS35: 80.42 | CT35: 2 | CU35: 180 | CV35: -19.16 | CZ35: 1 | DA35: 2 | DP35: 1 | DQ35: 1
A36: 100098835575 | B36: 1 | C36: 1 | D36: 1 | E36: （株）明治ホームズ | F36: 044-860-2900 | G36: 吉田 | J36: 2 | K36: 2019-05-09 | O36: 神奈川県 | P36: 横浜市青葉区 | Q36: 美しが丘５丁目 | W36: 田園都市線 | X36: たまプラーザ | Y36: 9 | AJ36: 1 | AL36: 1 | AQ36: 1 | AR36: 4 | AS36: 3 | AU36: 79800000 | AW36: 1688000 | AX36: 511000 | AZ36: 1 | BA36: 156.3 | BG36: 2 | CA36: 3 | CB36: 1 | CD36: 1 | CE36: 1 | CH36: 50 | CI36: 80 | CJ36: 125.04 | CK36: 4.168 | CL36: 4 | CM36: 5 | CN36: 240 | CO36: 37.89090909 | CP36: 1818.763636 | CQ36: 9798.763636 | CR36: 0.02449288593 | CS36: 78.15 | CT36: 2 | CU36: 180 | CV36: -54.96 | DA36: 2 | DP36: 1 | DQ36: 1 | DS36: 2 | DU36: 6.5 | EK36: 1
A37: 100098835906 | B37: 1 | C37: 1 | D37: 1 | E37: （株）栄建ハウス | F37: 045-989-5722 | G37: 鈴木 | J37: 2 | K37: 2019-05-09 | O37: 神奈川県 | P37: 横浜市戸塚区 | Q37: 戸塚町 | W37: 横須賀線 | X37: 戸塚 | Y37: 18 | AJ37: 1 | AL37: 1 | AQ37: 1 | AU37: 26800000 | AW37: 468000 | AX37: 142000 | AZ37: 2 | BA37: 189.68 | BG37: 1 | BH37: 21.49 | CB37: 1 | CD37: 1 | CE37: 1 | CH37: 50 | CI37: 100 | CJ37: 189.68 | CK37: 6.322666667 | CL37: 6 | CM37: 5 | CN37: 360 | CO37: 57.47878788 | CP37: 2758.981818 | CQ37: 5438.981818 | CR37: 0.06618885888 | CS37: 94.84 | CT37: 3 | CU37: 270 | CV37: -80.32 | DP37: 1 | DQ37: 1 | DT37: 1 | DU37: 4.7 | EK37: 1
A38: 100098835923 | B38: 1 | C38: 1 | D38: 1 | E38: 小田急不動産（株） 町田店 | F38: 042-722-5811 | G38: 矢作博信 | H38: 042-722-5811 | I38: machida@odakyu-fudosan.co.jp | J38: 2 | K38: 2019-05-09 | O38: 神奈川県 | P38: 秦野市 | Q38: 本町３丁目 | W38: 小田急線 | X38: 秦野 | Y38: 8 | AJ38: 2 | AL38: 2 | AQ38: 4 | AU38: 42300000 | AW38: 365000 | AX38: 111000 | AZ38: 1 | BA38: 383.47 | CA38: 3 | CB38: 1 | CD38: 1 | CE38: 12 | CH38: 60 | CI38: 200 | CJ38: 766.94 | CK38: 25.56466667 | CL38: 26 | CM38: 5 | CN38: 1560 | CO38: 232.4060606 | CP38: 11155.49091 | CQ38: 15385.49091 | CR38: 0.1013942297 | CS38: 230.082 | CT38: 7 | CU38: 630 | CV38: 136.94 | CW38: ! | CZ38: 1 | DA38: 2 | DP38: 1 | DQ38: 1 | DT38: 5 | DU38: 1.2 | EK38: 1
A39: 100098836158 | B39: 1 | C39: 1 | D39: 1 | E39: （株）栄建ハウス | F39: 045-989-5722 | G39: 渡辺 | I39: watanabe@eikenhouse.jp | J39: 2 | K39: 2019-05-09 | O39: 神奈川県 | P39: 横浜市青葉区 | Q39: 奈良町 | W39: こどもの国 | X39: こどもの国 | Y39: 16 | AJ39: 1 | AL39: 2 | AQ39: 1 | AU39: 24800000 | AW39: 656000 | AX39: 199000 | BA39: 125.01 | CB39: 1 | CD39: 1 | CE39: 1 | CH39: 40 | CI39: 80 | CJ39: 100.008 | CK39: 3.3336 | CL39: 3 | CM39: 5 | CN39: 180 | CO39: 30.30545455 | CP39: 1454.661818 | CQ39: 3934.661818 | CR39: 0.04574726071 | CS39: 50.004 | CT39: 1 | CU39: 90 | CV39: 10.008 | CW39: ! | DQ39: 1 | DT39: 5 | DU39: 8
A40: 100098836195 | B40: 1 | C40: 1 | D40: 1 | E40: ステップ・インベストメント（株） | F40: 03-5358-0871 | G40: 浅川 | J40: 2 | K40: 2019-05-09 | O40: 神奈川県 | P40: 横浜市青葉区 | Q40: 美しが丘２丁目 | R40: 1936-04-01 | W40: 田園都市線 | X40: たまプラーザ | Y40: 12 | AJ40: 1 | AL40: 2 | AQ40: 1 | AS40: 3 | AU40: 129800000 | AW40: 1308000 | AX40: 396000 | AZ40: 1 | BA40: 328.14 | BG40: 2 | BK40: 0 | BT40: 2 | CA40: 3 | CB40: 1 | CD40: 1 | CE40: 1 | CG40: 1 | CH40: 40 | CI40: 60 | CJ40: 196.884 | CK40: 6.5628 | CL40: 7 | CM40: 5 | CN40: 420 | CO40: 59.66181818 | CP40: 2863.767273 | CQ40: 15843.76727 | CR40: 0.02650884684 | CS40: 131.256 | CT40: 4 | CU40: 360 | CV40: -163.116 | CZ40: 4 | DA40: 2 | DP40: 1 | DQ40: 1 | DR40: 9.5 | DS40: 2 | DT40: 8 | DU40: 6.5 | EK40: 1
A41: 100098836315 | B41: 1 | C41: 1 | D41: 1 | E41: （株）レイメイコンサルティング | F41: 046-250-1177 | J41: 2 | K41: 2019-05-09 | O41: 神奈川県 | P41: 足柄上郡大井町 | Q41: 上大井 | R41: 1985-01-01 | W41: 御殿場線 | X41: 上大井 | Y41: 7 | Z41: 560 | AJ41: 1 | AL41: 1 | AQ41: 1 | AR41: 9 | AS41: 3 | AU41: 11800000 | AW41: 319000 | AX41: 97000 | AZ41: 2 | BA41: 122.31 | BG41: 1 | BH41: 28.55 | BP41: 7 | CB41: 1 | CD41: 1 | CE41: 2 | CG41: 1 | CH41: 60 | CI41: 200 | CJ41: 244.62 | CK41: 8.154 | CL41: 8 | CM41: 5 | CN41: 480 | CO41: 74.12727273 | CP41: 3558.109091 | CQ41: 4738.109091 | CR41: 0.1013062365 | CS41: 73.386 | CT41: 2 | CU41: 180 | CV41: 64.62 | CW41: ! | CZ41: 1 | DP41: 5 | DQ41: 1 | DR41: 13 | DT41: 5 | DU41: 4.5 | DV41: 1 | DW41: 6.9 | DY41: 7 | DZ41: 8.5 | GV41: 商業施設が近隣に多数あります。
A42: 100098836337 | B42: 1 | C42: 1 | D42: 1 | E42: （株）レイメイコンサルティング | F42: 046-250-1177 | J42: 2 | K42: 2019-05-09 | O42: 神奈川県 | P42: 厚木市 | Q42: 林３丁目 | R42: １４－４５ | W42: 小田急線 | X42: 本厚木 | AA42: 8 | AC42: 穴口橋 | AD42: 2 | AE42: 160 | AJ42: 1 | AL42: 1 | AQ42: 1 | AR42: 9 | AS42: 3 | AU42: 20800000 | AW42: 532000 | AX42: 161000 | AZ42: 2 | BA42: 129.45 | BG42: 2 | BK42: 2 | BN42: 764.24 | BO42: 764.24 | BP42: 5 | BQ42: 201902 | CB42: 1 | CD42: 1 | CE42: 1 | CG42: 1 | CH42: 50 | CI42: 100 | CJ42: 129.45 | CK42: 4.315 | CL42: 4 | CM42: 5 | CN42: 240 | CO42: 39.22727273 | CP42: 1882.909091 | CQ42: 3962.909091 | CR42: 0.06056157093 | CS42: 64.725 | CT42: 2 | CU42: 180 | CV42: -50.55 | CZ42: 1 | DA42: 2 | DQ42: 1 | DR42: 8.7 | DT42: 1 | DU42: 4 | GV42: 全５区画の分譲地です
A43: 100098836344 | B43: 1 | C43: 1 | D43: 1 | E43: （株）レイメイコンサルティング | F43: 046-250-1177 | J43: 2 | K43: 2019-05-09 | O43: 神奈川県 | P43: 厚木市 | Q43: 林３丁目 | R43: １４－４５ | W43: 小田急線 | X43: 本厚木 | AA43: 8 | AC43: 穴口橋 | AD43: 2 | AE43: 160 | AJ43: 1 | AL43: 4 | AM43: 201904 | AN43: 1 | AQ43: 1 | AR43: 9 | AS43: 3 | AU43: 24500000 | AW43: 541000 | AX43: 164000 | AZ43: 2 | BA43: 149.82 | BG43: 2 | BK43: 2 | BN43: 764.24 | BO43: 764.24 | BP43: 5 | CB43: 1 | CD43: 1 | CE43: 1 | CG43: 1 | CH43: 50 | CI43: 100 | CJ43: 149.82 | CK43: 4.994 | CL43: 5 | CM43: 5 | CN43: 300 | CO43: 45.4 | CP43: 2179.2 | CQ43: 4629.2 | CR43: 0.064806014 | CS43: 74.91 | CT43: 2 | CU43: 180 | CV43: -30.18 | CZ43: 1 | DA43: 2 | DQ43: 2 | DR43: 15 | DT43: 5 | DU43: 4 | GV43: 全５区画の分譲地
A44: 100098836376 | B44: 1 | C44: 1 | D44: 1 | E44: （株）レイメイコンサルティング | F44: 046-250-1177 | J44: 2 | K44: 2019-05-09 | O44: 神奈川県 | P44: 厚木市 | Q44: 林３丁目 | R44: １４－４５ | W44: 小田急線 | X44: 本厚木 | AA44: 8 | AC44: 穴口橋 | AD44: 2 | AE44: 160 | AJ44: 1 | AL44: 4 | AM44: 201904 | AN44: 1 | AQ44: 1 | AR44: 9 | AS44: 3 | AU44: 15800000 | AW44: 424000 | AX44: 129000 | AZ44: 2 | BA44: 123.19 | BG44: 2 | BK44: 2 | BN44: 764.24 | BO44: 764.24 | BP44: 5 | CB44: 1 | CD44: 1 | CE44: 1 | CG44: 1 | CH44: 50 | CI44: 100 | CJ44: 123.19 | CK44: 4.106333333 | CL44: 4 | CM44: 5 | CN44: 240 | CO44: 37.33030303 | CP44: 1791.854545 | CQ44: 3371.854545 | CR44: 0.07117744753 | CS44: 61.595 | CT44: 2 | CU44: 180 | CV44: -56.81 | CZ44: 1 | DA44: 2 | DQ44: 1 | DR44: 5.6 | DT44: 1 | DU44: 4 | GV44: 全５区画の分譲地
A45: 100098836381 | B45: 1 | C45: 1 | D45: 1 | E45: （株）エイゼット | F45: 042-316-5501 | J45: 2 | K45: 2019-05-09 | O45: 神奈川県 | P45: 足柄下郡湯河原町 | Q45: 吉浜 | R45: 字柏坂４１－８ | W45: 東海道線 | X45: 熱海 | AF45: 8.7 | AJ45: 1 | AL45: 1 | AQ45: 1 | AS45: 3 | AU45: 13300000 | AW45: 262000 | AX45: 80000 | AZ45: 2 | BA45: 168.23 | CB45: 1 | CD45: 1 | CE45: 12 | CG45: 1 | CH45: 60 | CI45: 200 | CJ45: 336.46 | CK45: 11.21533333 | CL45: 11 | CM45: 5 | CN45: 660 | CO45: 101.9575758 | CP45: 4893.963636 | CQ45: 6223.963636 | CR45: 0.1060417507 | CS45: 100.938 | CT45: 3 | CU45: 270 | CV45: 66.46 | CW45: ! | DP45: 1 | DQ45: 1 | DU45: 6 | EK45: 1 | GU45: 造成完了済、検査済証取得済み | GV45: 開発工事検査済証 西土第６５００１３号 平成３０年７月１９日
A46: 100098836410 | B46: 1 | C46: 1 | D46: 1 | E46: （株）エイゼット | F46: 042-316-5501 | J46: 2 | K46: 2019-05-09 | L46: 2019-05-09 | O46: 神奈川県 | P46: 足柄下郡湯河原町 | Q46: 吉浜 | R46: 字柏坂４１－８ | W46: 東海道線 | X46: 真鶴 | Y46: 12 | AJ46: 1 | AL46: 1 | AQ46: 1 | AS46: 3 | AU46: 12800000 | AW46: 241000 | AX46: 73000 | AZ46: 2 | BA46: 175.66 | CB46: 1 | CD46: 1 | CE46: 12 | CG46: 1 | CH46: 60 | CI46: 200 | CJ46: 351.32 | CK46: 11.71066667 | CL46: 12 | CM46: 5 | CN46: 720 | CO46: 106.4606061 | CP46: 5110.109091 | CQ46: 6390.109091 | CR46: 0.1126741328 | CS46: 105.396 | CT46: 3 | CU46: 270 | CV46: 81.32 | CW46: ! | DP46: 1 | DQ46: 1 | DU46: 6 | EK46: 1 | GU46: 造成完了済、検査済証取得済み | GV46: 開発工事検査済証 西土第６５００１３号 平成３０年７月１９日
A47: 100098836438 | B47: 1 | C47: 1 | D47: 1 | E47: （株）エイゼット | F47: 042-316-5501 | J47: 2 | K47: 2019-05-09 | L47: 2019-05-09 | O47: 神奈川県 | P47: 足柄下郡湯河原町 | Q47: 吉浜 | R47: 字柏坂４１－８ | W47: 東海道線 | X47: 真鶴 | Y47: 12 | AJ47: 1 | AL47: 1 | AQ47: 1 | AS47: 3 | AU47: 14300000 | AW47: 291000 | AX47: 88000 | AZ47: 2 | BA47: 162.91 | CB47: 1 | CD47: 1 | CE47: 12 | CG47: 1 | CH47: 60 | CI47: 200 | CJ47: 325.82 | CK47: 10.86066667 | CL47: 11 | CM47: 5 | CN47: 660 | CO47: 98.73333333 | CP47: 4739.2 | CQ47: 6169.2 | CR47: 0.1069830772 | CS47: 97.746 | CT47: 3 | CU47: 270 | CV47: 55.82 | CW47: ! | DP47: 1 | DQ47: 1 | DU47: 6 | EK47: 1 | GU47: 造成完了済、検査済証取得済み | GV47: 開発工事検査済証 西土第６５００１３号 平成３０年７月１９日
A48: 100098836463 | B48: 1 | C48: 1 | D48: 1 | E48: （株）エイゼット | F48: 042-316-5501 | J48: 2 | K48: 2019-05-09 | L48: 2019-05-09 | O48: 神奈川県 | P48: 足柄下郡湯河原町 | Q48: 吉浜 | R48: 字柏坂４１－８ | W48: 東海道線 | X48: 真鶴 | Y48: 12 | AJ48: 1 | AL48: 1 | AQ48: 1 | AS48: 3 | AU48: 14800000 | AW48: 301000 | AX48: 91000 | AZ48: 2 | BA48: 162.95 | CB48: 1 | CD48: 1 | CE48: 12 | CG48: 1 | CH48: 60 | CI48: 200 | CJ48: 325.9 | CK48: 10.86333333 | CL48: 11 | CM48: 5 | CN48: 660 | CO48: 98.75757576 | CP48: 4740.363636 | CQ48: 6220.363636 | CR48: 0.1061031217 | CS48: 97.77 | CT48: 3 | CU48: 270 | CV48: 55.9 | CW48: ! | DP48: 1 | DQ48: 1 | DU48: 6 | EK48: 1 | GU48: 造成完了済、検査済証取得済み | GV48: 開発工事検査済証 西土第６５００１３号 平成３０年７月１９日
A49: 100098836545 | B49: 1 | C49: 1 | D49: 1 | E49: 浜住研（株） | F49: 045-321-1122 | J49: 2 | K49: 2019-05-09 | O49: 神奈川県 | P49: 横浜市旭区 | Q49: 中沢１丁目 | W49: 相鉄線 | X49: 二俣川 | Y49: 9 | AJ49: 1 | AL49: 2 | AQ49: 1 | AR49: 4 | AS49: 3 | AU49: 34800000 | AW49: 753000 | AX49: 228000 | AZ49: 1 | BA49: 152.91 | BK49: 2 | CB49: 1 | CD49: 1 | CE49: 1 | CH49: 50 | CI49: 100 | CJ49: 152.91 | CK49: 5.097 | CL49: 5 | CM49: 5 | CN49: 300 | CO49: 46.33636364 | CP49: 2224.145455 | CQ49: 5704.145455 | CR49: 0.05259332925 | CS49: 76.455 | CT49: 2 | CU49: 180 | CV49: -27.09 | DP49: 2
A50: 100098836733 | B50: 1 | C50: 1 | D50: 1 | E50: アクティブホーム（株） | F50: 042-709-7270 | G50: 栗原 | H50: 080-3024-4154 | I50: active@k7.dion.ne.jp | J50: 2 | K50: 2019-05-09 | O50: 神奈川県 | P50: 大和市 | Q50: 中央７丁目 | R50: 14 | W50: 相鉄線 | X50: 大和 | Y50: 10 | AJ50: 1 | AL50: 1 | AQ50: 1 | AR50: 4 | AS50: 3 | AU50: 110000000 | AW50: 626000 | AX50: 190000 | AZ50: 1 | BA50: 581.75 | BG50: 2 | BK50: 0 | CB50: 1 | CD50: 1 | CE50: 12 | CH50: 70 | CI50: 200 | CJ50: 1163.5 | CK50: 38.78333333 | CL50: 39 | CM50: 5 | CN50: 2340 | CO50: 352.5757576 | CP50: 16923.63636 | CQ50: 27923.63636 | CR50: 0.08379997395 | CS50: 407.225 | CT50: 13 | CU50: 1170 | CV50: -6.5 | CZ50: 1 | DA50: 2 | DP50: 2 | DQ50: 1 | DR50: 37.7 | DS50: 2 | DT50: 5 | DU50: 12 | DV50: 1 | DW50: 27.8 | DX50: 2 | DY50: 7 | DZ50: 12 | EK50: 1
A51: 100098836866 | B51: 1 | C51: 1 | D51: 1 | E51: （有）豊栄ハウジング | F51: 0463-34-6009 | J51: 2 | K51: 2019-05-09 | L51: 2019-05-09 | O51: 神奈川県 | P51: 平塚市 | Q51: 南金目 | W51: 東海道線 | X51: 平塚 | AA51: 19 | AD51: 6 | AJ51: 2 | AL51: 2 | AQ51: 4 | AU51: 17000000 | AW51: 134000 | AX51: 41000 | AZ51: 1 | BA51: 422 | CB51: 3 | CC51: 1 | CD51: 2 | CE51: 99 | CG51: 1 | CH51: 50 | CI51: 100 | CJ51: 422 | CK51: 14.06666667 | CL51: 14 | CM51: 5 | CN51: 840 | CO51: 127.8787879 | CP51: 6138.181818 | CQ51: 7838.181818 | CR51: 0.1071677105 | CS51: 211 | CT51: 7 | CU51: 630 | CV51: -208 | CZ51: 5 | DA51: 2 | DP51: 1 | DQ51: 1 | EK51: 1
A52: 100098836940 | B52: 1 | C52: 1 | D52: 1 | E52: （株）エイゼット | F52: 042-316-5501 | J52: 2 | K52: 2019-05-09 | L52: 2019-05-09 | O52: 神奈川県 | P52: 足柄下郡湯河原町 | Q52: 吉浜 | R52: 字柏坂４１－８ | W52: 東海道線 | X52: 真鶴 | Y52: 12 | AJ52: 1 | AL52: 1 | AQ52: 1 | AS52: 3 | AU52: 11800000 | AW52: 241000 | AX52: 73000 | AZ52: 2 | BA52: 162.21 | CB52: 1 | CD52: 1 | CE52: 12 | CG52: 1 | CH52: 60 | CI52: 200 | CJ52: 324.42 | CK52: 10.814 | CL52: 11 | CM52: 5 | CN52: 660 | CO52: 98.30909091 | CP52: 4718.836364 | CQ52: 5898.836364 | CR52: 0.1118864738 | CS52: 97.326 | CT52: 3 | CU52: 270 | CV52: 54.42 | CW52: ! | DP52: 1 | DQ52: 1 | DU52: 6 | EK52: 1 | GU52: 造成完了済、検査済証取得済み | GV52: 開発工事検査済証 西土第６５００１３号 平成３０年７月１９日
A53: 100098837018 | B53: 1 | C53: 1 | D53: 1 | E53: 日信地所（株） | F53: 0467-44-3191 | J53: 2 | K53: 2019-05-09 | O53: 神奈川県 | P53: 鎌倉市 | Q53: 西鎌倉３丁目 | W53: 湘南モノレ | X53: 片瀬山 | Y53: 5 | AJ53: 2 | AL53: 2 | AQ53: 5 | AR53: 1 | AU53: 39800000 | AW53: 489000 | AX53: 148000 | AZ53: 1 | BA53: 269.29 | BG53: 2 | BK53: 0 | BT53: 2 | CA53: 3 | CB53: 1 | CD53: 1 | CE53: 1 | CG53: 1 | CH53: 40 | CI53: 80 | CJ53: 215.432 | CK53: 7.181066667 | CL53: 7 | CM53: 5 | CN53: 420 | CO53: 65.28242424 | CP53: 3133.556364 | CQ53: 7113.556364 | CR53: 0.05904219754 | CS53: 107.716 | CT53: 3 | CU53: 270 | CV53: -54.568 | CZ53: 5 | DA53: 2 | DP53: 5 | DQ53: 1 | DR53: 16 | DS53: 2 | DT53: 5 | DU53: 6 | DV53: 1 | DW53: 19 | DX53: 2 | DY53: 7 | DZ53: 5 | EK53: 1
A54: 100098837023 | B54: 1 | C54: 1 | D54: 1 | E54: （株）エイゼット | F54: 042-316-5501 | J54: 2 | K54: 2019-05-09 | L54: 2019-05-09 | O54: 神奈川県 | P54: 足柄下郡湯河原町 | Q54: 吉浜 | R54: 字柏坂４１－８ | W54: 東海道線 | X54: 真鶴 | Y54: 12 | AJ54: 1 | AL54: 1 | AQ54: 1 | AS54: 3 | AU54: 14800000 | AW54: 254000 | AX54: 77000 | AZ54: 2 | BA54: 193.17 | CB54: 1 | CD54: 1 | CE54: 12 | CG54: 1 | CH54: 60 | CI54: 200 | CJ54: 386.34 | CK54: 12.878 | CL54: 13 | CM54: 5 | CN54: 780 | CO54: 117.0727273 | CP54: 5619.490909 | CQ54: 7099.490909 | CR54: 0.1098670327 | CS54: 115.902 | CT54: 3 | CU54: 270 | CV54: 116.34 | CW54: ! | DP54: 1 | DQ54: 1 | DU54: 6 | EK54: 1 | GU54: 造成完了済、検査済証取得済み | GV54: 開発工事検査済証 西土第６５００１３号 平成３０年７月１９日
A55: 100098837193 | B55: 1 | C55: 1 | D55: 1 | E55: （有）信栄ハウジング | F55: 0467-58-0005 | J55: 2 | K55: 2019-05-09 | L55: 2019-05-09 | O55: 神奈川県 | P55: 茅ヶ崎市 | Q55: 下町屋２丁目 | W55: 東海道線 | X55: 茅ヶ崎 | AA55: 10 | AD55: 4 | AJ55: 1 | AL55: 2 | AQ55: 1 | AU55: 23900000 | AW55: 614000 | AX55: 186000 | BA55: 128.79 | CE55: 1 | CJ55: 128.79 | CK55: 4.293 | CL55: 4 | CM55: 5 | CN55: 240 | CO55: 39.02727273 | CP55: 1873.309091 | CQ55: 4263.309091 | CR55: 0.05629429978 | CS55: 77.274 | CT55: 2 | CU55: 180 | CV55: -51.21 | DP55: 1 | DQ55: 2 | DT55: 1 | EK55: 1
A56: 100098837204 | B56: 1 | C56: 1 | D56: 1 | E56: （有）信栄ハウジング | F56: 0467-58-0005 | J56: 2 | K56: 2019-05-09 | L56: 2019-05-09 | O56: 神奈川県 | P56: 茅ヶ崎市 | Q56: 南湖４丁目 | W56: 東海道線 | X56: 茅ヶ崎 | Y56: 16 | AJ56: 1 | AQ56: 1 | AU56: 26900000 | AW56: 592000 | AX56: 179000 | BA56: 150.45 | CB56: 1 | CD56: 1 | CE56: 1 | CH56: 50 | CI56: 100 | CJ56: 150.45 | CK56: 5.015 | CL56: 5 | CM56: 5 | CN56: 300 | CO56: 45.59090909 | CP56: 2188.363636 | CQ56: 4878.363636 | CR56: 0.06149603071 | CS56: 75.225 | CT56: 2 | CU56: 180 | CV56: -29.55 | CZ56: 1 | DA56: 2 | DP56: 1 | DQ56: 1 | DT56: 1 | DU56: 4.2
A57: 100098837698 | B57: 1 | C57: 1 | D57: 1 | E57: （株）フォーシーズン | F57: 03-5774-0681 | J57: 2 | K57: 2019-05-09 | L57: 2019-05-09 | O57: 神奈川県 | P57: 藤沢市 | Q57: 善行坂２丁目 | R57: 2019-10-16 | W57: 江ノ島線 | X57: 善行 | Y57: 15 | Z57: 1200 | AJ57: 2 | AL57: 2 | AQ57: 4 | AR57: 1 | AU57: 10800000 | AW57: 287000 | AX57: 87000 | AZ57: 1 | BA57: 124.78 | BG57: 2 | CA57: 1 | CB57: 1 | CD57: 1 | CE57: 1 | CG57: 1 | CH57: 50 | CI57: 80 | CJ57: 99.824 | CK57: 3.327466667 | CL57: 3 | CM57: 5 | CN57: 180 | CO57: 30.24969697 | CP57: 1451.985455 | CQ57: 2531.985455 | CR57: 0.07109045578 | CS57: 62.39 | CT57: 2 | CU57: 180 | CV57: -80.176 | DQ57: 1 | DR57: 2.3 | DT57: 3 | DU57: 5.3 | GV57: 現状有姿売買・建物瑕疵担保免責
A58: 100098837986 | B58: 1 | C58: 1 | D58: 1 | E58: （株）神奈川住空間 | F58: 045-680-0017 | J58: 2 | K58: 2019-05-09 | L58: 2019-05-09 | O58: 神奈川県 | P58: 横浜市南区 | Q58: 唐沢 | W58: 京浜東北線 | X58: 石川町 | Y58: 15 | AJ58: 1 | AL58: 2 | AQ58: 1 | AU58: 14800000 | AW58: 286000 | AX58: 87000 | BA58: 171.6 | CB58: 1 | CD58: 1 | CE58: 1 | CH58: 60 | CI58: 100 | CJ58: 171.6 | CK58: 5.72 | CL58: 6 | CM58: 5 | CN58: 360 | CO58: 52 | CP58: 2496 | CQ58: 3976 | CR58: 0.09054325956 | CS58: 102.96 | CT58: 3 | CU58: 270 | CV58: -98.4 | DA58: 2 | DQ58: 1 | DU58: 1.8 | DV58: 2 | DZ58: 2.6 | GU58: アパート用地に最適
A59: 100098838197 | B59: 1 | C59: 1 | D59: 1 | E59: （株）神奈川住空間 | F59: 045-680-0017 | J59: 2 | K59: 2019-05-09 | O59: 神奈川県 | P59: 横浜市保土ケ谷区 | Q59: 仏向町 | W59: 横須賀線 | X59: 保土ヶ谷 | AA59: 12 | AC59: 花見台西 | AD59: 2 | AJ59: 1 | AL59: 1 | AQ59: 1 | AU59: 24800000 | AW59: 669000 | AX59: 203000 | BA59: 122.67 | BK59: 1 | BM59: 0.14 | CB59: 1 | CD59: 1 | CE59: 1 | CG59: 1 | CH59: 50 | CI59: 100 | CJ59: 122.67 | CK59: 4.089 | CL59: 4 | CM59: 5 | CN59: 240 | CO59: 37.17272727 | CP59: 1784.290909 | CQ59: 4264.290909 | CR59: 0.05628133847 | CS59: 61.335 | CT59: 2 | CU59: 180 | CV59: -57.33 | DA59: 1 | DQ59: 2 | DT59: 1 | DU59: 4
A60: 100098838318 | B60: 1 | C60: 1 | D60: 1 | E60: （株）神奈川住空間 | F60: 045-680-0017 | J60: 2 | K60: 2019-05-09 | L60: 2019-05-09 | O60: 神奈川県 | P60: 横浜市西区 | Q60: 浅間台 | W60: 東海道線 | X60: 横浜 | Y60: 24 | AJ60: 1 | AL60: 1 | AQ60: 1 | AU60: 47800000 | AW60: 1042000 | AX60: 316000 | BA60: 151.73 | CB60: 1 | CD60: 1 | CE60: 1 | CG60: 1 | CH60: 60 | CI60: 100 | CJ60: 151.73 | CK60: 5.057666667 | CL60: 5 | CM60: 5 | CN60: 300 | CO60: 45.97878788 | CP60: 2206.981818 | CQ60: 6986.981818 | CR60: 0.04293699451 | CS60: 91.038 | CT60: 3 | CU60: 270 | CV60: -118.27 | DA60: 1
A61: 100098838435 | B61: 1 | C61: 1 | D61: 1 | E61: （株）Ｊ－ｓｔｙｌｅ | F61: 03-5213-7333 | J61: 2 | K61: 2019-05-09 | O61: 神奈川県 | P61: 川崎市多摩区 | Q61: 南生田６丁目 | W61: 小田急線 | X61: 生田 | Y61: 21 | AJ61: 2 | AL61: 2 | AQ61: 5 | AR61: 2 | AU61: 20800000 | AW61: 237000 | AX61: 72000 | BA61: 291 | CA61: 3 | CB61: 4 | CD61: 1 | CE61: 1 | CG61: 1 | CH61: 50 | CI61: 100 | CJ61: 291 | CK61: 9.7 | CL61: 10 | CM61: 5 | CN61: 600 | CO61: 88.18181818 | CP61: 4232.727273 | CQ61: 6312.727273 | CR61: 0.09504608295 | CS61: 145.5 | CT61: 4 | CU61: 360 | CV61: -69 | CZ61: 5 | DA61: 2 | DP61: 5 | EK61: 1
A62: 100098838985 | B62: 1 | C62: 1 | D62: 1 | E62: （株）アートハウジング | F62: 042-776-0800 | J62: 2 | K62: 2019-05-09 | O62: 神奈川県 | P62: 相模原市中央区 | Q62: 上溝 | W62: 相模線 | X62: 上溝 | Y62: 23 | AL62: 2 | AQ62: 4 | AR62: 1 | AU62: 39900000 | AW62: 413000 | AX62: 125000 | AZ62: 1 | BA62: 320 | BG62: 2 | CJ62: 320 | CK62: 10.66666667 | CL62: 11 | CM62: 5 | CN62: 660 | CO62: 96.96969697 | CP62: 4654.545455 | CQ62: 8644.545455 | CR62: 0.07634872226 | CS62: 192 | CT62: 6 | CU62: 540 | CV62: -220 | DA62: 2 | DP62: 1 | DQ62: 1 | EK62: 1
A63: 100098838995 | B63: 1 | C63: 1 | D63: 1 | E63: （株）アートハウジング | F63: 042-776-0800 | J63: 2 | K63: 2019-05-09 | O63: 神奈川県 | P63: 相模原市緑区 | Q63: 相原５丁目 | W63: 横浜線 | X63: 相原 | Y63: 26 | AJ63: 2 | AL63: 2 | AQ63: 1 | AS63: 3 | AU63: 19800000 | AW63: 529000 | AX63: 160000 | AZ63: 1 | BA63: 123.85 | BG63: 2 | BP63: 1 | CB63: 1 | CD63: 1 | CE63: 1 | CG63: 1 | CH63: 50 | CI63: 80 | CJ63: 99.08 | CK63: 3.302666667 | CL63: 3 | CM63: 5 | CN63: 180 | CO63: 30.02424242 | CP63: 1441.163636 | CQ63: 3421.163636 | CR63: 0.05261367743 | CS63: 61.925 | CT63: 2 | CU63: 180 | CV63: -80.92 | CZ63: 1 | DA63: 1 | DP63: 1 | DQ63: 1 | DR63: 12.4 | DT63: 7 | DU63: 5 | EK63: 1
A64: 100098839450 | B64: 1 | C64: 1 | D64: 1 | E64: （株）栄建ハウス | F64: 045-989-5722 | G64: 佐藤 | I64: sato@eikenhouse.jp | J64: 2 | K64: 2019-05-09 | L64: 2019-05-09 | O64: 神奈川県 | P64: 横浜市港北区 | Q64: 樽町４丁目 | W64: 東横線 | X64: 綱島 | Y64: 19 | AG64: 東横線「大倉山」駅 | AH64: 19 | AJ64: 1 | AL64: 2 | AQ64: 1 | AR64: 4 | AU64: 35800000 | AW64: 949000 | AX64: 287000 | AZ64: 2 | BA64: 124.83 | BG64: 1 | CA64: 3 | CB64: 1 | CC64: 1 | CD64: 1 | CE64: 1 | CG64: 1 | CH64: 50 | CI64: 100 | CJ64: 124.83 | CK64: 4.161 | CL64: 4 | CM64: 5 | CN64: 240 | CO64: 37.82727273 | CP64: 1815.709091 | CQ64: 5395.709091 | CR64: 0.04447978865 | CS64: 62.415 | CT64: 2 | CU64: 180 | CV64: -55.17 | CZ64: 1 | DA64: 1 | DP64: 1 | DQ64: 2 | DS64: 1 | DT64: 7 | DU64: 4 | EK64: 2
A65: 100098839573 | B65: 1 | C65: 1 | D65: 1 | E65: （株）栄建ハウス | F65: 045-989-5722 | G65: 佐藤 | I65: sato@eikenhouse.jp | J65: 2 | K65: 2019-05-09 | L65: 2019-05-09 | O65: 神奈川県 | P65: 横浜市港北区 | Q65: 樽町４丁目 | W65: 東横線 | X65: 綱島 | Y65: 19 | AG65: 東横線「大倉山」駅 | AH65: 19 | AJ65: 1 | AL65: 2 | AQ65: 1 | AR65: 4 | AU65: 34800000 | AW65: 941000 | AX65: 285000 | AZ65: 2 | BA65: 122.34 | BG65: 2 | CA65: 3 | CB65: 1 | CC65: 1 | CD65: 1 | CE65: 1 | CG65: 1 | CH65: 50 | CI65: 100 | CJ65: 122.34 | CK65: 4.078 | CL65: 4 | CM65: 5 | CN65: 240 | CO65: 37.07272727 | CP65: 1779.490909 | CQ65: 5259.490909 | CR65: 0.04563179291 | CS65: 61.17 | CT65: 2 | CU65: 180 | CV65: -57.66 | CZ65: 1 | DA65: 1 | DP65: 1 | DQ65: 2 | DS65: 1 | DT65: 7 | DU65: 4 | EK65: 2
A66: 100098839576 | B66: 1 | C66: 1 | D66: 1 | E66: （株）飯田産業 戸塚店 | F66: 045-828-5888 | G66: 宮路和也・奥山志穂 | I66: totsuka@iidasangyo.co.jp | J66: 2 | K66: 2019-05-09 | O66: 神奈川県 | P66: 逗子市 | Q66: 久木７丁目 | R66: Ｅ区画 | W66: 横須賀線 | X66: 逗子 | Y66: 16 | AQ66: 1 | AR66: 4 | AU66: 32900000 | AW66: 788000 | AX66: 239000 | AZ66: 2 | BA66: 138.1 | CE66: 1 | CJ66: 138.1 | CK66: 4.603333333 | CL66: 5 | CM66: 5 | CN66: 300 | CO66: 41.84848485 | CP66: 2008.727273 | CQ66: 5298.727273 | CR66: 0.05661736952 | CS66: 82.86 | CT66: 2 | CU66: 180 | CV66: -41.9 | DA66: 2 | GU66: 広告厳禁
A67: 100098839717 | B67: 1 | C67: 1 | D67: 1 | E67: （株）マーケットトラスト | F67: 046-200-0838 | J67: 2 | K67: 2019-05-09 | O67: 神奈川県 | P67: 大和市 | Q67: 深見 | U67: ３３７４－２、３３７４－３、他 | W67: 江ノ島線 | X67: 大和 | Y67: 14 | AJ67: 1 | AL67: 2 | AQ67: 1 | AS67: 3 | AU67: 26000000 | AW67: 693000 | AX67: 210000 | AZ67: 1 | BA67: 124.1 | CB67: 1 | CD67: 1 | CE67: 1 | CG67: 1 | CH67: 50 | CI67: 100 | CJ67: =IF(ISBLANK(CI67),100,CI67)/100*BA67 -> 124.1 | CK67: =CJ67/30 -> 4.136666667 | CL67: =ROUND(CK67,0) -> 4 | CM67: 5 | CN67: =CM67*12*CL67 -> 240 | CO67: =CJ67/3.3 -> 37.60606061 | CP67: =CO67*40*1.2 -> 1805.090909 | CQ67: =CP67+(AU67/10000) -> 4405.090909 | CR67: =CN67/CQ67 -> 0.05448241704 | CS67: =IF(ISBLANK(CH67),60,CH67)/100*BA67 -> 62.05 | CT67: =ROUNDDOWN((CS67/30),0) -> 2 | CU67: =CT67*30*3 -> 180 | CV67: =CJ67-CU67 -> -55.9 | CW67: =IF(CV67>0, "!","") ->  | DA67: 2 | DP67: 1 | DQ67: 1 | DR67: 8.1 | DT67: 3 | DU67: 6 | GU67: Ｎｏ．５／全１３区画
A68: 100098839858 | B68: 1 | C68: 1 | D68: 1 | E68: （株）マーケットトラスト | F68: 046-200-0838 | J68: 2 | K68: 2019-05-09 | O68: 神奈川県 | P68: 大和市 | Q68: 深見 | U68: ３３７４－２、３３７４－３、他 | W68: 江ノ島線 | X68: 大和 | Y68: 14 | AJ68: 1 | AL68: 2 | AQ68: 1 | AS68: 3 | AU68: 26000000 | AW68: 686000 | AX68: 208000 | AZ68: 1 | BA68: 125.32 | CB68: 1 | CD68: 1 | CE68: 1 | CG68: 1 | CH68: 50 | CI68: 100 | CJ68: 125.32 | CK68: 4.177333333 | CL68: 4 | CM68: 5 | CN68: 240 | CO68: 37.97575758 | CP68: 1822.836364 | CQ68: 4422.836364 | CR68: 0.05426382083 | CS68: 62.66 | CT68: 2 | CU68: 180 | CV68: -54.68 | DA68: 2 | DP68: 1 | DQ68: 1 | DR68: 12.1 | DT68: 3 | DU68: 6 | GU68: Ｎｏ．６／全１３区画
A69: 100098839924 | B69: 1 | C69: 1 | D69: 1 | E69: （株）マーケットトラスト | F69: 046-200-0838 | J69: 2 | K69: 2019-05-09 | O69: 神奈川県 | P69: 大和市 | Q69: 深見 | U69: ３３７４－２、３３７４－３、他 | W69: 江ノ島線 | X69: 大和 | Y69: 14 | AJ69: 1 | AL69: 2 | AQ69: 1 | AS69: 3 | AU69: 29800000 | AW69: 821000 | AX69: 249000 | AZ69: 1 | BA69: 120.12 | CB69: 1 | CD69: 1 | CE69: 1 | CG69: 1 | CH69: 50 | CI69: 100 | CJ69: 120.12 | CK69: 4.004 | CL69: 4 | CM69: 5 | CN69: 240 | CO69: 36.4 | CP69: 1747.2 | CQ69: 4727.2 | CR69: 0.05077001185 | CS69: 60.06 | CT69: 2 | CU69: 180 | CV69: -59.88 | DA69: 2 | DP69: 1 | DQ69: 1 | DR69: 7.7 | DT69: 5 | DU69: 6 | GU69: Ｎｏ．８／全１３区画
A70: 100098840044 | B70: 1 | C70: 1 | D70: 1 | E70: （株）ＷＡＬＬＭＡＴＥ不動産 | F70: 03-5545-5737 | G70: 柳澤 | H70: 03-5545-5737 | I70: yanagisawa@wallmate.co.jp | J70: 2 | K70: 2019-05-09 | O70: 神奈川県 | P70: 横浜市港北区 | Q70: 日吉本町５丁目 | W70: 横浜グリー | X70: 日吉本町 | Y70: 3 | AJ70: 2 | AL70: 1 | AQ70: 4 | AR70: 1 | AU70: 89800000 | AW70: 1616000 | AX70: 489000 | AZ70: 1 | BA70: 183.71 | BG70: 2 | BK70: 0 | BT70: 2 | CA70: 3 | CB70: 1 | CC70: 1 | CD70: 1 | CE70: 1 | CG70: 1 | CH70: 60 | CI70: 100 | CJ70: 183.71 | CK70: 6.123666667 | CL70: 6 | CM70: 5 | CN70: 360 | CO70: 55.66969697 | CP70: 2672.145455 | CQ70: 11652.14545 | CR70: 0.03089559785 | CS70: 110.226 | CT70: 3 | CU70: 270 | CV70: -86.29 | CZ70: 2 | DA70: 2 | DP70: 2 | DQ70: 1 | DU70: 4.5 | EK70: 1
A71: 100098840060 | B71: 1 | C71: 1 | D71: 1 | E71: （株）マーケットトラスト | F71: 046-200-0838 | J71: 2 | K71: 2019-05-09 | O71: 神奈川県 | P71: 大和市 | Q71: 深見 | U71: ３３７４－２、３３７４－３、他 | W71: 江ノ島線 | X71: 大和 | Y71: 14 | AJ71: 1 | AL71: 2 | AQ71: 1 | AS71: 3 | AU71: 29800000 | AW71: 773000 | AX71: 234000 | AZ71: 1 | BA71: 127.58 | CB71: 1 | CD71: 1 | CE71: 1 | CG71: 1 | CH71: 50 | CI71: 100 | CJ71: 127.58 | CK71: 4.252666667 | CL71: 4 | CM71: 5 | CN71: 240 | CO71: 38.66060606 | CP71: 1855.709091 | CQ71: 4835.709091 | CR71: 0.0496307771 | CS71: 63.79 | CT71: 2 | CU71: 180 | CV71: -52.42 | DA71: 2 | DP71: 1 | DQ71: 1 | DR71: 7.7 | DT71: 5 | DU71: 6 | GU71: Ｎｏ．９／全１３区画
A72: 100098840224 | B72: 1 | C72: 1 | D72: 1 | E72: 住友不動産販売（株） 平塚営業センター | F72: 0463-25-5171 | G72: 加藤一朗 | H72: 0463-25-5171 | J72: 2 | K72: 2019-05-09 | L72: 2019-05-12 | O72: 神奈川県 | P72: 足柄下郡真鶴町 | Q72: 真鶴 | W72: 東海道線 | X72: 真鶴 | Y72: 9 | Z72: 720 | AJ72: 2 | AL72: 2 | AQ72: 3 | AR72: 1 | AU72: 32800000 | AW72: 70000 | AX72: 22000 | AZ72: 1 | BA72: 1557.46 | BG72: 2 | BT72: 2 | CA72: 3 | CB72: 1 | CC72: 1 | CD72: 3 | CE72: 99 | CG72: 1 | CH72: 50 | CI72: 100 | CJ72: 1557.46 | CK72: 51.91533333 | CL72: 52 | CM72: 5 | CN72: 3120 | CO72: 471.9575758 | CP72: 22653.96364 | CQ72: 25933.96364 | CR72: 0.1203055593 | CS72: 778.73 | CT72: 25 | CU72: 2250 | CV72: -692.54 | CZ72: 2 | DA72: 2 | DP72: 1 | DQ72: 1 | DR72: 50 | DS72: 2 | DT72: 3 | DU72: 9 | DZ72: 0 | EE72: 0 | EJ72: 0 | EK72: 1
A73: 100098840271 | B73: 1 | C73: 1 | D73: 1 | E73: （株）マーケットトラスト | F73: 046-200-0838 | J73: 2 | K73: 2019-05-09 | O73: 神奈川県 | P73: 大和市 | Q73: 深見 | U73: ３３７４－２、３３７４－３、他 | W73: 江ノ島線 | X73: 大和 | Y73: 14 | AJ73: 1 | AL73: 2 | AQ73: 1 | AS73: 3 | AU73: 29000000 | AW73: 778000 | AX73: 236000 | AZ73: 1 | BA73: 123.38 | CB73: 1 | CD73: 1 | CE73: 1 | CG73: 1 | CH73: 50 | CI73: 100 | CJ73: 123.38 | CK73: 4.112666667 | CL73: 4 | CM73: 5 | CN73: 240 | CO73: 37.38787879 | CP73: 1794.618182 | CQ73: 4694.618182 | CR73: 0.05112236836 | CS73: 61.69 | CT73: 2 | CU73: 180 | CV73: -56.62 | DA73: 2 | DP73: 1 | DQ73: 1 | DR73: 6.8 | DT73: 5 | DU73: 6 | GU73: Ｎｏ．１０／全１３区画
A74: 100098840308 | B74: 1 | C74: 1 | D74: 1 | E74: 住友不動産販売（株） 新宿営業センター | F74: 03-3346-1078 | G74: 高橋淳 | H74: 03-3346-1078 | J74: 2 | K74: 2019-05-09 | L74: 2019-05-13 | O74: 神奈川県 | P74: 鎌倉市 | Q74: 城廻 | W74: 東海道線 | X74: 大船 | AA74: 9 | AC74: 城廻中村 | AD74: 2 | AE74: 160 | AJ74: 2 | AL74: 2 | AQ74: 3 | AR74: 1 | AU74: 23500000 | AW74: 473000 | AX74: 143000 | AZ74: 1 | BA74: 164.54 | BG74: 2 | CA74: 3 | CB74: 1 | CC74: 1 | CD74: 1 | CE74: 1 | CG74: 1 | CH74: 40 | CI74: 80 | CJ74: 131.632 | CK74: 4.387733333 | CL74: 4 | CM74: 5 | CN74: 240 | CO74: 39.88848485 | CP74: 1914.647273 | CQ74: 4264.647273 | CR74: 0.05627663548 | CS74: 65.816 | CT74: 2 | CU74: 180 | CV74: -48.368 | CZ74: 1 | DA74: 2 | DP74: 1 | DQ74: 1 | DR74: 9.7 | DS74: 2 | DT74: 7 | DU74: 4.8 | DZ74: 0 | EE74: 0 | EJ74: 0 | EK74: 1 | GU74: 法２２条区域 | GV74: 鎌倉城廻自治会住民協定により土地分割不可
A75: 100098840342 | B75: 1 | C75: 1 | D75: 1 | E75: 住友不動産販売（株） 海老名営業センター | F75: 046-236-1722 | G75: 加藤 浩輝 | H75: 046-236-1722 | J75: 2 | K75: 2019-05-09 | L75: 2019-05-12 | O75: 神奈川県 | P75: 海老名市 | Q75: 上郷３丁目 | W75: 小田急線 | X75: 海老名 | Y75: 23 | Z75: 1840 | AJ75: 2 | AL75: 2 | AQ75: 3 | AR75: 1 | AU75: 21800000 | AW75: 545000 | AX75: 165000 | AZ75: 1 | BA75: 132.26 | BG75: 1 | BH75: 10.71 | BT75: 1 | BU75: 42.86 | CA75: 3 | CB75: 1 | CC75: 1 | CD75: 1 | CE75: 12 | CG75: 1 | CH75: 60 | CI75: 200 | CJ75: 264.52 | CK75: 8.817333333 | CL75: 9 | CM75: 5 | CN75: 540 | CO75: 80.15757576 | CP75: 3847.563636 | CQ75: 6027.563636 | CR75: 0.08958843615 | CS75: 79.356 | CT75: 2 | CU75: 180 | CV75: 84.52 | CW75: ! | CZ75: 1 | DA75: 2 | DP75: 1 | DQ75: 1 | DR75: 2 | DS75: 2 | DT75: 3 | DU75: 9 | DZ75: 0 | EE75: 0 | EJ75: 0 | EK75: 1 | GQ75: ファミリーマート海老名下今泉店 | GR75: 650 | GS75: 9 | GT75: 1
A76: 100098840399 | B76: 1 | C76: 1 | D76: 1 | E76: 住友不動産販売（株） 港南台営業センター | F76: 045-833-3141 | G76: 澤宏一朗 | H76: 045-833-3141 | J76: 2 | K76: 2019-05-09 | L76: 2019-05-12 | O76: 神奈川県 | P76: 横浜市栄区 | Q76: 本郷台２丁目 | W76: 根岸線 | X76: 本郷台 | Y76: 11 | Z76: 880 | AJ76: 2 | AL76: 2 | AQ76: 3 | AR76: 1 | AU76: 42800000 | AW76: 774000 | AX76: 234000 | AZ76: 1 | BA76: 182.98 | BG76: 2 | BT76: 2 | CA76: 3 | CB76: 1 | CC76: 1 | CD76: 1 | CE76: 1 | CG76: 1 | CH76: 40 | CI76: 80 | CJ76: 146.384 | CK76: 4.879466667 | CL76: 5 | CM76: 5 | CN76: 300 | CO76: 44.35878788 | CP76: 2129.221818 | CQ76: 6409.221818 | CR76: 0.04680755457 | CS76: 73.192 | CT76: 2 | CU76: 180 | CV76: -33.616 | CZ76: 1 | DA76: 2 | DP76: 2 | DQ76: 1 | DR76: 12.8 | DS76: 2 | DT76: 5 | DU76: 6.5 | DV76: 1 | DW76: 8.6 | DX76: 2 | DY76: 3 | DZ76: 15 | EE76: 0 | EJ76: 0 | EK76: 1 | GQ76: ビッグ・エー 本郷台店 | GR76: 270 | GS76: 4 | GT76: 1
A77: 100098840403 | B77: 1 | C77: 1 | D77: 1 | E77: 住友不動産販売（株） 二俣川営業センター | F77: 045-362-1261 | G77: 守谷秀樹 | H77: 045-362-1261 | J77: 2 | K77: 2019-05-09 | O77: 神奈川県 | P77: 横浜市旭区 | Q77: 南本宿町 | W77: 相鉄線 | X77: 二俣川 | Y77: 20 | Z77: 1600 | AJ77: 2 | AL77: 2 | AQ77: 3 | AR77: 1 | AU77: 35000000 | AW77: 494000 | AX77: 150000 | AZ77: 1 | BA77: 234.34 | BG77: 2 | BT77: 2 | CA77: 3 | CB77: 1 | CC77: 1 | CD77: 1 | CE77: 99 | CG77: 1 | CH77: 50 | CI77: 80 | CJ77: 187.472 | CK77: 6.249066667 | CL77: 6 | CM77: 5 | CN77: 360 | CO77: 56.80969697 | CP77: 2726.865455 | CQ77: 6226.865455 | CR77: 0.0578140001 | CS77: 117.17 | CT77: 3 | CU77: 270 | CV77: -82.528 | CZ77: 1 | DA77: 2 | DP77: 1 | DQ77: 1 | DR77: 10 | DS77: 2 | DT77: 7 | DU77: 4 | DZ77: 0 | EE77: 0 | EJ77: 0 | EK77: 1
A78: 100098840407 | B78: 1 | C78: 1 | D78: 1 | E78: 住友不動産販売（株） 二俣川営業センター | F78: 045-362-1261 | G78: 渡辺俊一 | H78: 045-362-1261 | J78: 2 | K78: 2019-05-09 | O78: 神奈川県 | P78: 横浜市旭区 | Q78: 東希望が丘 | W78: 相鉄線 | X78: 希望ヶ丘 | Y78: 10 | Z78: 800 | AJ78: 1 | AL78: 2 | AQ78: 5 | AR78: 1 | AU78: 39800000 | AW78: 1000000 | AX78: 303000 | AZ78: 2 | BA78: 131.59 | CA78: 3 | CB78: 1 | CD78: 1 | CE78: 1 | CH78: 40 | CI78: 80 | CJ78: 105.272 | CK78: 3.509066667 | CL78: 4 | CM78: 5 | CN78: 240 | CO78: 31.90060606 | CP78: 1531.229091 | CQ78: 5511.229091 | CR78: 0.04354745485 | CS78: 52.636 | CT78: 1 | CU78: 90 | CV78: 15.272 | CW78: ! | CZ78: 1 | DA78: 2 | DP78: 1 | DQ78: 1 | DR78: 6.8 | DS78: 2 | DT78: 6 | DU78: 7.3 | DZ78: 0 | EE78: 0 | EJ78: 0 | EK78: 1
A79: 100098840422 | B79: 1 | C79: 1 | D79: 1 | E79: 住友不動産販売（株） 東戸塚営業センター | F79: 045-824-6001 | G79: 水元 大介 | H79: 045-824-6001 | J79: 2 | K79: 2019-05-09 | L79: 2019-05-13 | M79: 2018-11-17 | O79: 神奈川県 | P79: 横浜市南区 | Q79: 六ツ川２丁目 | W79: 京浜急行線 | X79: 弘明寺 | AA79: 4 | AC79: 上六ツ川 | AD79: 3 | AE79: 240 | AJ79: 1 | AL79: 3 | AM79: 201911 | AN79: 3 | AQ79: 3 | AR79: 1 | AU79: 26800000 | AW79: 602000 | AX79: 182000 | AZ79: 1 | BA79: 147.29 | BG79: 2 | BK79: 1 | BM79: 8.09 | BT79: 2 | CA79: 3 | CB79: 1 | CD79: 1 | CE79: 1 | CF79: 12 | CG79: 1 | CH79: 50 | CI79: 100 | CJ79: 147.29 | CK79: 4.909666667 | CL79: 5 | CM79: 5 | CN79: 300 | CO79: 44.63333333 | CP79: 2142.4 | CQ79: 4822.4 | CR79: 0.06220968812 | CS79: 73.645 | CT79: 2 | CU79: 180 | CV79: -32.71 | CZ79: 1 | DA79: 1 | DP79: 1 | DQ79: 1 | DR79: 7.1 | DS79: 2 | DT79: 4 | DU79: 2.9 | DZ79: 0 | EE79: 0 | EJ79: 0 | GQ79: セブンイレブン横浜六ツ川２丁目店 | GR79: 220 | GS79: 3 | GT79: 1 | GV79: 第１種低層住居専用地域建ぺい率５０％積率１００％
A80: 100098840433 | B80: 1 | C80: 1 | D80: 1 | E80: 住友不動産販売（株） 茅ヶ崎営業センター | F80: 0467-87-7721 | G80: 遠藤 暁 | H80: 0467-87-7721 | J80: 2 | K80: 2019-05-09 | O80: 神奈川県 | P80: 高座郡寒川町 | Q80: 一之宮２丁目 | W80: 相模線 | X80: 寒川 | Y80: 11 | Z80: 880 | AJ80: 2 | AL80: 2 | AQ80: 3 | AR80: 1 | AU80: 34800000 | AW80: 393000 | AX80: 119000 | AZ80: 1 | BA80: 293 | CA80: 3 | CB80: 1 | CD80: 1 | CE80: 12 | CH80: 60 | CI80: 200 | CJ80: 586 | CK80: 19.53333333 | CL80: 20 | CM80: 5 | CN80: 1200 | CO80: 177.5757576 | CP80: 8523.636364 | CQ80: 12003.63636 | CR80: 0.09996970615 | CS80: 175.8 | CT80: 5 | CU80: 450 | CV80: 136 | CW80: ! | DA80: 2 | DP80: 1 | DQ80: 1 | DR80: 10.1 | DS80: 2 | DT80: 7 | DU80: 16 | DZ80: 0 | EE80: 0 | EJ80: 0 | EK80: 1
A81: 100098840455 | B81: 1 | C81: 1 | D81: 1 | E81: 住友不動産販売（株） 鎌倉営業センター | F81: 0467-25-5311 | G81: 鈴木将介 | H81: 0467-25-5311 | J81: 2 | K81: 2019-05-09 | L81: 2019-05-11 | O81: 神奈川県 | P81: 鎌倉市 | Q81: 常盤 | W81: 横須賀線 | X81: 鎌倉 | AA81: 5 | AC81: 一向堂 | AD81: 6 | AE81: 480 | AJ81: 2 | AL81: 2 | AQ81: 3 | AR81: 1 | AU81: 42800000 | AW81: 533000 | AX81: 162000 | AZ81: 1 | BA81: 265.48 | CA81: 3 | CB81: 1 | CD81: 1 | CE81: 1 | CH81: 40 | CI81: 80 | CJ81: 212.384 | CK81: 7.079466667 | CL81: 7 | CM81: 5 | CN81: 420 | CO81: 64.35878788 | CP81: 3089.221818 | CQ81: 7369.221818 | CR81: 0.05699380618 | CS81: 106.192 | CT81: 3 | CU81: 270 | CV81: -57.616 | CZ81: 2 | DA81: 2 | DP81: 2 | DQ81: 1 | DR81: 11 | DS81: 2 | DT81: 5 | DU81: 6 | DV81: 1 | DW81: 14 | DX81: 2 | DY81: 7 | DZ81: 6 | EE81: 0 | EJ81: 0
A82: 100098840596 | B82: 1 | C82: 1 | D82: 1 | E82: （株）三春情報センター 大船駅前店 | F82: 0467-42-6133 | G82: 前田 哲生 | J82: 2 | K82: 2019-05-09 | O82: 神奈川県 | P82: 横浜市栄区 | Q82: 桂台西１丁目 | W82: 横須賀線 | X82: 大船 | AA82: 16 | AD82: 6 | AJ82: 2 | AL82: 2 | AQ82: 5 | AR82: 1 | AU82: 32800000 | AW82: 383000 | AX82: 116000 | AZ82: 1 | BA82: 283.39 | BG82: 2 | CB82: 1 | CD82: 1 | CE82: 1 | CH82: 40 | CI82: 80 | CJ82: 226.712 | CK82: 7.557066667 | CL82: 8 | CM82: 5 | CN82: 480 | CO82: 68.70060606 | CP82: 3297.629091 | CQ82: 6577.629091 | CR82: 0.07297462252 | CS82: 113.356 | CT82: 3 | CU82: 270 | CV82: -43.288
A83: 100098840649 | B83: 1 | C83: 1 | D83: 1 | E83: （株）マーケットトラスト | F83: 046-200-0838 | J83: 2 | K83: 2019-05-09 | O83: 神奈川県 | P83: 海老名市 | Q83: 上今泉１丁目 | W83: 小田急線 | X83: 座間 | Y83: 20 | AJ83: 1 | AL83: 2 | AQ83: 1 | AS83: 3 | AU83: 26800000 | AW83: 487000 | AX83: 148000 | AZ83: 2 | BA83: 182.07 | CB83: 3 | CD83: 1 | CE83: 12 | CG83: 1 | CH83: 60 | CI83: 200 | CJ83: 364.14 | CK83: 12.138 | CL83: 12 | CM83: 5 | CN83: 720 | CO83: 110.3454545 | CP83: 5296.581818 | CQ83: 7976.581818 | CR83: 0.09026422801 | CS83: 109.242 | CT83: 3 | CU83: 270 | CV83: 94.14 | CW83: ! | CZ83: 1 | DA83: 2 | DQ83: 1 | DR83: 27 | DT83: 8 | DU83: 5.5 | GV83: 地積更正登記及び地目変更登記は行いません。
A84: 100098840678 | B84: 1 | C84: 1 | D84: 1 | E84: 日本住宅流通（株） 埼玉営業所 | F84: 048-601-1626 | G84: 小田 | J84: 2 | K84: 2019-05-09 | O84: 神奈川県 | P84: 川崎市幸区 | Q84: 小倉２丁目 | W84: 横須賀線 | X84: 新川崎 | Y84: 23 | AA84: 15 | AB84: 川崎市営バス | AC84: 南加瀬交番前 | AD84: 2 | AJ84: 2 | AL84: 2 | AQ84: 4 | AR84: 1 | AU84: 99800000 | AW84: 1254000 | AX84: 380000 | AZ84: 1 | BA84: 263.19 | CB84: 1 | CD84: 1 | CE84: 4 | CH84: 80 | CI84: 200 | CJ84: 526.38 | CK84: 17.546 | CL84: 18 | CM84: 5 | CN84: 1080 | CO84: 159.5090909 | CP84: 7656.436364 | CQ84: 17636.43636 | CR84: 0.06123686088 | CS84: 210.552 | CT84: 7 | CU84: 630 | CV84: -103.62 | CZ84: 1 | DA84: 2 | DP84: 2 | DQ84: 1 | DT84: 6 | DU84: 7.2 | DV84: 2 | DY84: 8 | DZ84: 4
A85: 100098840696 | B85: 1 | C85: 1 | D85: 1 | E85: （株）サーティーフォー 海老名店 | F85: 046-234-3434 | J85: 2 | K85: 2019-05-09 | L85: 2019-05-11 | O85: 神奈川県 | P85: 厚木市 | Q85: 山際 | R85: １０３２ №６ | W85: 小田急線 | X85: 本厚木 | AA85: 25 | AC85: 中平 | AD85: 3 | AJ85: 1 | AL85: 1 | AQ85: 1 | AR85: 9 | AS85: 6 | AU85: 11900000 | AW85: 296000 | AX85: 90000 | AZ85: 2 | BA85: 133.2 | CB85: 1 | CD85: 1 | CE85: 12 | CH85: 60 | CI85: 200 | CJ85: 266.4 | CK85: 8.88 | CL85: 9 | CM85: 5 | CN85: 540 | CO85: 80.72727273 | CP85: 3874.909091 | CQ85: 5064.909091 | CR85: 0.1066159314 | CS85: 79.92 | CT85: 2 | CU85: 180 | CV85: 86.4 | CW85: ! | CZ85: 1 | DA85: 2 | DP85: 1 | DQ85: 1 | DT85: 7 | DU85: 4.5
A86: 100098840717 | B86: 1 | C86: 1 | D86: 1 | E86: （株）サーティーフォー 海老名店 | F86: 046-234-3434 | J86: 2 | K86: 2019-05-09 | L86: 2019-05-11 | O86: 神奈川県 | P86: 厚木市 | Q86: 山際 | R86: １０３２ №５ | W86: 小田急線 | X86: 本厚木 | AA86: 25 | AC86: 中平 | AD86: 3 | AJ86: 1 | AL86: 1 | AQ86: 1 | AR86: 9 | AS86: 6 | AU86: 13900000 | AW86: 383000 | AX86: 116000 | AZ86: 2 | BA86: 120.05 | CB86: 1 | CD86: 1 | CE86: 12 | CH86: 60 | CI86: 200 | CJ86: 240.1 | CK86: 8.003333333 | CL86: 8 | CM86: 5 | CN86: 480 | CO86: 72.75757576 | CP86: 3492.363636 | CQ86: 4882.363636 | CR86: 0.09831303765 | CS86: 72.03 | CT86: 2 | CU86: 180 | CV86: 60.1 | CW86: ! | CZ86: 1 | DA86: 2 | DP86: 1 | DQ86: 1 | DT86: 5 | DU86: 4.5
A87: 100098840767 | B87: 1 | C87: 1 | D87: 1 | E87: （株）サーティーフォー 海老名店 | F87: 046-234-3434 | J87: 2 | K87: 2019-05-09 | L87: 2019-05-11 | O87: 神奈川県 | P87: 厚木市 | Q87: 山際 | R87: １０３２ №２ | W87: 小田急線 | X87: 本厚木 | AA87: 25 | AC87: 中平 | AD87: 3 | AJ87: 1 | AL87: 1 | AQ87: 1 | AR87: 9 | AS87: 6 | AU87: 13900000 | AW87: 382000 | AX87: 116000 | AZ87: 2 | BA87: 120.31 | CB87: 1 | CD87: 1 | CE87: 12 | CH87: 60 | CI87: 200 | CJ87: 240.62 | CK87: 8.020666667 | CL87: 8 | CM87: 5 | CN87: 480 | CO87: 72.91515152 | CP87: 3499.927273 | CQ87: 4889.927273 | CR87: 0.09816096912 | CS87: 72.186 | CT87: 2 | CU87: 180 | CV87: 60.62 | CW87: ! | CZ87: 1 | DA87: 2 | DP87: 1 | DQ87: 1 | DT87: 5 | DU87: 4.5
A88: 100098840788 | B88: 1 | C88: 1 | D88: 1 | E88: （株）マーケットトラスト | F88: 046-200-0838 | J88: 2 | K88: 2019-05-09 | O88: 神奈川県 | P88: 大和市 | Q88: 福田 | U88: ９２４－１、９２４－２、９２５－１、他 | W88: 江ノ島線 | X88: 高座渋谷 | Y88: 10 | AJ88: 1 | AL88: 2 | AQ88: 1 | AS88: 3 | AU88: 24500000 | AW88: 601000 | AX88: 182000 | AZ88: 2 | BA88: 134.83 | BG88: 2 | CB88: 1 | CD88: 1 | CE88: 1 | CG88: 1 | CH88: 50 | CI88: 100 | CJ88: 134.83 | CK88: 4.494333333 | CL88: 4 | CM88: 5 | CN88: 240 | CO88: 40.85757576 | CP88: 1961.163636 | CQ88: 4411.163636 | CR88: 0.0544074126 | CS88: 67.415 | CT88: 2 | CU88: 180 | CV88: -45.17 | DA88: 2 | DQ88: 1 | DR88: 11.8 | DT88: 8 | DU88: 5.5 | GU88: Ｎｏ．７／全７区画 | GV88: 大和市福田区画整理事業地内
A89: 100098840829 | B89: 1 | C89: 1 | D89: 1 | E89: （株）マーケットトラスト | F89: 046-200-0838 | J89: 2 | K89: 2019-05-09 | O89: 神奈川県 | P89: 大和市 | Q89: 福田 | U89: ９２４－１、９２４－２、９２５－１、他 | W89: 江ノ島線 | X89: 高座渋谷 | Y89: 10 | AJ89: 1 | AL89: 2 | AQ89: 1 | AS89: 3 | AU89: 25500000 | AW89: 626000 | AX89: 190000 | AZ89: 2 | BA89: 134.84 | BG89: 2 | CB89: 1 | CD89: 1 | CE89: 1 | CG89: 1 | CH89: 50 | CI89: 100 | CJ89: 134.84 | CK89: 4.494666667 | CL89: 4 | CM89: 5 | CN89: 240 | CO89: 40.86060606 | CP89: 1961.309091 | CQ89: 4511.309091 | CR89: 0.05319963566 | CS89: 67.42 | CT89: 2 | CU89: 180 | CV89: -45.16 | DA89: 2 | DP89: 2 | DQ89: 1 | DR89: 11.3 | DT89: 6 | DU89: 6 | DV89: 1 | DW89: 10.2 | DY89: 8 | DZ89: 5.5 | GU89: Ｎｏ．６／全７区画 | GV89: 大和市福田区画整理事業地内
A90: 100098840888 | B90: 1 | C90: 1 | D90: 1 | E90: 小田急不動産（株） 町田店 | F90: 042-722-5811 | G90: 村田 | H90: 042-722-5811 | I90: machida@odakyu-fudosan.co.jp | J90: 2 | K90: 2019-05-09 | L90: 2019-05-09 | O90: 神奈川県 | P90: 座間市 | Q90: 緑ケ丘６丁目 | W90: 小田急線 | X90: 相武台前 | Y90: 12 | AJ90: 2 | AL90: 2 | AQ90: 5 | AU90: 21800000 | AW90: 397000 | AX90: 120000 | AZ90: 1 | BA90: 181.88 | CA90: 3 | CB90: 1 | CD90: 1 | CE90: 1 | CG90: 1 | CH90: 50 | CI90: 100 | CJ90: 181.88 | CK90: 6.062666667 | CL90: 6 | CM90: 5 | CN90: 360 | CO90: 55.11515152 | CP90: 2645.527273 | CQ90: 4825.527273 | CR90: 0.07460324637 | CS90: 90.94 | CT90: 3 | CU90: 270 | CV90: -88.12 | DP90: 2 | DQ90: 1 | DT90: 6 | DU90: 6 | DV90: 1 | DY90: 8 | DZ90: 4.1 | GQ90: 小田急ＯＸ | GR90: 700 | GS90: 11 | GT90: 1 | GW90: Ｊ５４６８
A91: 100098840891 | B91: 1 | C91: 1 | D91: 1 | E91: 小田急不動産（株） 町田店 | F91: 042-722-5811 | G91: 矢作 | H91: 042-722-5811 | I91: machida@odakyu-fudosan.co.jp | J91: 2 | K91: 2019-05-09 | L91: 2019-05-09 | O91: 神奈川県 | P91: 相模原市南区 | Q91: 大野台７丁目 | W91: 横浜線 | X91: 古淵 | Y91: 14 | AJ91: 2 | AL91: 2 | AQ91: 4 | AU91: 27500000 | AW91: 753000 | AX91: 228000 | AZ91: 1 | BA91: 120.74 | CA91: 3 | CB91: 1 | CD91: 1 | CE91: 1 | CG91: 1 | CH91: 50 | CI91: 100 | CJ91: 120.74 | CK91: 4.024666667 | CL91: 4 | CM91: 5 | CN91: 240 | CO91: 36.58787879 | CP91: 1756.218182 | CQ91: 4506.218182 | CR91: 0.05325973806 | CS91: 60.37 | CT91: 2 | CU91: 180 | CV91: -59.26 | DP91: 1 | DQ91: 1 | DT91: 6 | DU91: 4 | GQ91: イオン相模原ショッピングセンター | GR91: 740 | GS91: 10 | GT91: 1 | GW91: Ｊ５６８１
A92: 100098840967 | B92: 1 | C92: 1 | D92: 1 | E92: （株）マーケットトラスト | F92: 046-200-0838 | J92: 2 | K92: 2019-05-09 | O92: 神奈川県 | P92: 大和市 | Q92: 福田 | U92: ９２４－１、９２４－２、９２５－１、他 | W92: 江ノ島線 | X92: 高座渋谷 | Y92: 10 | AJ92: 1 | AL92: 2 | AQ92: 1 | AS92: 3 | AU92: 27000000 | AW92: 662000 | AX92: 201000 | AZ92: 2 | BA92: 134.83 | BG92: 2 | CB92: 1 | CD92: 1 | CE92: 1 | CG92: 1 | CH92: 50 | CI92: 100 | CJ92: 134.83 | CK92: 4.494333333 | CL92: 4 | CM92: 5 | CN92: 240 | CO92: 40.85757576 | CP92: 1961.163636 | CQ92: 4661.163636 | CR92: 0.05148928867 | CS92: 67.415 | CT92: 2 | CU92: 180 | CV92: -45.17 | DA92: 2 | DP92: 2 | DQ92: 1 | DR92: 9.3 | DT92: 4 | DU92: 5.5 | DV92: 1 | DW92: 14.7 | DY92: 6 | DZ92: 6 | GU92: Ｎｏ．５／全７区画 | GV92: 大和市福田区画整理事業地内
A93: 100098841172 | B93: 1 | C93: 1 | D93: 1 | E93: （株）マーケットトラスト | F93: 046-200-0838 | J93: 2 | K93: 2019-05-09 | O93: 神奈川県 | P93: 大和市 | Q93: 福田 | U93: ９２４－１、９２４－２、９２５－１、他 | W93: 江ノ島線 | X93: 高座渋谷 | Y93: 10 | AJ93: 1 | AL93: 2 | AQ93: 1 | AS93: 3 | AU93: 26000000 | AW93: 638000 | AX93: 193000 | AZ93: 2 | BA93: 134.83 | BG93: 2 | CB93: 1 | CD93: 1 | CE93: 1 | CG93: 1 | CH93: 50 | CI93: 100 | CJ93: 134.83 | CK93: 4.494333333 | CL93: 4 | CM93: 5 | CN93: 240 | CO93: 40.85757576 | CP93: 1961.163636 | CQ93: 4561.163636 | CR93: 0.05261815167 | CS93: 67.415 | CT93: 2 | CU93: 180 | CV93: -45.17 | DA93: 2 | DQ93: 1 | DR93: 9.8 | DT93: 4 | DU93: 5.5 | GU93: Ｎｏ．４／全７区画 | GV93: 大和市福田区画整理事業地内
A94: 100098841243 | B94: 1 | C94: 1 | D94: 1 | E94: （株）マーケットトラスト | F94: 046-200-0838 | J94: 2 | K94: 2019-05-09 | O94: 神奈川県 | P94: 大和市 | Q94: 福田 | U94: ９２４－１、９２４－２、９２５－１、他 | W94: 江ノ島線 | X94: 高座渋谷 | Y94: 10 | AJ94: 1 | AL94: 2 | AQ94: 1 | AS94: 3 | AU94: 26000000 | AW94: 638000 | AX94: 193000 | AZ94: 2 | BA94: 134.84 | BG94: 2 | CB94: 1 | CD94: 1 | CE94: 1 | CG94: 1 | CH94: 50 | CI94: 100 | CJ94: 134.84 | CK94: 4.494666667 | CL94: 4 | CM94: 5 | CN94: 240 | CO94: 40.86060606 | CP94: 1961.309091 | CQ94: 4561.309091 | CR94: 0.05261647374 | CS94: 67.42 | CT94: 2 | CU94: 180 | CV94: -45.16 | DA94: 2 | DQ94: 1 | DR94: 9.8 | DT94: 4 | DU94: 5.5 | GU94: Ｎｏ．３／全７区画 | GV94: 大和市福田区画整理事業地内
A95: 100098841316 | B95: 1 | C95: 1 | D95: 1 | E95: （株）マーケットトラスト | F95: 046-200-0838 | J95: 2 | K95: 2019-05-09 | O95: 神奈川県 | P95: 大和市 | Q95: 福田 | U95: ９２４－１、９２４－２、９２５－１、他 | W95: 江ノ島線 | X95: 高座渋谷 | Y95: 10 | AJ95: 1 | AL95: 2 | AQ95: 1 | AS95: 3 | AU95: 27000000 | AW95: 662000 | AX95: 201000 | AZ95: 2 | BA95: 134.83 | BG95: 2 | CB95: 1 | CD95: 1 | CE95: 1 | CG95: 1 | CH95: 50 | CI95: 100 | CJ95: 134.83 | CK95: 4.494333333 | CL95: 4 | CM95: 5 | CN95: 240 | CO95: 40.85757576 | CP95: 1961.163636 | CQ95: 4661.163636 | CR95: 0.05148928867 | CS95: 67.415 | CT95: 2 | CU95: 180 | CV95: -45.17 | DA95: 2 | DP95: 2 | DQ95: 1 | DR95: 11.5 | DT95: 2 | DU95: 5.5 | DV95: 2 | DW95: 10.8 | DY95: 4 | DZ95: 5.5 | GU95: Ｎｏ．２／全７区画 | GV95: 大和市福田区画整理事業地内
A96: 100098841362 | B96: 1 | C96: 1 | D96: 1 | E96: 東急リバブル（株） 二俣川センター | F96: 045-365-1098 | J96: 2 | K96: 2019-05-09 | O96: 神奈川県 | P96: 横浜市旭区 | Q96: 川島町 | W96: 相鉄線 | X96: 西谷 | Y96: 13 | AJ96: 2 | AL96: 2 | AQ96: 5 | AR96: 1 | AU96: 35000000 | AW96: 515000 | AX96: 156000 | AZ96: 1 | BA96: 225.04 | CA96: 3 | CB96: 1 | CD96: 1 | CE96: 1 | CG96: 1 | CH96: 40 | CI96: 80 | CJ96: 180.032 | CK96: 6.001066667 | CL96: 6 | CM96: 5 | CN96: 360 | CO96: 54.55515152 | CP96: 2618.647273 | CQ96: 6118.647273 | CR96: 0.05883653428 | CS96: 90.016 | CT96: 3 | CU96: 270 | CV96: -89.968 | DP96: 1 | DQ96: 1 | DS96: 2 | DT96: 1 | DU96: 4.5 | GW96: ＣＺＲ１９４０４５
A97: 100098841374 | B97: 1 | C97: 1 | D97: 1 | E97: 東急リバブル（株） 二俣川センター | F97: 045-365-1098 | J97: 2 | K97: 2019-05-09 | O97: 神奈川県 | P97: 横浜市旭区 | Q97: 白根２丁目 | W97: 相鉄線 | X97: 鶴ヶ峰 | Y97: 16 | AJ97: 1 | AL97: 2 | AQ97: 4 | AR97: 1 | AU97: 27800000 | AW97: 508000 | AX97: 154000 | AZ97: 1 | BA97: 180.96 | CA97: 3 | CB97: 1 | CD97: 1 | CE97: 1 | CG97: 1 | CH97: 50 | CI97: 100 | CJ97: 180.96 | CK97: 6.032 | CL97: 6 | CM97: 5 | CN97: 360 | CO97: 54.83636364 | CP97: 2632.145455 | CQ97: 5412.145455 | CR97: 0.06651705927 | CS97: 90.48 | CT97: 3 | CU97: 270 | CV97: -89.04 | CZ97: 2 | DA97: 2 | DP97: 1 | DQ97: 1 | DS97: 2 | DT97: 4 | DU97: 4.5 | GW97: ＣＺＲ１９４０５０
A98: 100098841535 | B98: 1 | C98: 1 | D98: 1 | E98: （株）マーケットトラスト | F98: 046-200-0838 | J98: 2 | K98: 2019-05-09 | O98: 神奈川県 | P98: 大和市 | Q98: 福田 | U98: ９２４－１、９２４－２、９２５－１、他 | W98: 江ノ島線 | X98: 高座渋谷 | Y98: 10 | AJ98: 1 | AL98: 2 | AQ98: 1 | AS98: 3 | AU98: 25500000 | AW98: 626000 | AX98: 190000 | AZ98: 2 | BA98: 134.83 | BG98: 2 | CB98: 1 | CD98: 1 | CE98: 1 | CG98: 1 | CH98: 50 | CI98: 100 | CJ98: 134.83 | CK98: 4.494333333 | CL98: 4 | CM98: 5 | CN98: 240 | CO98: 40.85757576 | CP98: 1961.163636 | CQ98: 4511.163636 | CR98: 0.05320135099 | CS98: 67.415 | CT98: 2 | CU98: 180 | CV98: -45.17 | DA98: 2 | DP98: 2 | DQ98: 1 | DR98: 10.9 | DT98: 8 | DU98: 5.5 | DV98: 2 | DW98: 11.1 | DY98: 2 | DZ98: 5.5 | GU98: Ｎｏ．１／全７区画 | GV98: 大和市福田区画整理事業地内
A99: 100098841633 | B99: 1 | C99: 1 | D99: 1 | E99: （株）マーケットトラスト | F99: 046-200-0838 | J99: 2 | K99: 2019-05-09 | O99: 神奈川県 | P99: 大和市 | Q99: 福田 | W99: 江ノ島線 | X99: 高座渋谷 | Y99: 8 | AJ99: 1 | AL99: 2 | AQ99: 1 | AS99: 3 | AU99: 36800000 | AW99: 601000 | AX99: 182000 | AZ99: 2 | BA99: 202.49 | CB99: 1 | CD99: 1 | CE99: 1 | CG99: 1 | CH99: 60 | CI99: 100 | CJ99: 202.49 | CK99: 6.749666667 | CL99: 7 | CM99: 5 | CN99: 420 | CO99: 61.36060606 | CP99: 2945.309091 | CQ99: 6625.309091 | CR99: 0.06339326879 | CS99: 121.494 | CT99: 4 | CU99: 360 | CV99: -157.51 | DA99: 2 | DQ99: 1 | DR99: 12.5 | DT99: 3 | DU99: 6 | DV99: 1 | DW99: 12.7 | DY99: 1 | DZ99: 5 | GV99: 大和市下福田土地区画整理事業地内
A100: 100098842116 | B100: 1 | C100: 1 | D100: 1 | E100: （有）ホリフジ住宅 横須賀中央店 | F100: 046-828-5551 | G100: 菱倉 | J100: 2 | K100: 2019-05-09 | O100: 神奈川県 | P100: 横須賀市 | Q100: 三春町５丁目 | W100: 京浜急行線 | X100: 堀ノ内 | Y100: 10 | AJ100: 1 | AL100: 1 | AQ100: 4 | AR100: 1 | AU100: 19900000 | AW100: 471000 | AX100: 143000 | AZ100: 2 | BA100: 139.85 | BG100: 1 | BH100: 75.63 | CB100: 1 | CD100: 1 | CE100: 11 | CG100: 1 | CH100: 60 | CI100: 160 | CJ100: 223.76 | CK100: 7.458666667 | CL100: 7 | CM100: 5 | CN100: 420 | CO100: 67.80606061 | CP100: 3254.690909 | CQ100: 5244.690909 | CR100: 0.08008098233 | CS100: 83.91 | CT100: 2 | CU100: 180 | CV100: 43.76 | CW100: ! | CZ100: 2 | DA100: 2 | DP100: 1 | DQ100: 2 | DR100: 7 | DS100: 1 | DT100: 6 | DU100: 4 | EK100: 1
A101: 100098843619 | B101: 1 | C101: 1 | D101: 1 | E101: ＡＧＲ（株） | F101: 03-6712-6988 | G101: 田籠 タゴモリ | H101: 080-5690-9300 | I101: a.tagomori@uchiyama-g.com | J101: 2 | K101: 2019-05-09 | O101: 神奈川県 | P101: 三浦市 | Q101: 三崎町諸磯 | W101: 久里浜線 | X101: 三崎口 | AB101: 京急油壺マリーナ | AC101: 名向井小学校前 | AD101: 19 | AF101: 5 | AJ101: 2 | AL101: 2 | AQ101: 5 | AR101: 2 | AU101: 300000000 | AW101: 170000 | AX101: 52000 | AZ101: 1 | BA101: 5866 | CB101: 1 | CD101: 2 | CG101: 11 | CH101: 20 | CI101: 100 | CJ101: 5866 | CK101: 195.5333333 | CL101: 196 | CM101: 5 | CN101: 11760 | CO101: 1777.575758 | CP101: 85323.63636 | CQ101: 115323.6364 | CR101: 0.1019738917 | CS101: 1173.2 | CT101: 39 | CU101: 3510 | CV101: 2356 | CW101: ! | CZ101: 5 | DA101: 2 | DP101: 1 | DQ101: 1 | DR101: 33 | EK101: 2
A102: 100098844121 | B102: 1 | C102: 1 | D102: 1 | E102: （株）ベイダー・ホーム | F102: 045-680-1172 | J102: 2 | K102: 2019-05-09 | O102: 神奈川県 | P102: 横浜市戸塚区 | Q102: 汲沢町 | W102: 東海道線 | X102: 戸塚 | AA102: 11 | AC102: 西横浜国際総合病院前 | AD102: 10 | AJ102: 1 | AL102: 2 | AQ102: 1 | AS102: 3 | AU102: 17800000 | AW102: 450000 | AX102: 136000 | BA102: 131.04 | BK102: 1 | BM102: 0.56 | CB102: 1 | CD102: 2 | CE102: 99 | CH102: 50 | CI102: 80 | CJ102: 104.832 | CK102: 3.4944 | CL102: 3 | CM102: 5 | CN102: 180 | CO102: 31.76727273 | CP102: 1524.829091 | CQ102: 3304.829091 | CR102: 0.0544657515 | CS102: 65.52 | CT102: 2 | CU102: 180 | CV102: -75.168 | DA102: 1 | DP102: 1 | DQ102: 1 | DT102: 3 | DU102: 3.9
A103: 100098844207 | B103: 1 | C103: 1 | D103: 1 | E103: （株）ベイダー・ホーム | F103: 045-680-1172 | J103: 2 | K103: 2019-05-09 | O103: 神奈川県 | P103: 横浜市瀬谷区 | Q103: 二ツ橋町 | W103: 相鉄線 | X103: 三ツ境 | Y103: 12 | AL103: 2 | AQ103: 1 | AS103: 3 | AU103: 36800000 | AW103: 931000 | AX103: 282000 | BA103: 130.72 | CB103: 1 | CD103: 1 | CE103: 1 | CH103: 40 | CI103: 80 | CJ103: 104.576 | CK103: 3.485866667 | CL103: 3 | CM103: 5 | CN103: 180 | CO103: 31.68969697 | CP103: 1521.105455 | CQ103: 5201.105455 | CR103: 0.03460802738 | CS103: 52.288 | CT103: 1 | CU103: 90 | CV103: 14.576 | CW103: ! | DA103: 1 | DP103: 1 | DQ103: 1 | DT103: 2 | DU103: 4.6 | GU103: ※Ｃ区画 | GV103: ※最低敷地面積１２５㎡
A104: 100098844265 | B104: 1 | C104: 1 | D104: 1 | E104: 土屋商事（株） | F104: 046-874-8484 | G104: 安田郁生 | H104: 9027366127 | J104: 2 | K104: 2019-05-09 | O104: 神奈川県 | P104: 横須賀市 | Q104: 長浦町２丁目 | R104: 2019-01-23 | W104: 京浜急行線 | X104: 安針塚 | Y104: 3 | AJ104: 1 | AL104: 2 | AQ104: 1 | AR104: 9 | AS104: 3 | AU104: 18800000 | AW104: 511000 | AX104: 155000 | AZ104: 2 | BA104: 121.69 | BG104: 2 | BK104: 1 | BM104: 1.66 | CA104: 3 | CB104: 1 | CD104: 1 | CE104: 11 | CH104: 60 | CI104: 200 | CJ104: 243.38 | CK104: 8.112666667 | CL104: 8 | CM104: 5 | CN104: 480 | CO104: 73.75151515 | CP104: 3540.072727 | CQ104: 5420.072727 | CR104: 0.08855969729 | CS104: 73.014 | CT104: 2 | CU104: 180 | CV104: 63.38 | CW104: ! | CZ104: 1 | DA104: 1 | DP104: 1 | DQ104: 1 | DR104: 4.2 | DS104: 2 | DT104: 8 | DU104: 3.2 | EK104: 1
A105: 100098844305 | B105: 1 | C105: 1 | D105: 1 | E105: （株）ベイダー・ホーム | F105: 045-680-1172 | J105: 2 | K105: 2019-05-09 | O105: 神奈川県 | P105: 横浜市瀬谷区 | Q105: 二ツ橋町 | W105: 相鉄線 | X105: 三ツ境 | Y105: 12 | AL105: 2 | AQ105: 1 | AS105: 3 | AU105: 32800000 | AW105: 824000 | AX105: 250000 | BA105: 131.72 | CB105: 1 | CD105: 1 | CE105: 1 | CH105: 40 | CI105: 80 | CJ105: 105.376 | CK105: 3.512533333 | CL105: 4 | CM105: 5 | CN105: 240 | CO105: 31.93212121 | CP105: 1532.741818 | CQ105: 4812.741818 | CR105: 0.04986762413 | CS105: 52.688 | CT105: 1 | CU105: 90 | CV105: 15.376 | CW105: ! | DA105: 1 | DP105: 1 | DQ105: 1 | DT105: 2 | DU105: 4.6 | GU105: ※Ｂ区画 | GV105: ※最低敷地面積１２５㎡
A106: 100098844360 | B106: 1 | C106: 1 | D106: 1 | E106: （有）プライムランド | F106: 0463-24-2131 | G106: 金原 | I106: info@prime-l.jp | J106: 2 | K106: 2019-05-09 | O106: 神奈川県 | P106: 平塚市 | Q106: 横内 | W106: 東海道線 | X106: 平塚 | AA106: 22 | AC106: 打間土木 | AD106: 2 | AJ106: 1 | AL106: 1 | AQ106: 3 | AR106: 1 | AU106: 20000000 | AW106: 406000 | AX106: 123000 | AZ106: 1 | BA106: 163 | BG106: 2 | CB106: 5 | CD106: 1 | CE106: 2 | CH106: 60 | CI106: 200 | CJ106: 326 | CK106: 10.86666667 | CL106: 11 | CM106: 5 | CN106: 660 | CO106: 98.78787879 | CP106: 4741.818182 | CQ106: 6741.818182 | CR106: 0.09789644013 | CS106: 97.8 | CT106: 3 | CU106: 270 | CV106: 56 | CW106: ! | CZ106: 1 | DP106: 1 | DQ106: 1 | DU106: 10.5 | EK106: 1
A107: 100098844376 | B107: 1 | C107: 1 | D107: 1 | E107: （株）ベイダー・ホーム | F107: 045-680-1172 | J107: 2 | K107: 2019-05-09 | O107: 神奈川県 | P107: 横浜市瀬谷区 | Q107: 二ツ橋町 | W107: 相鉄線 | X107: 三ツ境 | Y107: 12 | AL107: 2 | AQ107: 1 | AS107: 3 | AU107: 34800000 | AW107: 878000 | AX107: 266000 | BA107: 131.04 | CB107: 1 | CD107: 1 | CE107: 1 | CH107: 40 | CI107: 80 | CJ107: 104.832 | CK107: 3.4944 | CL107: 3 | CM107: 5 | CN107: 180 | CO107: 31.76727273 | CP107: 1524.829091 | CQ107: 5004.829091 | CR107: 0.03596526409 | CS107: 52.416 | CT107: 1 | CU107: 90 | CV107: 14.832 | CW107: ! | DA107: 1 | DP107: 1 | DQ107: 1 | DT107: 2 | DU107: 4.6 | GU107: ※Ａ区画 | GV107: ※最低敷地面積１２５㎡
A108: 100098844416 | B108: 1 | C108: 1 | D108: 1 | E108: （株）レーヴフォルム | F108: 0463-75-9626 | G108: 吉田隆一 | H108: 090-7638-2041 | I108: ryoshida1954@gmail.com | J108: 2 | K108: 2019-05-09 | M108: 2019-08-04 | O108: 神奈川県 | P108: 南足柄市 | Q108: 岩原 | W108: 大雄山線 | X108: 岩原 | Y108: 1 | Z108: 70 | AJ108: 2 | AL108: 2 | AQ108: 4 | AR108: 1 | AU108: 10230000 | AW108: 190000 | AX108: 58000 | AZ108: 2 | BA108: 178.1 | BG108: 2 | CB108: 1 | CD108: 1 | CE108: 12 | CG108: 1 | CH108: 60 | CI108: 200 | CJ108: 356.2 | CK108: 11.87333333 | CL108: 12 | CM108: 5 | CN108: 720 | CO108: 107.9393939 | CP108: 5181.090909 | CQ108: 6204.090909 | CR108: 0.1160524581 | CS108: 106.86 | CT108: 3 | CU108: 270 | CV108: 86.2 | CW108: ! | CZ108: 1 | DA108: 2 | DP108: 1 | DQ108: 1 | DR108: 2.6 | DT108: 2 | DU108: 12 | EK108: 1
A109: 100098844474 | B109: 1 | C109: 1 | D109: 1 | E109: （有）プライムランド | F109: 0463-24-2131 | G109: 金原 | I109: info@prime-l.jp | J109: 2 | K109: 2019-05-09 | O109: 神奈川県 | P109: 中郡大磯町 | Q109: 寺坂 | R109: ７５９－１ | W109: 東海道線 | X109: 平塚 | AA109: 20 | AC109: 上寺坂 | AD109: 8 | AJ109: 1 | AL109: 2 | AQ109: 1 | AS109: 3 | AU109: 20000000 | AW109: 189000 | AX109: 58000 | AZ109: 1 | BA109: 350.57 | BG109: 2 | CA109: 3 | CB109: 1 | CD109: 2 | CE109: 99 | CG109: 1 | CH109: 50 | CI109: 100 | CJ109: 350.57 | CK109: 11.68566667 | CL109: 12 | CM109: 5 | CN109: 720 | CO109: 106.2333333 | CP109: 5099.2 | CQ109: 7099.2 | CR109: 0.1014198783 | CS109: 175.285 | CT109: 5 | CU109: 450 | CV109: -99.43 | CZ109: 1 | DA109: 2 | DP109: 1 | DQ109: 1 | DT109: 8 | DU109: 8 | EK109: 1
A110: 100098844493 | B110: 1 | C110: 1 | D110: 1 | E110: （株）ルーク・リアルエステート | F110: 045-227-6321 | G110: 田中・武田 | H110: 045-227-6321 | I110: info@luke-realestate.com | J110: 2 | K110: 2019-05-09 | O110: 神奈川県 | P110: 横浜市磯子区 | Q110: 洋光台２丁目 | W110: 根岸線 | X110: 洋光台 | Y110: 15 | AJ110: 1 | AL110: 2 | AQ110: 1 | AU110: 38800000 | AW110: 752000 | AX110: 228000 | AZ110: 2 | BA110: 170.74 | CB110: 1 | CD110: 1 | CE110: 1 | CG110: 1 | CJ110: 170.74 | CK110: 5.691333333 | CL110: 6 | CM110: 5 | CN110: 360 | CO110: 51.73939394 | CP110: 2483.490909 | CQ110: 6363.490909 | CR110: 0.05657272166 | CS110: 102.444 | CT110: 3 | CU110: 270 | CV110: -99.26 | DQ110: 1 | DT110: 8 | DU110: 5.9
A111: 100098844517 | B111: 1 | C111: 1 | D111: 1 | E111: （有）プライムランド | F111: 0463-24-2131 | J111: 2 | K111: 2019-05-09 | O111: 神奈川県 | P111: 座間市 | Q111: 栗原中央４丁目 | W111: 小田急線 | X111: 座間 | Y111: 20 | AJ111: 1 | AL111: 1 | AQ111: 1 | AU111: 25800000 | AW111: 232000 | AX111: 71000 | AZ111: 2 | BA111: 368.23 | CB111: 1 | CD111: 1 | CE111: 1 | CH111: 50 | CI111: 100 | CJ111: 368.23 | CK111: 12.27433333 | CL111: 12 | CM111: 5 | CN111: 720 | CO111: 111.5848485 | CP111: 5356.072727 | CQ111: 7936.072727 | CR111: 0.09072497503 | CS111: 184.115 | CT111: 6 | CU111: 540 | CV111: -171.77 | CZ111: 1
A112: 100098844674 | B112: 1 | C112: 1 | D112: 1 | E112: （株）水島商事 | F112: 046-275-2251 | J112: 2 | K112: 2019-05-09 | O112: 神奈川県 | P112: 相模原市南区 | Q112: 東林間８丁目 | W112: 田園都市線 | X112: 中央林間 | Y112: 10 | AJ112: 1 | AL112: 2 | AQ112: 1 | AU112: 29800000 | AW112: 708000 | AX112: 214000 | AZ112: 1 | BA112: 139.3 | BG112: 2 | CA112: 3 | CB112: 1 | CD112: 1 | CE112: 1 | CH112: 50 | CI112: 100 | CJ112: 139.3 | CK112: 4.643333333 | CL112: 5 | CM112: 5 | CN112: 300 | CO112: 42.21212121 | CP112: 2026.181818 | CQ112: 5006.181818 | CR112: 0.05992590978 | CS112: 69.65 | CT112: 2 | CU112: 180 | CV112: -40.7 | DP112: 1 | DQ112: 1 | DR112: 4.1 | DT112: 2 | DU112: 4 | EK112: 1
A113: 100098845517 | B113: 1 | C113: 1 | D113: 1 | E113: （株）アイル | F113: 042-788-5414 | J113: 2 | K113: 2019-05-09 | O113: 神奈川県 | P113: 座間市 | Q113: 入谷東２丁目 | W113: 小田急線 | X113: 座間 | Y113: 10 | AJ113: 1 | AL113: 2 | AQ113: 3 | AR113: 1 | AU113: 16800000 | AW113: 357000 | AX113: 108000 | BA113: 156 | CB113: 1 | CD113: 1 | CE113: 1 | CH113: 50 | CI113: 100 | CJ113: 156 | CK113: 5.2 | CL113: 5 | CM113: 5 | CN113: 300 | CO113: 47.27272727 | CP113: 2269.090909 | CQ113: 3949.090909 | CR113: 0.07596685083 | CS113: 78 | CT113: 2 | CU113: 180 | CV113: -24 | DQ113: 1 | DR113: 3.2 | DT113: 1 | DU113: 6 | GQ113: スーパー・ドラッグストア徒歩圏 | GU113: 確定測量渡し、実測清算 | GV113: 分筆前につき、多少の増減可
A114: 100098845910 | B114: 1 | C114: 1 | D114: 1 | E114: （株）小浜土地建物 | F114: 0467-89-2622 | G114: 上村 | J114: 2 | K114: 2019-05-09 | L114: 2019-05-09 | O114: 神奈川県 | P114: 茅ヶ崎市 | Q114: 浜竹４丁目 | W114: 東海道線 | X114: 辻堂 | Y114: 15 | AJ114: 2 | AL114: 2 | AQ114: 5 | AR114: 1 | AU114: 80000000 | AW114: 646000 | AX114: 196000 | AZ114: 1 | BA114: 409.95 | BG114: 2 | BK114: 1 | BM114: 10.8 | BT114: 2 | CA114: 3 | CB114: 1 | CD114: 1 | CE114: 1 | CG114: 1 | CH114: 60 | CI114: 150 | CJ114: 614.925 | CK114: 20.4975 | CL114: 20 | CM114: 5 | CN114: 1200 | CO114: 186.3409091 | CP114: 8944.363636 | CQ114: 16944.36364 | CR114: 0.07082000987 | CS114: 245.97 | CT114: 8 | CU114: 720 | CV114: -105.075 | CZ114: 1 | DA114: 2 | DP114: 1 | DQ114: 2 | DR114: 9.5 | DT114: 5 | DU114: 3 | EK114: 1
A115: 100098846213 | B115: 1 | C115: 1 | D115: 1 | E115: （株）信和 | F115: 0463-55-6600 | G115: 日曜・祝祭日のお問合せはこちら迄→ | H115: 090-5819-1357 | J115: 2 | K115: 2019-05-09 | O115: 神奈川県 | P115: 平塚市 | Q115: 公所 | W115: 東海道線 | X115: 平塚 | AA115: 16 | AC115: 公所 | AD115: 4 | AJ115: 2 | AL115: 2 | AQ115: 4 | AR115: 1 | AU115: 10000000 | AW115: 197000 | AX115: 60000 | AZ115: 1 | BA115: 168.35 | BG115: 2 | BK115: 0 | CB115: 1 | CD115: 1 | CE115: 1 | CG115: 1 | CH115: 50 | CI115: 80 | CJ115: 134.68 | CK115: 4.489333333 | CL115: 4 | CM115: 5 | CN115: 240 | CO115: 40.81212121 | CP115: 1958.981818 | CQ115: 2958.981818 | CR115: 0.08110898098 | CS115: 84.175 | CT115: 2 | CU115: 180 | CV115: -45.32 | CZ115: 1 | DA115: 2 | DP115: 5 | DQ115: 1 | DR115: 11.8 | DT115: 6 | DU115: 5.5 | DV115: 1 | DW115: 6.4 | DY115: 8 | DZ115: 4 | EK115: 1 | GU115: 既存建物撤去費用売主負担
A116: 100098847767 | B116: 1 | C116: 1 | D116: 1 | E116: （株）レイナハウス | F116: 045-453-7801 | J116: 2 | K116: 2019-05-09 | O116: 神奈川県 | P116: 横浜市神奈川区 | Q116: 六角橋５丁目 | W116: 東横線 | X116: 白楽 | Y116: 14 | AJ116: 1 | AL116: 1 | AQ116: 1 | AR116: 4 | AU116: 43800000 | AW116: 1140000 | AX116: 345000 | BA116: 127.08 | CJ116: 127.08 | CK116: 4.236 | CL116: 4 | CM116: 5 | CN116: 240 | CO116: 38.50909091 | CP116: 1848.436364 | CQ116: 6228.436364 | CR116: 0.03853294567 | CS116: 76.248 | CT116: 2 | CU116: 180 | CV116: -52.92 | CZ116: 1 | DA116: 2 | DP116: 5 | DQ116: 1 | DT116: 5 | DU116: 3.3 | GU116: ＳＩＴＥ－Ｂ
A117: 100098847833 | B117: 1 | C117: 1 | D117: 1 | E117: （株）アートハウジング 相模原中央店 | F117: 042-707-8011 | J117: 2 | K117: 2019-05-09 | O117: 神奈川県 | P117: 相模原市中央区 | Q117: 鹿沼台２丁目 | W117: 横浜線 | X117: 淵野辺 | Y117: 7 | AJ117: 2 | AL117: 2 | AQ117: 4 | AR117: 1 | AU117: 36800000 | AW117: 905000 | AX117: 274000 | AZ117: 1 | BA117: 134.53 | CB117: 1 | CD117: 1 | CE117: 4 | CH117: 80 | CI117: 300 | CJ117: 403.59 | CK117: 13.453 | CL117: 13 | CM117: 5 | CN117: 780 | CO117: 122.3 | CP117: 5870.4 | CQ117: 9550.4 | CR117: 0.08167197185 | CS117: 107.624 | CT117: 3 | CU117: 270 | CV117: 133.59 | CW117: ! | CZ117: 1 | DA117: 2 | DP117: 1 | DQ117: 1 | DT117: 7 | DU117: 4
A118: 100098847875 | B118: 1 | C118: 1 | D118: 1 | E118: （株）相模不動産 | F118: 045-438-2366 | J118: 2 | K118: 2019-05-09 | L118: 2019-05-09 | O118: 神奈川県 | P118: 横浜市戸塚区 | Q118: 品濃町 | R118: ５３４－１０ | W118: 横須賀線 | X118: 東戸塚 | Y118: 9 | Z118: 720 | AL118: 1 | AQ118: 1 | AR118: 9 | AS118: 3 | AU118: 59800000 | AW118: 805000 | AX118: 244000 | BA118: 245.69 | BP118: 1 | CB118: 1 | CD118: 1 | CE118: 13 | CG118: 1 | CH118: 60 | CI118: 200 | CJ118: 491.38 | CK118: 16.37933333 | CL118: 16 | CM118: 5 | CN118: 960 | CO118: 148.9030303 | CP118: 7147.345455 | CQ118: 13127.34545 | CR118: 0.07312978875 | CS118: 147.414 | CT118: 4 | CU118: 360 | CV118: 131.38 | CW118: ! | DR118: 3 | DT118: 3
A119: 100098847940 | B119: 1 | C119: 1 | D119: 1 | E119: （株）リビングライフ | F119: 046-872-5558 | G119: 石井 | J119: 2 | K119: 2019-05-09 | L119: 2019-05-09 | O119: 神奈川県 | P119: 三浦郡葉山町 | Q119: 下山口 | W119: 横須賀線 | X119: 逗子 | AA119: 15 | AC119: 葉山公園入口 | AD119: 17 | AJ119: 2 | AL119: 2 | AQ119: 4 | AU119: 21500000 | AW119: 438000 | AX119: 133000 | AZ119: 1 | BA119: 162.34 | BG119: 1 | BH119: 30 | CA119: 3 | CB119: 1 | CD119: 1 | CE119: 1 | CG119: 1 | CH119: 40 | CI119: 80 | CJ119: 129.872 | CK119: 4.329066667 | CL119: 4 | CM119: 5 | CN119: 240 | CO119: 39.35515152 | CP119: 1889.047273 | CQ119: 4039.047273 | CR119: 0.05941995322 | CS119: 64.936 | CT119: 2 | CU119: 180 | CV119: -50.128 | CZ119: 2 | DA119: 2 | DP119: 1 | DQ119: 2 | DR119: 15 | DS119: 2 | DU119: 5
A120: 100098847953 | B120: 1 | C120: 1 | D120: 1 | E120: （株）リアルネット | F120: 0467-57-1212 | J120: 2 | K120: 2019-05-09 | O120: 神奈川県 | P120: 茅ヶ崎市 | Q120: 浜竹４丁目 | W120: 東海道線 | X120: 辻堂 | Y120: 13 | AJ120: 2 | AL120: 2 | AQ120: 5 | AR120: 1 | AU120: 45500000 | AW120: 603000 | AX120: 183000 | AZ120: 1 | BA120: 249.79 | BG120: 2 | CB120: 1 | CD120: 1 | CE120: 1 | CG120: 1 | CH120: 60 | CI120: 150 | CJ120: 374.685 | CK120: 12.4895 | CL120: 12 | CM120: 5 | CN120: 720 | CO120: 113.5409091 | CP120: 5449.963636 | CQ120: 9999.963636 | CR120: 0.07200026182 | CS120: 149.874 | CT120: 4 | CU120: 360 | CV120: 14.685 | CW120: ! | CZ120: 1 | DA120: 2 | DP120: 1 | DQ120: 2 | DT120: 7 | EK120: 2
A121: 100098848007 | B121: 1 | C121: 1 | D121: 1 | E121: 赤塚トラスト不動産（株） | F121: 0466-86-7508 | G121: 赤塚 法明 | J121: 2 | K121: 2019-05-09 | M121: 2019-05-27 | O121: 神奈川県 | P121: 藤沢市 | Q121: 鵠沼松が岡４丁目 | W121: 江ノ島線 | X121: 鵠沼海岸 | Y121: 8 | AJ121: 2 | AL121: 2 | AQ121: 4 | AR121: 1 | AU121: 39800000 | AW121: 1089000 | AX121: 330000 | AZ121: 2 | BA121: 120.88 | BG121: 2 | BK121: 0 | CA121: 3 | CB121: 1 | CD121: 1 | CE121: 1 | CG121: 1 | CH121: 40 | CI121: 80 | CJ121: 96.704 | CK121: 3.223466667 | CL121: 3 | CM121: 5 | CN121: 180 | CO121: 29.30424242 | CP121: 1406.603636 | CQ121: 5386.603636 | CR121: 0.03341623259 | CS121: 48.352 | CT121: 1 | CU121: 90 | CV121: 6.704 | CW121: ! | CZ121: 1 | DA121: 2 | DP121: 1 | DQ121: 2 | DR121: 8.8 | DS121: 1 | DT121: 6 | DU121: 4 | EK121: 1
A122: 100098848025 | B122: 1 | C122: 1 | D122: 1 | E122: （株）コスモスイニシア ソリューション事業部 | F122: 03-5444-3400 | G122: 髙橋宏和 | J122: 2 | K122: 2019-05-09 | M122: 2019-05-22 | O122: 神奈川県 | P122: 川崎市幸区 | Q122: 小向西町２丁目 | W122: 南武線 | X122: 矢向 | Y122: 23 | AJ122: 1 | AL122: 1 | AQ122: 5 | AU122: 50000000 | AW122: 908000 | AX122: 275000 | AZ122: 1 | BA122: 182.12 | CB122: 1 | CE122: 12 | CF122: 4 | CH122: 60 | CI122: 200 | CJ122: 364.24 | CK122: 12.14133333 | CL122: 12 | CM122: 5 | CN122: 720 | CO122: 110.3757576 | CP122: 5298.036364 | CQ122: 10298.03636 | CR122: 0.06991624175 | CS122: 109.272 | CT122: 3 | CU122: 270 | CV122: 94.24 | CW122: ! | CZ122: 1 | DA122: 2 | DP122: 1 | DQ122: 1 | DT122: 5 | DU122: 4
A123: 100098848033 | B123: 1 | C123: 1 | D123: 1 | E123: 赤塚トラスト不動産（株） | F123: 0466-86-7508 | G123: 赤塚 法明 | J123: 2 | K123: 2019-05-09 | M123: 2019-05-27 | O123: 神奈川県 | P123: 藤沢市 | Q123: 鵠沼松が岡４丁目 | W123: 江ノ島線 | X123: 鵠沼海岸 | Y123: 8 | AJ123: 2 | AL123: 2 | AQ123: 4 | AR123: 1 | AU123: 39800000 | AW123: 1040000 | AX123: 315000 | AZ123: 2 | BA123: 126.56 | BG123: 2 | BK123: 0 | CA123: 3 | CB123: 1 | CD123: 1 | CE123: 1 | CG123: 1 | CH123: 40 | CI123: 80 | CJ123: 101.248 | CK123: 3.374933333 | CL123: 3 | CM123: 5 | CN123: 180 | CO123: 30.68121212 | CP123: 1472.698182 | CQ123: 5452.698182 | CR123: 0.03301117979 | CS123: 50.624 | CT123: 1 | CU123: 90 | CV123: 11.248 | CW123: ! | CZ123: 1 | DA123: 2 | DP123: 1 | DQ123: 1 | DR123: 7.1 | DT123: 4 | DU123: 4.1 | EK123: 1
A124: 100098848545 | B124: 1 | C124: 1 | D124: 1 | E124: （株）エフピーアンドホーム | F124: 0467-75-2211 | G124: 茂内 勝 | J124: 2 | K124: 2019-05-09 | L124: 2019-05-10 | O124: 神奈川県 | P124: 高座郡寒川町 | Q124: 一之宮５丁目 | W124: 相模線 | X124: 寒川 | Y124: 20 | AJ124: 2 | AL124: 2 | AQ124: 3 | AR124: 1 | AU124: 13800000 | AW124: 374000 | AX124: 114000 | BA124: 122.03 | CB124: 1 | CD124: 1 | CE124: 6 | CG124: 1 | CH124: 60 | CI124: 200 | CJ124: 244.06 | CK124: 8.135333333 | CL124: 8 | CM124: 5 | CN124: 480 | CO124: 73.95757576 | CP124: 3549.963636 | CQ124: 4929.963636 | CR124: 0.09736380132 | CS124: 73.218 | CT124: 2 | CU124: 180 | CV124: 64.06 | CW124: ! | CZ124: 1 | DA124: 2 | DP124: 2 | DQ124: 1 | DT124: 7 | DU124: 3.8 | DV124: 2 | DY124: 1 | DZ124: 4.1 | EK124: 1
A125: 100098848641 | B125: 1 | C125: 1 | D125: 1 | E125: パナソニック ホームズ不動産（株） 神奈川売買仲介センター | F125: 045-594-8746 | G125: 菅沼 | J125: 2 | K125: 2019-05-09 | O125: 神奈川県 | P125: 逗子市 | Q125: 小坪３丁目 | W125: 横須賀線 | X125: 逗子 | AA125: 8 | AB125: 小坪 | AD125: 9 | AJ125: 1 | AL125: 1 | AQ125: 4 | AR125: 1 | AU125: 165000000 | AW125: 602000 | AX125: 182000 | AZ125: 1 | BA125: 906.62 | BG125: 2 | BK125: 0 | BT125: 2 | CA125: 3 | CB125: 1 | CD125: 1 | CE125: 1 | CG125: 1 | CH125: 40 | CI125: 60 | CJ125: 543.972 | CK125: 18.1324 | CL125: 18 | CM125: 5 | CN125: 1080 | CO125: 164.84 | CP125: 7912.32 | CQ125: 24412.32 | CR125: 0.04423995753 | CS125: 362.648 | CT125: 12 | CU125: 1080 | CV125: -536.028 | DA125: 2 | DP125: 1 | DQ125: 1 | DR125: 27 | DS125: 2 | DT125: 5 | EK125: 1
A126: 100098849011 | B126: 1 | C126: 1 | D126: 1 | E126: （株）日本ビルド | F126: 044-861-8861 | J126: 2 | K126: 2019-05-09 | O126: 神奈川県 | P126: 川崎市多摩区 | Q126: 寺尾台１丁目 | R126: ４９２３－１６ | W126: 小田急線 | X126: 読売ランド前 | Y126: 9 | AJ126: 1 | AQ126: 1 | AS126: 3 | AU126: 32800000 | AW126: 706000 | AX126: 214000 | AZ126: 2 | BA126: 153.62 | CJ126: 153.62 | CK126: 5.120666667 | CL126: 5 | CM126: 5 | CN126: 300 | CO126: 46.55151515 | CP126: 2234.472727 | CQ126: 5514.472727 | CR126: 0.05440230006 | CS126: 92.172 | CT126: 3 | CU126: 270 | CV126: -116.38 | DP126: 2 | DQ126: 1
A127: 100098849066 | B127: 1 | C127: 1 | D127: 1 | E127: （株）ＧＯＯＤ ＬＩＶＩＮＧ | F127: 045-877-9006 | G127: 和田 | J127: 2 | K127: 2019-05-09 | L127: 2019-05-09 | O127: 神奈川県 | P127: 横浜市青葉区 | Q127: 田奈町 | W127: 田園都市線 | X127: 田奈 | Y127: 6 | AJ127: 2 | AL127: 2 | AQ127: 3 | AR127: 1 | AU127: 37800000 | AW127: 876000 | AX127: 265000 | AZ127: 1 | BA127: 142.67 | BG127: 2 | CB127: 1 | CD127: 1 | CE127: 1 | CG127: 1 | CH127: 50 | CI127: 80 | CJ127: 114.136 | CK127: 3.804533333 | CL127: 4 | CM127: 5 | CN127: 240 | CO127: 34.58666667 | CP127: 1660.16 | CQ127: 5440.16 | CR127: 0.04411634952 | CS127: 71.335 | CT127: 2 | CU127: 180 | CV127: -65.864 | CZ127: 4 | DA127: 2 | DP127: 1 | DQ127: 1 | DR127: 13 | DS127: 2 | DT127: 5 | DU127: 4.5 | EK127: 1 | GU127: 更地渡し予定
A128: 100098849357 | B128: 1 | C128: 1 | D128: 1 | E128: （株）ＧＯＯＤ ＬＩＶＩＮＧ | F128: 045-877-9006 | J128: 2 | K128: 2019-05-09 | L128: 2019-05-09 | O128: 神奈川県 | P128: 横浜市青葉区 | Q128: 田奈町 | W128: 田園都市線 | X128: 青葉台 | Y128: 14 | AJ128: 2 | AL128: 2 | AQ128: 3 | AR128: 1 | AU128: 37800000 | AW128: 876000 | AX128: 265000 | BA128: 142.67 | CD128: 1 | CE128: 1 | CG128: 1 | CH128: 50 | CI128: 80 | CJ128: 114.136 | CK128: 3.804533333 | CL128: 4 | CM128: 5 | CN128: 240 | CO128: 34.58666667 | CP128: 1660.16 | CQ128: 5440.16 | CR128: 0.04411634952 | CS128: 71.335 | CT128: 2 | CU128: 180 | CV128: -65.864 | CZ128: 4 | DA128: 2 | DP128: 1 | DQ128: 1 | DT128: 5
A129: 100098849384 | B129: 1 | C129: 1 | D129: 1 | E129: パナソニック ホームズ不動産（株） 神奈川売買仲介センター | F129: 045-594-8746 | J129: 2 | K129: 2019-05-09 | O129: 神奈川県 | P129: 藤沢市 | Q129: 鵠沼藤が谷２丁目 | W129: 東海道線 | X129: 藤沢 | AA129: 5 | AB129: 江ノ島行き | AC129: 藤が谷 | AD129: 3 | AE129: 220 | AJ129: 1 | AL129: 1 | AQ129: 5 | AR129: 1 | AU129: 68800000 | AW129: 799000 | AX129: 242000 | AZ129: 1 | BA129: 284.71 | BG129: 2 | BK129: 0 | CA129: 3 | CB129: 1 | CD129: 1 | CE129: 1 | CG129: 1 | CH129: 40 | CI129: 80 | CJ129: 227.768 | CK129: 7.592266667 | CL129: 8 | CM129: 5 | CN129: 480 | CO129: 69.02060606 | CP129: 3312.989091 | CQ129: 10192.98909 | CR129: 0.04709119138 | CS129: 113.884 | CT129: 3 | CU129: 270 | CV129: -42.232 | CZ129: 1 | DA129: 2 | DP129: 1 | DQ129: 1 | DR129: 14.7 | DT129: 5 | DU129: 4 | EK129: 1
A130: 100098849393 | B130: 1 | C130: 1 | D130: 1 | E130: パナソニック ホームズ不動産（株） 神奈川売買仲介センター | F130: 045-594-8746 | G130: 細川 | H130: 080-3153-0940 | I130: hosokawa.taiga@jp.panasonic.com | J130: 2 | K130: 2019-05-09 | O130: 神奈川県 | P130: 横浜市南区 | Q130: 六ツ川２丁目 | R130: １４－２７ | W130: 京浜急行線 | X130: 弘明寺 | Y130: 20 | AJ130: 2 | AL130: 2 | AQ130: 4 | AR130: 1 | AU130: 14800000 | AW130: 280000 | AX130: 85000 | AZ130: 1 | BA130: 174.97 | BG130: 2 | CA130: 3 | CB130: 1 | CC130: 1 | CD130: 1 | CE130: 1 | CG130: 1 | CH130: 50 | CI130: 100 | CJ130: 174.97 | CK130: 5.832333333 | CL130: 6 | CM130: 5 | CN130: 360 | CO130: 53.02121212 | CP130: 2545.018182 | CQ130: 4025.018182 | CR130: 0.08944058977 | CS130: 87.485 | CT130: 2 | CU130: 180 | CV130: -5.03 | CZ130: 2 | DA130: 2 | DP130: 1 | DQ130: 1 | DR130: 9.6 | DS130: 2 | DT130: 3 | DU130: 8.3 | EK130: 1 | GU130: 高低差５ｍ弱有り。
A131: 100098849396 | B131: 1 | C131: 1 | D131: 1 | E131: パナソニック ホームズ不動産（株） 神奈川売買仲介センター | F131: 045-594-8746 | G131: 菅沼 | I131: suganuma.kouichi@jp.panasonic.com | J131: 2 | K131: 2019-05-09 | O131: 神奈川県 | P131: 伊勢原市 | Q131: 高森３丁目 | R131: 2019-10-20 | W131: 小田急線 | X131: 愛甲石田 | AA131: 8 | AC131: 会館前 | AD131: 2 | AJ131: 2 | AL131: 2 | AQ131: 4 | AR131: 1 | AU131: 22300000 | AW131: 358000 | AX131: 109000 | AZ131: 1 | BA131: 206.33 | BG131: 2 | BK131: 0 | BT131: 2 | CA131: 3 | CB131: 1 | CD131: 1 | CE131: 1 | CG131: 1 | CH131: 50 | CI131: 100 | CJ131: =IF(ISBLANK(CI131),100,CI131)/100*BA131 -> 206.33 | CK131: =CJ131/30 -> 6.877666667 | CL131: =ROUND(CK131,0) -> 7 | CM131: 5 | CN131: =CM131*12*CL131 -> 420 | CO131: =CJ131/3.3 -> 62.52424242 | CP131: =CO131*40*1.2 -> 3001.163636 | CQ131: =CP131+(AU131/10000) -> 5231.163636 | CR131: =CN131/CQ131 -> 0.08028806384 | CS131: =IF(ISBLANK(CH131),60,CH131)/100*BA131 -> 103.165 | CT131: =ROUNDDOWN((CS131/30),0) -> 3 | CU131: =CT131*30*3 -> 270 | CV131: =CJ131-CU131 -> -63.67 | CW131: =IF(CV131>0, "!","") ->  | CZ131: 4 | DA131: 2 | DP131: 1 | DQ131: 1 | DR131: 13.5 | DS131: 2 | DT131: 7 | DU131: 4.5 | EK131: 1 | GU131: あかね台旧分譲地、南ひな壇造成 | GV131: 、日当り良好、約６２坪の整形地
A132: 100098849455 | B132: 1 | C132: 1 | D132: 1 | E132: 小田急不動産（株） 新百合ケ丘店 | F132: 044-966-0909 | G132: 髙橋 | H132: 044-966-0909 | I132: shinyuri@odakyu-fudosan.co.jp | J132: 2 | K132: 2019-05-09 | L132: 2019-05-10 | O132: 神奈川県 | P132: 川崎市麻生区 | Q132: 百合丘３丁目 | W132: 小田急線 | X132: 新百合ヶ丘 | Y132: 15 | AJ132: 2 | AL132: 2 | AQ132: 4 | AU132: 58000000 | AW132: 879000 | AX132: 266000 | AZ132: 1 | BA132: 218.18 | CA132: 3 | CB132: 1 | CD132: 1 | CE132: 11 | CG132: 1 | CH132: 60 | CI132: 200 | CJ132: 436.36 | CK132: 14.54533333 | CL132: 15 | CM132: 5 | CN132: 900 | CO132: 132.230303 | CP132: 6347.054545 | CQ132: 12147.05455 | CR132: 0.07409203578 | CS132: 130.908 | CT132: 4 | CU132: 360 | CV132: 76.36 | CW132: ! | DP132: 1 | DQ132: 1 | DT132: 6 | DU132: 11 | GW132: Ｈ３８４３
A133: 100098849855 | B133: 1 | C133: 1 | D133: 1 | E133: （株）山久建設不動産 | F133: 042-756-3939 | J133: 2 | K133: 2019-05-09 | O133: 神奈川県 | P133: 相模原市中央区 | Q133: 矢部３丁目 | W133: 横浜線 | X133: 矢部 | Y133: 6 | AJ133: 1 | AL133: 2 | AQ133: 1 | AU133: 29800000 | AW133: 813000 | AX133: 246000 | BA133: 121.24 | CB133: 1 | CD133: 1 | CE133: 12 | CH133: 60 | CI133: 200 | CJ133: 242.48 | CK133: 8.082666667 | CL133: 8 | CM133: 5 | CN133: 480 | CO133: 73.47878788 | CP133: 3526.981818 | CQ133: 6506.981818 | CR133: 0.07376691889 | CS133: 72.744 | CT133: 2 | CU133: 180 | CV133: 62.48 | CW133: ! | DA133: 1
A134: 100098850661 | B134: 1 | C134: 1 | D134: 1 | E134: （有）ランドアルファ | F134: 0467-32-8801 | J134: 2 | K134: 2019-05-09 | O134: 神奈川県 | P134: 横浜市鶴見区 | Q134: 東寺尾東台 | W134: 京浜急行線 | X134: 生麦 | Y134: 17 | AJ134: 2 | AL134: 1 | AQ134: 4 | AR134: 1 | AU134: 40800000 | AW134: 643000 | AX134: 195000 | AZ134: 2 | BA134: 210.01 | BG134: 1 | BH134: 158 | BK134: 1 | BL134: 0.35 | BM134: 1.01 | BT134: 1 | BU134: 32.3 | CB134: 1 | CC134: 1 | CD134: 1 | CE134: 2 | CG134: 1 | CH134: 60 | CI134: 150 | CJ134: 315.015 | CK134: 10.5005 | CL134: 11 | CM134: 5 | CN134: 660 | CO134: 95.45909091 | CP134: 4582.036364 | CQ134: 8662.036364 | CR134: 0.07619455429 | CS134: 126.006 | CT134: 4 | CU134: 360 | CV134: -44.985 | CZ134: 1 | DP134: 1 | DQ134: 2 | DR134: 2.8 | DS134: 2 | DT134: 5 | DU134: 3.3 | EK134: 2
A135: 100098851029 | B135: 1 | C135: 1 | D135: 1 | E135: （株）アーネストワン 町田営業所 | F135: 042-739-3757 | G135: 北村 | J135: 2 | K135: 2019-05-09 | L135: 2019-05-13 | O135: 神奈川県 | P135: 厚木市 | Q135: 林５丁目 | W135: 小田急線 | X135: 本厚木 | AA135: 12 | AC135: 穴口橋 | AD135: 3 | AJ135: 1 | AL135: 2 | AQ135: 1 | AR135: 4 | AS135: 3 | AU135: 26800000 | AW135: 648000 | AX135: 196000 | AZ135: 1 | BA135: 136.91 | CB135: 1 | CD135: 1 | CE135: 13 | CH135: 60 | CI135: 200 | CJ135: 273.82 | CK135: 9.127333333 | CL135: 9 | CM135: 5 | CN135: 540 | CO135: 82.97575758 | CP135: 3982.836364 | CQ135: 6662.836364 | CR135: 0.08104656494 | CS135: 82.146 | CT135: 2 | CU135: 180 | CV135: 93.82 | CW135: ! | CZ135: 1 | DQ135: 1 | DS135: 2 | DT135: 6 | DU135: 29 | EK135: 1 | GU135: 厚木市林第４ ①土地売り
A136: 100098852978 | B136: 1 | C136: 1 | D136: 1 | E136: 三菱ＵＦＪ不動産販売（株） 藤沢センター | F136: 0466-22-4981 | G136: 井上 | J136: 2 | K136: 2019-05-09 | L136: 2019-05-10 | O136: 神奈川県 | P136: 平塚市 | Q136: 虹ケ浜 | W136: 東海道線 | X136: 平塚 | Y136: 22 | AJ136: 1 | AL136: 2 | AQ136: 4 | AR136: 1 | AU136: 24800000 | AW136: 487000 | AX136: 148000 | AZ136: 1 | BA136: 168.59 | BG136: 2 | BK136: 1 | BM136: 17 | BT136: 2 | CA136: 3 | CB136: 1 | CD136: 1 | CE136: 1 | CH136: 60 | CI136: 100 | CJ136: 168.59 | CK136: 5.619666667 | CL136: 6 | CM136: 5 | CN136: 360 | CO136: 51.08787879 | CP136: 2452.218182 | CQ136: 4932.218182 | CR136: 0.07298947182 | CS136: 101.154 | CT136: 3 | CU136: 270 | CV136: -101.41 | CZ136: 1 | DA136: 2 | DP136: 2 | DQ136: 1 | DR136: 9.8 | DT136: 7 | DU136: 4 | DV136: 1 | DW136: 14.5 | DY136: 1 | DZ136: 2.9
A137: 100098853754 | B137: 1 | C137: 1 | D137: 1 | E137: （株）さがみ住宅 | F137: 045-391-2611 | J137: 2 | K137: 2019-05-09 | O137: 神奈川県 | P137: 大和市 | Q137: 渋谷８丁目 | W137: 江ノ島線 | X137: 高座渋谷 | Y137: 4 | AJ137: 1 | AL137: 1 | AQ137: 4 | AR137: 1 | AU137: 35400000 | AW137: 750000 | AX137: 227000 | AZ137: 2 | BA137: 156.04 | CB137: 5 | CD137: 1 | CE137: 12 | CG137: 1 | CH137: 60 | CI137: 200 | CJ137: 312.08 | CK137: 10.40266667 | CL137: 10 | CM137: 5 | CN137: 600 | CO137: 94.56969697 | CP137: 4539.345455 | CQ137: 8079.345455 | CR137: 0.07426344168 | CS137: 93.624 | CT137: 3 | CU137: 270 | CV137: 42.08 | CW137: ! | CZ137: 1 | DP137: 1 | DQ137: 1 | DT137: 3 | DU137: 5
A138: 100098854436 | B138: 1 | C138: 1 | D138: 1 | E138: （株）さがみ住宅 | F138: 045-391-2611 | J138: 2 | K138: 2019-05-09 | O138: 神奈川県 | P138: 大和市 | Q138: 渋谷８丁目 | W138: 江ノ島線 | X138: 高座渋谷 | Y138: 4 | AJ138: 1 | AL138: 1 | AQ138: 4 | AR138: 1 | AU138: 29900000 | AW138: 799000 | AX138: 242000 | AZ138: 2 | BA138: 123.8 | CB138: 5 | CD138: 1 | CE138: 12 | CG138: 1 | CH138: 60 | CI138: 200 | CJ138: 247.6 | CK138: 8.253333333 | CL138: 8 | CM138: 5 | CN138: 480 | CO138: 75.03030303 | CP138: 3601.454545 | CQ138: 6591.454545 | CR138: 0.0728215596 | CS138: 74.28 | CT138: 2 | CU138: 180 | CV138: 67.6 | CW138: ! | CZ138: 1 | DA138: 2 | DP138: 1 | DQ138: 1 | DT138: 1 | DU138: 6
A139: 100098854761 | B139: 1 | C139: 1 | D139: 1 | E139: スギヤマハウス（株） | F139: 046-834-4600 | J139: 2 | K139: 2019-05-09 | O139: 神奈川県 | P139: 三浦市 | Q139: 向ケ崎町 | W139: 久里浜線 | X139: 三崎口 | AA139: 22 | AD139: 1 | AJ139: 1 | AL139: 1 | AQ139: 4 | AR139: 1 | AU139: 15800000 | AW139: 305000 | AX139: 93000 | AZ139: 1 | BA139: 171.71 | BK139: 1 | BM139: 14 | CB139: 1 | CD139: 1 | CE139: 12 | CG139: 1 | CJ139: 171.71 | CK139: 5.723666667 | CL139: 6 | CM139: 5 | CN139: 360 | CO139: 52.03333333 | CP139: 2497.6 | CQ139: 4077.6 | CR139: 0.08828722778 | CS139: 103.026 | CT139: 3 | CU139: 270 | CV139: -98.29 | DA139: 2 | DP139: 5 | DQ139: 1 | DR139: 12 | DT139: 3 | DU139: 7.5 | EK139: 1
A140: 100098854794 | B140: 1 | C140: 1 | D140: 1 | E140: スギヤマハウス（株） | F140: 046-834-4600 | J140: 2 | K140: 2019-05-09 | O140: 神奈川県 | P140: 横須賀市 | Q140: 長井３丁目 | W140: 久里浜線 | X140: 三崎口 | AA140: 10 | AD140: 7 | AJ140: 1 | AL140: 2 | AQ140: 4 | AR140: 1 | AU140: 12800000 | AW140: 321000 | AX140: 97000 | AZ140: 1 | BA140: 132.13 | CB140: 1 | CC140: 1 | CD140: 1 | CE140: 11 | CG140: 1 | CH140: 60 | CI140: 200 | CJ140: 264.26 | CK140: 8.808666667 | CL140: 9 | CM140: 5 | CN140: 540 | CO140: 80.07878788 | CP140: 3843.781818 | CQ140: 5123.781818 | CR140: 0.1053909044 | CS140: 79.278 | CT140: 2 | CU140: 180 | CV140: 84.26 | CW140: ! | CZ140: 1 | DA140: 2 | DP140: 1 | DQ140: 1 | DR140: 5 | DU140: 4 | EK140: 1
A141: 100098855750 | B141: 1 | C141: 1 | D141: 1 | E141: 山京ビルマネジメント（株） 東京本社 | F141: 03-3264-0011 | J141: 2 | K141: 2019-05-09 | O141: 神奈川県 | P141: 横浜市磯子区 | Q141: 杉田８丁目 | W141: 京浜急行線 | X141: 杉田 | Y141: 21 | AJ141: 2 | AL141: 2 | AQ141: 4 | AR141: 1 | AU141: 29800000 | AW141: 628000 | AX141: 190000 | AZ141: 1 | BA141: 157.06 | BG141: 2 | CB141: 1 | CD141: 1 | CE141: 1 | CG141: 1 | CH141: 50 | CI141: 80 | CJ141: 125.648 | CK141: 4.188266667 | CL141: 4 | CM141: 5 | CN141: 240 | CO141: 38.07515152 | CP141: 1827.607273 | CQ141: 4807.607273 | CR141: 0.04992088296 | CS141: 78.53 | CT141: 2 | CU141: 180 | CV141: -54.352 | DP141: 2 | DQ141: 1 | EK141: 1
A142: 100098856721 | B142: 1 | C142: 1 | D142: 1 | E142: （株）日建不動産 | F142: 0463-73-7517 | G142: 南 | H142: 080-1354-7321 | J142: 2 | K142: 2019-05-09 | O142: 神奈川県 | P142: 小田原市 | Q142: 曽我原 | W142: 御殿場線 | X142: 下曽我 | Y142: 5 | AJ142: 2 | AL142: 2 | AQ142: 4 | AR142: 1 | AU142: 14800000 | AW142: 193000 | AX142: 59000 | AZ142: 1 | BA142: 253.85 | CB142: 1 | CC142: 1 | CD142: 2 | CE142: 99 | CG142: 1 | CH142: 50 | CI142: 80 | CJ142: 203.08 | CK142: 6.769333333 | CL142: 7 | CM142: 5 | CN142: 420 | CO142: 61.53939394 | CP142: 2953.890909 | CQ142: 4433.890909 | CR142: 0.09472492865 | CS142: 126.925 | CT142: 4 | CU142: 360 | CV142: -156.92 | CZ142: 1 | DA142: 2 | DP142: 2 | DQ142: 1 | EK142: 1
A143: 100098857274 | B143: 1 | C143: 1 | D143: 1 | E143: （株）ＡＱＵＡ ＲＥＳＯＲＴ | F143: 042-646-0017 | J143: 2 | K143: 2019-05-09 | O143: 神奈川県 | P143: 川崎市川崎区 | Q143: 駅前本町 | R143: ２３番２ | W143: 京急大師線 | X143: 京急川崎 | Y143: 2 | AJ143: 2 | AL143: 1 | AQ143: 1 | AU143: 320000000 | AW143: 5990000 | AX143: 1812000 | AZ143: 1 | BA143: 176.62 | CD143: 1 | CE143: 5 | CH143: 80 | CI143: 500 | CJ143: 883.1 | CK143: 29.43666667 | CL143: 29 | CM143: 5 | CN143: 1740 | CO143: 267.6060606 | CP143: 12845.09091 | CQ143: 44845.09091 | CR143: 0.03880023353 | CS143: 141.296 | CT143: 4 | CU143: 360 | CV143: 523.1 | CW143: !
A144: 100098860643 | B144: 1 | C144: 1 | D144: 1 | E144: （株）シティ住宅館 | F144: 046-271-2201 | J144: 2 | K144: 2019-05-09 | O144: 神奈川県 | P144: 大和市 | Q144: 西鶴間４丁目 | W144: 江ノ島線 | X144: 鶴間 | Y144: 10 | AJ144: 2 | AL144: 2 | AQ144: 4 | AU144: 24000000 | AW144: 635000 | AX144: 192000 | BA144: 125 | BG144: 2 | CA144: 3 | CH144: 50 | CI144: 100 | CJ144: 125 | CK144: 4.166666667 | CL144: 4 | CM144: 5 | CN144: 240 | CO144: 37.87878788 | CP144: 1818.181818 | CQ144: 4218.181818 | CR144: 0.05689655172 | CS144: 62.5 | CT144: 2 | CU144: 180 | CV144: -55 | DA144: 2
A145: 100098860830 | B145: 1 | C145: 1 | D145: 1 | E145: （株）アベニユー | F145: 03-5370-2621 | G145: 小尾 | H145: 090-9307-4817 | J145: 2 | K145: 2019-05-10 | L145: 2019-05-13 | O145: 神奈川県 | P145: 横浜市金沢区 | Q145: 能見台通 | R145: ２３１－２０１ | W145: 京浜急行線 | X145: 能見台 | Y145: 3 | Z145: 240 | AJ145: 1 | AL145: 1 | AQ145: 2 | AR145: 9 | AS145: 3 | AU145: 88000000 | AW145: 898000 | AX145: 272000 | AZ145: 1 | BA145: 324.29 | BP145: 1 | CB145: 1 | CD145: 1 | CE145: 1 | CG145: 1 | CH145: 40 | CI145: 80 | CJ145: 259.432 | CK145: 8.647733333 | CL145: 9 | CM145: 5 | CN145: 540 | CO145: 78.61575758 | CP145: 3773.556364 | CQ145: 12573.55636 | CR145: 0.04294727636 | CS145: 129.716 | CT145: 4 | CU145: 360 | CV145: -100.568 | DQ145: 1 | DR145: 22.4 | DT145: 3 | DU145: 4.5
A146: 100098862198 | B146: 1 | C146: 1 | D146: 1 | E146: 三井不動産リアルティ（株）三井のリハウスたまプラーザセンター | F146: 045-903-3131 | J146: 2 | K146: 2019-05-10 | L146: 2019-05-11 | O146: 神奈川県 | P146: 横浜市青葉区 | Q146: 荏田西２丁目 | W146: 田園都市線 | X146: 江田 | Y146: 11 | AJ146: 2 | AL146: 2 | AQ146: 3 | AR146: 1 | AU146: 63000000 | AW146: 1042000 | AX146: 315000 | AZ146: 1 | BA146: 200 | CA146: 3 | CB146: 1 | CD146: 1 | CE146: 1 | CG146: 1 | CH146: 40 | CI146: 80 | CJ146: 160 | CK146: 5.333333333 | CL146: 5 | CM146: 5 | CN146: 300 | CO146: 48.48484848 | CP146: 2327.272727 | CQ146: 8627.272727 | CR146: 0.03477344573 | CS146: 80 | CT146: 2 | CU146: 180 | CV146: -20 | DA146: 2 | DP146: 5 | DQ146: 1 | DR146: 10.1 | DS146: 2 | DT146: 3 | DU146: 6.5 | DV146: 1 | DW146: 10.1 | DX146: 2 | DY146: 7 | DZ146: 4.5 | GQ146: 青葉郵便局 | GR146: 410 | GS146: 6 | GT146: 1 | GU146: Ｆ８７Ｗ４Ａ２８ 古家有り
A147: 100098862258 | B147: 1 | C147: 1 | D147: 1 | E147: 相鉄不動産販売（株） 流通事業部緑園都市店 | F147: 045-813-4551 | G147: 小見渕 大介 | H147: 458134551 | J147: 2 | K147: 2019-05-10 | O147: 神奈川県 | P147: 横浜市泉区 | Q147: 緑園６丁目 | W147: いずみ野線 | X147: 南万騎が原 | Y147: 8 | AJ147: 2 | AL147: 2 | AQ147: 4 | AR147: 1 | AU147: 39900000 | AW147: 737000 | AX147: 223000 | AZ147: 1 | BA147: 179.07 | BG147: 2 | CA147: 3 | CB147: 1 | CD147: 1 | CE147: 1 | CH147: 40 | CI147: 80 | CJ147: 143.256 | CK147: 4.7752 | CL147: 5 | CM147: 5 | CN147: 300 | CO147: 43.41090909 | CP147: 2083.723636 | CQ147: 6073.723636 | CR147: 0.04939309359 | CS147: 71.628 | CT147: 2 | CU147: 180 | CV147: -36.744 | CZ147: 4 | DA147: 2 | DP147: 2 | DQ147: 1 | DS147: 2 | DT147: 1 | DU147: 6.5 | DV147: 1 | DX147: 2 | DY147: 3 | DZ147: 6.5 | EK147: 1 | GQ147: 緑園東小学校 | GR147: 750 | GS147: 10 | GT147: 1 | GU147: ＳＲＥ０９５６８
A148: 100098862274 | B148: 1 | C148: 1 | D148: 1 | E148: 三井不動産リアルティ（株）三井のリハウス本厚木センター | F148: 046-221-3131 | J148: 2 | K148: 2019-05-10 | L148: 2019-05-11 | O148: 神奈川県 | P148: 伊勢原市 | Q148: 東成瀬 | W148: 小田急線 | X148: 愛甲石田 | Y148: 9 | Z148: 700 | AJ148: 1 | AL148: 2 | AQ148: 4 | AR148: 1 | AU148: 27500000 | AW148: 562000 | AX148: 170000 | AZ148: 1 | BA148: 162 | CA148: 3 | CB148: 1 | CC148: 1 | CD148: 1 | CE148: 12 | CG148: 1 | CH148: 60 | CI148: 200 | CJ148: 324 | CK148: 10.8 | CL148: 11 | CM148: 5 | CN148: 660 | CO148: 98.18181818 | CP148: 4712.727273 | CQ148: 7462.727273 | CR148: 0.0884395176 | CS148: 97.2 | CT148: 3 | CU148: 270 | CV148: 54 | CW148: ! | CZ148: 1 | DA148: 2 | DP148: 1 | DQ148: 1 | DR148: 11.2 | DS148: 2 | DT148: 7 | DU148: 5 | EK148: 1 | GQ148: ローソン伊勢原伊志田店 | GR148: 100 | GS148: 2 | GT148: 1 | GU148: Ｆ５９Ｗ４Ａ１３
A149: 100098864402 | B149: 1 | C149: 1 | D149: 1 | E149: （株）プリンシパルホーム | F149: 042-709-6206 | G149: 木村 | J149: 2 | K149: 2019-05-10 | O149: 神奈川県 | P149: 相模原市南区 | Q149: 鵜野森１丁目 | W149: 横浜線 | X149: 町田 | AA149: 8 | AB149: 町田バスセンター行 | AC149: グリーンハイツＦ４前 | AD149: 1 | AL149: 2 | AQ149: 1 | AU149: 34300000 | AW149: 925000 | AX149: 280000 | BA149: 122.62 | CB149: 4 | CD149: 1 | CE149: 11 | CH149: 60 | CI149: 200 | CJ149: 245.24 | CK149: 8.174666667 | CL149: 8 | CM149: 5 | CN149: 480 | CO149: 74.31515152 | CP149: 3567.127273 | CQ149: 6997.127273 | CR149: 0.06859958113 | CS149: 73.572 | CT149: 2 | CU149: 180 | CV149: 65.24 | CW149: ! | DP149: 1 | DQ149: 1 | DR149: 5 | DT149: 6 | EK149: 1
A150: 100098864424 | B150: 1 | C150: 1 | D150: 1 | E150: （株）プリンシパルホーム | F150: 042-709-6206 | G150: 木村 | J150: 2 | K150: 2019-05-10 | O150: 神奈川県 | P150: 相模原市南区 | Q150: 鵜野森１丁目 | W150: 横浜線 | X150: 町田 | AA150: 8 | AB150: 町田バスセンター行 | AC150: グリーンハイツＦ４前 | AD150: 1 | AL150: 2 | AQ150: 1 | AU150: 33300000 | AW150: 875000 | AX150: 265000 | BA150: 125.91 | CB150: 4 | CD150: 1 | CE150: 11 | CH150: 60 | CI150: 200 | CJ150: 251.82 | CK150: 8.394 | CL150: 8 | CM150: 5 | CN150: 480 | CO150: 76.30909091 | CP150: 3662.836364 | CQ150: 6992.836364 | CR150: 0.06864167486 | CS150: 75.546 | CT150: 2 | CU150: 180 | CV150: 71.82 | CW150: ! | DP150: 1 | DQ150: 1 | DR150: 5 | DT150: 6 | EK150: 1
A151: 100098864514 | B151: 1 | C151: 1 | D151: 1 | E151: （株）プリンシパルホーム | F151: 042-709-6206 | G151: 木村 | J151: 2 | K151: 2019-05-10 | O151: 神奈川県 | P151: 相模原市南区 | Q151: 鵜野森１丁目 | W151: 横浜線 | X151: 町田 | AA151: 8 | AB151: 町田バスセンター行 | AC151: グリーンハイツＦ４前 | AD151: 1 | AL151: 2 | AQ151: 1 | AU151: 34300000 | AW151: 913000 | AX151: 277000 | BA151: 124.23 | CB151: 4 | CD151: 1 | CE151: 11 | CH151: 60 | CI151: 200 | CJ151: 248.46 | CK151: 8.282 | CL151: 8 | CM151: 5 | CN151: 480 | CO151: 75.29090909 | CP151: 3613.963636 | CQ151: 7043.963636 | CR151: 0.06814345229 | CS151: 74.538 | CT151: 2 | CU151: 180 | CV151: 68.46 | CW151: ! | DP151: 1 | DQ151: 1 | DR151: 5 | DT151: 6 | EK151: 1
A152: 100098866368 | B152: 1 | C152: 1 | D152: 1 | E152: （株）スミタイ | F152: 045-287-5050 | G152: 野木 | I152: nogi.h@sumitainet.com | J152: 2 | K152: 2019-05-10 | O152: 神奈川県 | P152: 横浜市港北区 | Q152: 日吉１丁目 | R152: １－４８ | U152: 住居表示は１丁目７－１６ | W152: 東横線 | X152: 日吉 | Y152: 11 | AJ152: 1 | AL152: 2 | AQ152: 1 | AU152: 69800000 | AW152: 1453000 | AX152: 440000 | AZ152: 2 | BA152: 158.89 | CB152: 1 | CD152: 1 | CE152: 1 | CH152: 50 | CI152: 100 | CJ152: 158.89 | CK152: 5.296333333 | CL152: 5 | CM152: 5 | CN152: 300 | CO152: 48.14848485 | CP152: 2311.127273 | CQ152: 9291.127273 | CR152: 0.03228886993 | CS152: 79.445 | CT152: 2 | CU152: 180 | CV152: -21.11 | DP152: 2 | DQ152: 1 | DU152: 4
A153: 100098866685 | B153: 1 | C153: 1 | D153: 1 | E153: リージェン（株） | F153: 045-680-1244 | G153: 安里 | H153: 090-1036-7838 | I153: regen.asato@gmail.com | J153: 2 | K153: 2019-05-10 | L153: 2019-05-10 | O153: 神奈川県 | P153: 横浜市鶴見区 | Q153: 東寺尾北台 | R153: ７―１１ | W153: 京浜東北線 | X153: 鶴見 | Y153: 15 | AJ153: 1 | AL153: 1 | AQ153: 1 | AR153: 4 | AU153: 49800000 | AW153: 1150000 | AX153: 348000 | AZ153: 1 | BA153: 143.22 | BG153: 2 | BK153: 1 | BM153: 5 | BT153: 2 | CB153: 1 | CD153: 1 | CE153: 1 | CG153: 1 | CH153: 50 | CI153: 100 | CJ153: 143.22 | CK153: 4.774 | CL153: 5 | CM153: 5 | CN153: 300 | CO153: 43.4 | CP153: 2083.2 | CQ153: 7063.2 | CR153: 0.04247366633 | CS153: 71.61 | CT153: 2 | CU153: 180 | CV153: -36.78 | CZ153: 1 | DP153: 1 | DQ153: 1 | DR153: 7.2 | DS153: 2 | DT153: 6 | DU153: 2.6 | EK153: 1
A154: 100098866988 | B154: 1 | C154: 1 | D154: 1 | E154: （有）オール・カマー | F154: 0463-92-0015 | J154: 2 | K154: 2019-05-10 | O154: 神奈川県 | P154: 茅ヶ崎市 | Q154: 下寺尾 | AJ154: 1 | AL154: 2 | AQ154: 1 | AU154: 17400000 | AW154: 350000 | AX154: 106000 | BA154: 164.74 | CJ154: 164.74 | CK154: 5.491333333 | CL154: 5 | CM154: 5 | CN154: 300 | CO154: 49.92121212 | CP154: 2396.218182 | CQ154: 4136.218182 | CR154: 0.07253002303 | CS154: 98.844 | CT154: 3 | CU154: 270 | CV154: -105.26
A155: 100098867021 | B155: 1 | C155: 1 | D155: 1 | E155: （有）オール・カマー | F155: 0463-92-0015 | J155: 2 | K155: 2019-05-10 | O155: 神奈川県 | P155: 茅ヶ崎市 | Q155: 下寺尾 | AJ155: 1 | AL155: 2 | AQ155: 1 | AU155: 17400000 | AW155: 376000 | AX155: 114000 | BA155: 153.07 | CJ155: 153.07 | CK155: 5.102333333 | CL155: 5 | CM155: 5 | CN155: 300 | CO155: 46.38484848 | CP155: 2226.472727 | CQ155: 3966.472727 | CR155: 0.07563395002 | CS155: 91.842 | CT155: 3 | CU155: 270 | CV155: -116.93
A156: 100098867043 | B156: 1 | C156: 1 | D156: 1 | E156: （有）オール・カマー | F156: 0463-92-0015 | J156: 2 | K156: 2019-05-10 | O156: 神奈川県 | P156: 茅ヶ崎市 | Q156: 下寺尾 | AJ156: 1 | AL156: 2 | AQ156: 1 | AU156: 15800000 | AW156: 283000 | AX156: 86000 | BA156: 184.85 | CJ156: 184.85 | CK156: 6.161666667 | CL156: 6 | CM156: 5 | CN156: 360 | CO156: 56.01515152 | CP156: 2688.727273 | CQ156: 4268.727273 | CR156: 0.08433427038 | CS156: 110.91 | CT156: 3 | CU156: 270 | CV156: -85.15
A157: 100098867331 | B157: 1 | C157: 1 | D157: 1 | E157: （株）マイシティハウジング | F157: 0467-48-0880 | J157: 2 | K157: 2019-05-10 | O157: 神奈川県 | P157: 鎌倉市 | Q157: 大船３丁目 | R157: 2019-11-28 | W157: 東海道線 | X157: 大船 | Y157: 9 | AJ157: 2 | AL157: 2 | AQ157: 1 | AR157: 4 | AU157: 54800000 | AW157: 1320000 | AX157: 400000 | BA157: 137.3 | CB157: 1 | CD157: 1 | CE157: 3 | CH157: 60 | CI157: 160 | CJ157: 219.68 | CK157: 7.322666667 | CL157: 7 | CM157: 5 | CN157: 420 | CO157: 66.56969697 | CP157: 3195.345455 | CQ157: 8675.345455 | CR157: 0.04841305769 | CS157: 82.38 | CT157: 2 | CU157: 180 | CV157: 39.68 | CW157: ! | DA157: 2 | DP157: 1 | DQ157: 1 | DT157: 6 | DU157: 4 | EK157: 1 | GQ157: 大船小学校 | GS157: 4 | GT157: 1 | GU157: 手数料３％税込
A158: 100098867814 | B158: 1 | C158: 1 | D158: 1 | E158: （株）拓新ホーム | F158: 03-3406-4321 | G158: 木嶋 | J158: 2 | K158: 2019-05-10 | O158: 神奈川県 | P158: 横浜市中区 | Q158: 山手町 | R158: 2019-08-25 | W158: 京浜東北線 | X158: 石川町 | Y158: 7 | AJ158: 2 | AL158: 2 | AQ158: 5 | AR158: 1 | AU158: 98000000 | AW158: 952000 | AX158: 288000 | BA158: 340.6 | BT158: 1 | CB158: 1 | CD158: 1 | CE158: 1 | CG158: 1 | CH158: 40 | CI158: 80 | CJ158: 272.48 | CK158: 9.082666667 | CL158: 9 | CM158: 5 | CN158: 540 | CO158: 82.56969697 | CP158: 3963.345455 | CQ158: 13763.34545 | CR158: 0.03923464697 | CS158: 136.24 | CT158: 4 | CU158: 360 | CV158: -87.52
A159: 100098867833 | B159: 1 | C159: 1 | D159: 1 | E159: （株）サマールホーム | F159: 045-594-8446 | J159: 2 | K159: 2019-05-10 | O159: 神奈川県 | P159: 横浜市南区 | Q159: 三春台 | R159: １５１－５ | W159: 京浜急行線 | X159: 南太田 | Y159: 8 | AJ159: 1 | AL159: 1 | AQ159: 1 | AR159: 4 | AS159: 3 | AU159: 22900000 | AW159: 495000 | AX159: 150000 | AZ159: 2 | BA159: 153.11 | BG159: 1 | BK159: 1 | BM159: 16.7 | CB159: 1 | CD159: 1 | CE159: 12 | CG159: 1 | CH159: 60 | CI159: 200 | CJ159: 306.22 | CK159: 10.20733333 | CL159: 10 | CM159: 5 | CN159: 600 | CO159: 92.79393939 | CP159: 4454.109091 | CQ159: 6744.109091 | CR159: 0.08896653241 | CS159: 91.866 | CT159: 3 | CU159: 270 | CV159: 36.22 | CW159: ! | CZ159: 1 | DA159: 2 | DP159: 1 | DQ159: 2 | EK159: 1
A160: 100098868115 | B160: 1 | C160: 1 | D160: 1 | E160: （株）拓新ホーム | F160: 03-3406-4321 | G160: 木嶋 | H160: 080-7027-3011 | I160: kijima@takushinhome.co.jp | J160: 2 | K160: 2019-05-10 | O160: 神奈川県 | P160: 藤沢市 | Q160: 鵠沼桜が岡２丁目 | W160: 江ノ島線 | X160: 本鵠沼 | Y160: 10 | AJ160: 2 | AL160: 2 | AQ160: 5 | AR160: 1 | AU160: 42000000 | AW160: 874000 | AX160: 265000 | AZ160: 1 | BA160: 158.87 | CB160: 1 | CD160: 1 | CE160: 1 | CG160: 1 | CH160: 40 | CI160: 80 | CJ160: 127.096 | CK160: 4.236533333 | CL160: 4 | CM160: 5 | CN160: 240 | CO160: 38.51393939 | CP160: 1848.669091 | CQ160: 6048.669091 | CR160: 0.03967815008 | CS160: 63.548 | CT160: 2 | CU160: 180 | CV160: -52.904
A161: 100098868150 | B161: 1 | C161: 1 | D161: 1 | E161: （株）拓新ホーム | F161: 03-3406-4321 | G161: 木嶋 | H161: 080-7027-3011 | I161: kijima@takushinhome.co.jp | J161: 2 | K161: 2019-05-10 | O161: 神奈川県 | P161: 横浜市鶴見区 | Q161: 馬場２丁目 | W161: 東横線 | X161: 菊名 | AA161: 14 | AB161: 臨港 | AC161: 馬場町 | AD161: 8 | AJ161: 2 | AL161: 2 | AQ161: 5 | AR161: 1 | AU161: 40000000 | AW161: 190000 | AX161: 58000 | AZ161: 1 | BA161: 698 | CB161: 4 | CD161: 1 | CE161: 1 | CH161: 50 | CI161: 100 | CJ161: 698 | CK161: 23.26666667 | CL161: 23 | CM161: 5 | CN161: 1380 | CO161: 211.5151515 | CP161: 10152.72727 | CQ161: 14152.72727 | CR161: 0.09750770812 | CS161: 349 | CT161: 11 | CU161: 990 | CV161: -292 | GU161: 西側４３条但書／分筆不可 | GV161: 諸条件相談可
A162: 100098868162 | B162: 1 | C162: 1 | D162: 1 | E162: （株）ドリームプランニング | F162: 046-850-6133 | J162: 2 | K162: 2019-05-10 | O162: 神奈川県 | P162: 横浜市金沢区 | Q162: 富岡東３丁目 | U162: Ａ区画 | W162: 京浜急行線 | X162: 京急富岡 | Y162: 14 | AJ162: 1 | AL162: 2 | AQ162: 1 | AS162: 3 | AU162: 24980000 | AW162: 514000 | AX162: 156000 | BA162: 160.93 | BG162: 1 | BH162: 6.03 | BK162: 1 | BM162: 6.03 | CB162: 1 | CD162: 1 | CE162: 1 | CG162: 1 | CH162: 50 | CI162: 80 | CJ162: 128.744 | CK162: 4.291466667 | CL162: 4 | CM162: 5 | CN162: 240 | CO162: 39.01333333 | CP162: 1872.64 | CQ162: 4370.64 | CR162: 0.05491186645 | CS162: 80.465 | CT162: 2 | CU162: 180 | CV162: -51.256 | DA162: 2 | DQ162: 1 | DU162: 3.4 | DV162: 2 | DZ162: 4.5 | GU162: 売主手数料３％
A163: 100098868266 | B163: 1 | C163: 1 | D163: 1 | E163: （株）ドリームプランニング | F163: 046-850-6133 | J163: 2 | K163: 2019-05-10 | O163: 神奈川県 | P163: 横浜市金沢区 | Q163: 富岡東３丁目 | U163: Ｂ区画 | W163: 京浜急行線 | X163: 京急富岡 | Y163: 14 | AJ163: 1 | AL163: 2 | AQ163: 1 | AS163: 3 | AU163: 26980000 | AW163: 555000 | AX163: 168000 | BA163: 160.93 | BG163: 1 | BH163: 5.7 | BK163: 1 | BM163: 5.7 | CB163: 1 | CD163: 1 | CE163: 1 | CG163: 1 | CH163: 50 | CI163: 80 | CJ163: 128.744 | CK163: 4.291466667 | CL163: 4 | CM163: 5 | CN163: 240 | CO163: 39.01333333 | CP163: 1872.64 | CQ163: 4570.64 | CR163: 0.05250905781 | CS163: 80.465 | CT163: 2 | CU163: 180 | CV163: -51.256 | DA163: 2 | DQ163: 1 | DU163: 3.4 | DV163: 2 | DZ163: 4.5 | GU163: 手数料３％
A164: 100098868384 | B164: 1 | C164: 1 | D164: 1 | E164: （株）ホリエステート | F164: 0463-68-0777 | G164: 堀江 | J164: 2 | K164: 2019-05-10 | O164: 神奈川県 | P164: 秦野市 | Q164: 北矢名 | W164: 小田急線 | X164: 東海大学前 | Y164: 11 | AJ164: 2 | AL164: 2 | AQ164: 4 | AR164: 1 | AU164: 21000000 | AW164: 347000 | AX164: 105000 | AZ164: 1 | BA164: 200.53 | CB164: 1 | CC164: 1 | CD164: 1 | CE164: 11 | CF164: 12 | CJ164: 200.53 | CK164: 6.684333333 | CL164: 7 | CM164: 5 | CN164: 420 | CO164: 60.76666667 | CP164: 2916.8 | CQ164: 5016.8 | CR164: 0.08371870515 | CS164: 120.318 | CT164: 4 | CU164: 360 | CV164: -159.47 | DA164: 2 | DP164: 1 | DQ164: 1 | DS164: 2 | DT164: 5 | DU164: 8.4 | EK164: 1
A165: 100098868456 | B165: 1 | C165: 1 | D165: 1 | E165: 武相宅建（株） | F165: 0465-83-1062 | J165: 2 | K165: 2019-05-10 | O165: 神奈川県 | P165: 足柄上郡松田町 | Q165: 松田惣領 | R165: ４９５－１ | W165: 小田急線 | X165: 新松田 | Y165: 10 | AJ165: 1 | AL165: 1 | AQ165: 1 | AS165: 3 | AU165: 14200000 | AW165: 331000 | AX165: 101000 | AZ165: 2 | BA165: 141.83 | CB165: 1 | CD165: 1 | CE165: 11 | CG165: 1 | CH165: 60 | CI165: 200 | CJ165: 283.66 | CK165: 9.455333333 | CL165: 9 | CM165: 5 | CN165: 540 | CO165: 85.95757576 | CP165: 4125.963636 | CQ165: 5545.963636 | CR165: 0.09736811047 | CS165: 85.098 | CT165: 2 | CU165: 180 | CV165: 103.66 | CW165: ! | CZ165: 1 | DA165: 2 | DP165: 1 | DQ165: 1 | DR165: 19 | DT165: 3 | DU165: 5.3 | EK165: 1
A166: 100098868497 | B166: 1 | C166: 1 | D166: 1 | E166: （有）イルカハウジング | F166: 045-504-4567 | G166: 嶺井 秀範 | H166: 090-5539-5275 | I166: h-minei@c21iruka.co.jp | J166: 2 | K166: 2019-05-10 | O166: 神奈川県 | P166: 横浜市鶴見区 | Q166: 梶山２丁目 | R166: 2019-04-24 | W166: 東横線 | X166: 大倉山 | AA166: 19 | AC166: 三ツ池公園北門 | AD166: 5 | AG166: 新横浜バス | AH166: 20 | AJ166: 1 | AL166: 1 | AQ166: 1 | AR166: 9 | AS166: 3 | AT166: 1494000 | AU166: 44300000 | AW166: 399000 | AX166: 121000 | AZ166: 2 | BA166: 367.36 | BG166: 2 | BK166: 0 | BT166: 2 | CA166: 3 | CB166: 1 | CD166: 1 | CE166: 1 | CG166: 1 | CH166: 40 | CI166: 80 | CJ166: 293.888 | CK166: 9.796266667 | CL166: 10 | CM166: 5 | CN166: 600 | CO166: 89.0569697 | CP166: 4274.734545 | CQ166: 8704.734545 | CR166: 0.06892800658 | CS166: 146.944 | CT166: 4 | CU166: 360 | CV166: -66.112 | CZ166: 4 | DA166: 2 | DP166: 1 | DR166: 17 | DS166: 2 | DT166: 3 | DU166: 6 | EK166: 1 | GU166: ◆擁壁 検査済証あり
A167: 100098868590 | B167: 1 | C167: 1 | D167: 1 | E167: 武相宅建（株） | F167: 0465-83-1062 | J167: 2 | K167: 2019-05-10 | O167: 神奈川県 | P167: 足柄上郡松田町 | Q167: 松田惣領 | W167: 小田急線 | X167: 新松田 | Y167: 10 | AJ167: 1 | AL167: 1 | AQ167: 1 | AS167: 3 | AU167: 13300000 | AW167: 350000 | AX167: 106000 | AZ167: 2 | BA167: 125.95 | CB167: 1 | CD167: 1 | CE167: 11 | CG167: 1 | CH167: 60 | CI167: 200 | CJ167: 251.9 | CK167: 8.396666667 | CL167: 8 | CM167: 5 | CN167: 480 | CO167: 76.33333333 | CP167: 3664 | CQ167: 4994 | CR167: 0.09611533841 | CS167: 75.57 | CT167: 2 | CU167: 180 | CV167: 71.9 | CW167: ! | CZ167: 1 | DA167: 2 | DP167: 1 | DQ167: 1 | DR167: 13 | DT167: 3 | DU167: 4.5 | EK167: 1
A168: 100098868651 | B168: 1 | C168: 1 | D168: 1 | E168: （株）ドリームプランニング | F168: 046-850-6133 | J168: 2 | K168: 2019-05-10 | L168: 2019-05-11 | O168: 神奈川県 | P168: 横須賀市 | Q168: 大矢部３丁目 | R168: 1943-05-01 | W168: 久里浜線 | X168: 北久里浜 | AA168: 10 | AC168: 大矢部４丁目 | AD168: 10 | AJ168: 1 | AL168: 2 | AQ168: 1 | AS168: 3 | AU168: 17980000 | AW168: 352000 | AX168: 107000 | AZ168: 1 | BA168: 169.15 | CB168: 1 | CD168: 1 | CE168: 1 | CH168: 40 | CI168: 80 | CJ168: 135.32 | CK168: 4.510666667 | CL168: 5 | CM168: 5 | CN168: 300 | CO168: 41.00606061 | CP168: 1968.290909 | CQ168: 3766.290909 | CR168: 0.07965396387 | CS168: 67.66 | CT168: 2 | CU168: 180 | CV168: -44.68 | DA168: 2 | DP168: 1 | DQ168: 1 | DR168: 11 | DT168: 8 | DU168: 6.2 | EK168: 1 | GU168: 売主手数料３％
A169: 100098868652 | B169: 1 | C169: 1 | D169: 1 | E169: （有）ティー・エス企画 | F169: 045-949-6890 | J169: 2 | K169: 2019-05-10 | M169: 2019-08-09 | O169: 神奈川県 | P169: 鎌倉市 | Q169: 浄明寺６丁目 | W169: 横須賀線 | X169: 逗子 | AA169: 15 | AC169: 夕陽台公園 | AD169: 3 | AJ169: 2 | AL169: 2 | AQ169: 4 | AR169: 1 | AU169: 29800000 | AW169: 467000 | AX169: 142000 | AZ169: 1 | BA169: 211.06 | BG169: 2 | BK169: 0 | BT169: 2 | CA169: 3 | CB169: 1 | CD169: 1 | CE169: 1 | CG169: 1 | CH169: 40 | CI169: 80 | CJ169: 168.848 | CK169: 5.628266667 | CL169: 6 | CM169: 5 | CN169: 360 | CO169: 51.16606061 | CP169: 2455.970909 | CQ169: 5435.970909 | CR169: 0.06622551997 | CS169: 84.424 | CT169: 2 | CU169: 180 | CV169: -11.152 | CZ169: 9 | DA169: 2 | DP169: 1 | DQ169: 1 | DR169: 12.8 | DU169: 5.5 | EK169: 1
A170: 100098868693 | B170: 1 | C170: 1 | D170: 1 | E170: （株）マリンズ不動産 | F170: 0465-30-1616 | J170: 2 | K170: 2019-05-10 | O170: 神奈川県 | P170: 小田原市 | Q170: 柳新田 | W170: 小田急線 | X170: 富水 | AJ170: 1 | AL170: 1 | AQ170: 1 | AU170: 19000000 | AW170: 165000 | AX170: 50000 | AZ170: 2 | BA170: 382.52 | BG170: 2 | CJ170: 382.52 | CK170: 12.75066667 | CL170: 13 | CM170: 5 | CN170: 780 | CO170: 115.9151515 | CP170: 5563.927273 | CQ170: 7463.927273 | CR170: 0.104502626 | CS170: 229.512 | CT170: 7 | CU170: 630 | CV170: -247.48
A171: 100098868707 | B171: 1 | C171: 1 | D171: 1 | E171: 武相宅建（株） | F171: 0465-83-1062 | J171: 2 | K171: 2019-05-10 | O171: 神奈川県 | P171: 足柄上郡開成町 | Q171: 吉田島 | W171: 小田急線 | X171: 新松田 | Y171: 19 | AA171: 9 | AD171: 5 | AJ171: 1 | AL171: 2 | AQ171: 4 | AR171: 1 | AU171: 14200000 | AW171: 379000 | AX171: 115000 | AZ171: 1 | BA171: 124.18 | CB171: 1 | CD171: 1 | CE171: 12 | CG171: 1 | CH171: 60 | CI171: 200 | CJ171: 248.36 | CK171: 8.278666667 | CL171: 8 | CM171: 5 | CN171: 480 | CO171: 75.26060606 | CP171: 3612.509091 | CQ171: 5032.509091 | CR171: 0.09537985751 | CS171: 74.508 | CT171: 2 | CU171: 180 | CV171: 68.36 | CW171: ! | CZ171: 1 | DA171: 2 | DP171: 1 | DQ171: 1 | DR171: 9.9 | DT171: 7 | DU171: 5 | EK171: 1
A172: 100098868888 | B172: 1 | C172: 1 | D172: 1 | E172: （有）カワナミ | F172: 046-235-0777 | G172: 川浪 | H172: 046-235-0777 | J172: 2 | K172: 2019-05-10 | O172: 神奈川県 | P172: 相模原市南区 | Q172: 御園１丁目 | R172: １８－４８ | W172: 小田急線 | X172: 相模大野 | Y172: 27 | AJ172: 2 | AL172: 2 | AQ172: 4 | AR172: 1 | AU172: 30800000 | AW172: 716000 | AX172: 217000 | AZ172: 1 | BA172: 142.35 | BG172: 2 | BK172: 0 | CB172: 1 | CC172: 1 | CD172: 1 | CE172: 1 | CG172: 1 | CH172: 50 | CI172: 100 | CJ172: 142.35 | CK172: 4.745 | CL172: 5 | CM172: 5 | CN172: 300 | CO172: 43.13636364 | CP172: 2070.545455 | CQ172: 5150.545455 | CR172: 0.05824625812 | CS172: 71.175 | CT172: 2 | CU172: 180 | CV172: -37.65 | CZ172: 1 | DA172: 2 | DP172: 1 | DQ172: 1 | DR172: 10.1 | DS172: 2 | DT172: 8 | DU172: 5 | EK172: 1
A173: 100098868978 | B173: 1 | C173: 1 | D173: 1 | E173: （株）マーケットトラスト | F173: 046-200-0838 | J173: 2 | K173: 2019-05-10 | O173: 神奈川県 | P173: 大和市 | Q173: 上草柳 | U173: １２３－２、１２３－６ | W173: 相鉄線 | X173: 相模大塚 | Y173: 3 | AJ173: 1 | AL173: 4 | AM173: 201906 | AN173: 3 | AQ173: 1 | AS173: 3 | AU173: 29800000 | AW173: 702000 | AX173: 213000 | AZ173: 2 | BA173: 140.34 | CB173: 1 | CD173: 1 | CE173: 12 | CG173: 1 | CH173: 60 | CI173: 160 | CJ173: 224.544 | CK173: 7.4848 | CL173: 7 | CM173: 5 | CN173: 420 | CO173: 68.04363636 | CP173: 3266.094545 | CQ173: 6246.094545 | CR173: 0.0672420177 | CS173: 84.204 | CT173: 2 | CU173: 180 | CV173: 44.544 | CW173: ! | DA173: 2 | DQ173: 1 | DR173: 5.6 | DT173: 5 | DU173: 4 | GU173: Ｎｏ．４／全４区画 | GV173: 分筆前につき敷地面積に多少の増減が生じる可能性がございます。
A174: 100098869027 | B174: 1 | C174: 1 | D174: 1 | E174: （株）家衛門 | F174: 03-6423-2191 | G174: 鈴木 | H174: 7055906692 | J174: 2 | K174: 2019-05-10 | O174: 神奈川県 | P174: 藤沢市 | Q174: 羽鳥５丁目 | W174: 江ノ島線 | X174: 藤沢本町 | Y174: 18 | Z174: 1440 | AJ174: 1 | AL174: 1 | AQ174: 1 | AS174: 3 | AU174: 26800000 | AW174: 680000 | AX174: 206000 | AZ174: 1 | BA174: 130.29 | BG174: 2 | BK174: 0 | BT174: 2 | CB174: 1 | CC174: 1 | CD174: 1 | CE174: 1 | CG174: 1 | CH174: 50 | CI174: 80 | CJ174: 104.232 | CK174: 3.4744 | CL174: 3 | CM174: 5 | CN174: 180 | CO174: 31.58545455 | CP174: 1516.101818 | CQ174: 4196.101818 | CR174: 0.04289695718 | CS174: 65.145 | CT174: 2 | CU174: 180 | CV174: -75.768 | CZ174: 1 | DA174: 2 | DP174: 1 | DQ174: 1 | DR174: 8.9 | DT174: 3 | DU174: 4 | EK174: 1
A175: 100098869058 | B175: 1 | C175: 1 | D175: 1 | E175: 武相宅建（株） | F175: 0465-83-1062 | J175: 2 | K175: 2019-05-10 | L175: 2019-05-13 | O175: 神奈川県 | P175: 足柄上郡開成町 | Q175: 延沢 | R175: １０３７－２２ | W175: 小田急線 | X175: 新松田 | AA175: 8 | AD175: 4 | AJ175: 1 | AL175: 1 | AQ175: 5 | AR175: 1 | AU175: 12000000 | AW175: 222000 | AX175: 67000 | AZ175: 1 | BA175: 179.38 | CB175: 1 | CD175: 1 | CE175: 11 | CG175: 1 | CH175: 50 | CI175: 150 | CJ175: 269.07 | CK175: 8.969 | CL175: 9 | CM175: 5 | CN175: 540 | CO175: 81.53636364 | CP175: 3913.745455 | CQ175: 5113.745455 | CR175: 0.1055977472 | CS175: 89.69 | CT175: 2 | CU175: 180 | CV175: 89.07 | CW175: ! | CZ175: 1 | DA175: 2 | DP175: 1 | DQ175: 1 | DR175: 13.4 | DT175: 7 | DU175: 4 | EK175: 1
A176: 100098869133 | B176: 1 | C176: 1 | D176: 1 | E176: （株）アサヒ地建 | F176: 046-220-4422 | G176: アイザワ | H176: 462204422 | I176: aizawa@asahichiken.com | J176: 2 | K176: 2019-05-10 | O176: 神奈川県 | P176: 相模原市中央区 | Q176: 清新５丁目 | R176: 13 | W176: 相模線 | X176: 南橋本 | Y176: 7 | AJ176: 1 | AL176: 1 | AQ176: 4 | AR176: 1 | AU176: 19600000 | AW176: 461000 | AX176: 140000 | AZ176: 1 | BA176: 140.81 | BG176: 2 | BK176: 0 | CB176: 1 | CD176: 1 | CE176: 12 | CG176: 1 | CH176: 60 | CI176: 200 | CJ176: 281.62 | CK176: 9.387333333 | CL176: 9 | CM176: 5 | CN176: 540 | CO176: 85.33939394 | CP176: 4096.290909 | CQ176: 6056.290909 | CR176: 0.0891634844 | CS176: 84.486 | CT176: 2 | CU176: 180 | CV176: 101.62 | CW176: ! | CZ176: 1 | DA176: 2 | DP176: 1 | DQ176: 1 | DR176: 2 | DT176: 5 | DU176: 5.9 | EK176: 1
A177: 100098869554 | B177: 1 | C177: 1 | D177: 1 | E177: （株）秋山不動産 | F177: 044-788-6655 | J177: 2 | K177: 2019-05-10 | O177: 神奈川県 | P177: 横須賀市 | Q177: 岩戸１丁目 | W177: 久里浜線 | X177: 北久里浜 | AD177: 1 | AL177: 2 | AQ177: 2 | AR177: 4 | AU177: 14000000 | AW177: 5000 | AX177: 2000 | AZ177: 1 | BA177: 10912.02 | CB177: 4 | CD177: 1 | CE177: 1 | CH177: 40 | CI177: 80 | CJ177: 8729.616 | CK177: 290.9872 | CL177: 291 | CM177: 5 | CN177: 17460 | CO177: 2645.338182 | CP177: 126976.2327 | CQ177: 128376.2327 | CR177: 0.1360064837 | CS177: 4364.808 | CT177: 145 | CU177: 13050 | CV177: -4320.384 | CZ177: 5 | DQ177: 1
A178: 100098869566 | B178: 1 | C178: 1 | D178: 1 | E178: 武相宅建（株） | F178: 0465-83-1062 | J178: 2 | K178: 2019-05-10 | O178: 神奈川県 | P178: 足柄上郡大井町 | Q178: 金子 | W178: 御殿場線 | X178: 相模金子 | Y178: 2 | AJ178: 1 | AL178: 1 | AQ178: 1 | AS178: 3 | AU178: 12800000 | AW178: 306000 | AX178: 93000 | AZ178: 2 | BA178: 138.3 | BG178: 1 | CB178: 1 | CD178: 1 | CE178: 2 | CG178: 1 | CH178: 60 | CI178: 200 | CJ178: 276.6 | CK178: 9.22 | CL178: 9 | CM178: 5 | CN178: 540 | CO178: 83.81818182 | CP178: 4023.272727 | CQ178: 5303.272727 | CR178: 0.1018239166 | CS178: 82.98 | CT178: 2 | CU178: 180 | CV178: 96.6 | CW178: ! | CZ178: 1 | DA178: 2 | DP178: 1 | DQ178: 2 | DR178: 8 | DT178: 5 | DU178: 4 | EK178: 1
A179: 100098869592 | B179: 1 | C179: 1 | D179: 1 | E179: リフティングパートナー（株） | F179: 0463-79-5550 | I179: l-partner@jf6.so-net.ne.jp | J179: 2 | K179: 2019-05-10 | L179: 2019-05-10 | O179: 神奈川県 | P179: 厚木市 | Q179: 温水西１丁目 | W179: 小田急線 | X179: 本厚木 | AA179: 12 | AB179: 神奈川中央交通 | AC179: スポーツセンター入口 | AD179: 2 | AJ179: 1 | AL179: 1 | AQ179: 1 | AU179: 18800000 | AW179: 449000 | AX179: 136000 | AZ179: 2 | BA179: 138.6 | BG179: 2 | CB179: 1 | CD179: 1 | CE179: 1 | CG179: 1 | CH179: 50 | CI179: 100 | CJ179: 138.6 | CK179: 4.62 | CL179: 5 | CM179: 5 | CN179: 300 | CO179: 42 | CP179: 2016 | CQ179: 3896 | CR179: 0.07700205339 | CS179: 69.3 | CT179: 2 | CU179: 180 | CV179: -41.4 | CZ179: 1 | DP179: 1 | DQ179: 1 | DR179: 6.7 | DS179: 2 | DT179: 7 | DU179: 6 | EK179: 1
A180: 100098869723 | B180: 1 | C180: 1 | D180: 1 | E180: 武相宅建（株） | F180: 0465-83-1062 | J180: 2 | K180: 2019-05-10 | O180: 神奈川県 | P180: 足柄上郡大井町 | Q180: 金子 | R180: ２２１－１３ | W180: 御殿場線 | X180: 相模金子 | Y180: 2 | AJ180: 1 | AL180: 1 | AQ180: 1 | AS180: 3 | AU180: 11500000 | AW180: 270000 | AX180: 82000 | AZ180: 2 | BA180: 141.23 | BG180: 1 | CB180: 1 | CD180: 1 | CE180: 2 | CG180: 1 | CH180: 60 | CI180: 200 | CJ180: 282.46 | CK180: 9.415333333 | CL180: 9 | CM180: 5 | CN180: 540 | CO180: 85.59393939 | CP180: 4108.509091 | CQ180: 5258.509091 | CR180: 0.1026907039 | CS180: 84.738 | CT180: 2 | CU180: 180 | CV180: 102.46 | CW180: ! | CZ180: 1 | DA180: 2 | DP180: 1 | DR180: 8 | DT180: 5 | DU180: 4 | EK180: 1
A181: 100098869817 | B181: 1 | C181: 1 | D181: 1 | E181: 横浜住宅販売（株） | F181: 045-806-2666 | J181: 2 | K181: 2019-05-10 | O181: 神奈川県 | P181: 横浜市戸塚区 | Q181: 矢部町 | W181: 横浜ブルー | X181: 踊場 | Y181: 5 | AJ181: 1 | AL181: 2 | AQ181: 1 | AR181: 2 | AS181: 3 | AU181: 43800000 | AW181: 804000 | AX181: 243000 | BA181: 180.26 | CB181: 1 | CD181: 1 | CE181: 1 | CH181: 50 | CI181: 80 | CJ181: 144.208 | CK181: 4.806933333 | CL181: 5 | CM181: 5 | CN181: 300 | CO181: 43.69939394 | CP181: 2097.570909 | CQ181: 6477.570909 | CR181: 0.04631365742 | CS181: 90.13 | CT181: 3 | CU181: 270 | CV181: -125.792 | GQ181: 矢部小学校 | GS181: 3 | GT181: 1 | GV181: 司法書士は弊社指定となります。
A182: 100098870101 | B182: 1 | C182: 1 | D182: 1 | E182: 横浜住宅販売（株） | F182: 045-806-2666 | J182: 2 | K182: 2019-05-10 | O182: 神奈川県 | P182: 横浜市保土ケ谷区 | Q182: 権太坂１丁目 | W182: 横須賀線 | X182: 東戸塚 | AA182: 12 | AC182: 権太坂東 | AD182: 2 | AJ182: 1 | AL182: 2 | AQ182: 1 | AR182: 2 | AS182: 3 | AU182: 32300000 | AW182: 693000 | AX182: 210000 | BA182: 154.13 | CB182: 1 | CD182: 1 | CE182: 1 | CH182: 50 | CI182: 80 | CJ182: 123.304 | CK182: 4.110133333 | CL182: 4 | CM182: 5 | CN182: 240 | CO182: 37.36484848 | CP182: 1793.512727 | CQ182: 5023.512727 | CR182: 0.04777533432 | CS182: 77.065 | CT182: 2 | CU182: 180 | CV182: -56.696 | GQ182: 権太坂小学校 | GS182: 7 | GT182: 1 | GU182: 司法書士は弊社指定となります。
A183: 100098870526 | B183: 1 | C183: 1 | D183: 1 | E183: 穂波不動産（株） | F183: 046-245-0406 | J183: 3 | K183: 2019-05-10 | O183: 神奈川県 | P183: 厚木市 | Q183: 山際 | R183: ７６５－５ | W183: 小田急線 | X183: 本厚木 | AA183: 23 | AD183: 5 | AJ183: 2 | AL183: 1 | AQ183: 4 | AR183: 1 | AU183: 10800000 | AW183: 217000 | AX183: 66000 | AZ183: 1 | BA183: 165 | CB183: 1 | CD183: 1 | CE183: 11 | CH183: 60 | CI183: 200 | CJ183: 330 | CK183: 11 | CL183: 11 | CM183: 5 | CN183: 660 | CO183: 100 | CP183: 4800 | CQ183: 5880 | CR183: 0.112244898 | CS183: 99 | CT183: 3 | CU183: 270 | CV183: 60 | CW183: ! | CZ183: 1 | DA183: 2 | DP183: 1 | DQ183: 1 | DR183: 3.5 | DT183: 3 | DU183: 4
A184: 100098871125 | B184: 1 | C184: 1 | D184: 1 | E184: （株）アバンテ | F184: 045-432-5791 | G184: 柴田 | J184: 2 | K184: 2019-05-10 | O184: 神奈川県 | P184: 横浜市港北区 | Q184: 篠原東３丁目 | W184: 東横線 | X184: 妙蓮寺 | Y184: 13 | AJ184: 2 | AL184: 2 | AQ184: 4 | AR184: 1 | AU184: 39800000 | AW184: 779000 | AX184: 236000 | AZ184: 1 | BA184: 168.92 | CB184: 1 | CD184: 1 | CE184: 1 | CG184: 1 | CH184: 40 | CI184: 80 | CJ184: 135.136 | CK184: 4.504533333 | CL184: 5 | CM184: 5 | CN184: 300 | CO184: 40.95030303 | CP184: 1965.614545 | CQ184: 5945.614545 | CR184: 0.05045735772 | CS184: 67.568 | CT184: 2 | CU184: 180 | CV184: -44.864 | DP184: 1 | DQ184: 1 | DT184: 7 | DU184: 4 | EK184: 1
A185: 100098871297 | B185: 1 | C185: 1 | D185: 1 | E185: 武相宅建（株） | F185: 0465-83-1062 | J185: 2 | K185: 2019-05-10 | O185: 神奈川県 | P185: 小田原市 | Q185: 寿町５丁目 | R185: 2019-09-16 | W185: 東海道線 | X185: 小田原 | AA185: 11 | AD185: 4 | AJ185: 1 | AL185: 1 | AQ185: 1 | AS185: 3 | AU185: 13990000 | AW185: 250000 | AX185: 76000 | AZ185: 2 | BA185: 185.04 | CB185: 1 | CD185: 1 | CE185: 7 | CG185: 1 | CH185: 60 | CI185: 200 | CJ185: 370.08 | CK185: 12.336 | CL185: 12 | CM185: 5 | CN185: 720 | CO185: 112.1454545 | CP185: 5382.981818 | CQ185: 6781.981818 | CR185: 0.1061636582 | CS185: 111.024 | CT185: 3 | CU185: 270 | CV185: 100.08 | CW185: ! | CZ185: 1 | DA185: 2 | DP185: 1 | DQ185: 1 | DR185: 5 | DT185: 1 | DU185: 4 | EK185: 1
A186: 100098871670 | B186: 1 | C186: 1 | D186: 1 | E186: （株）ゲットハウス | F186: 045-540-8484 | J186: 2 | K186: 2019-05-10 | O186: 神奈川県 | P186: 横浜市戸塚区 | Q186: 品濃町 | W186: 横須賀線 | X186: 東戸塚 | Y186: 14 | AJ186: 1 | AL186: 2 | AQ186: 1 | AU186: 49800000 | AW186: 1297000 | AX186: 393000 | BA186: 127 | CB186: 1 | CD186: 1 | CE186: 1 | CG186: 1 | CH186: 50 | CI186: 80 | CJ186: 101.6 | CK186: 3.386666667 | CL186: 3 | CM186: 5 | CN186: 180 | CO186: 30.78787879 | CP186: 1477.818182 | CQ186: 6457.818182 | CR186: 0.02787319106 | CS186: 63.5 | CT186: 2 | CU186: 180 | CV186: -78.4 | DA186: 2 | DP186: 2 | DQ186: 1 | DT186: 4 | DU186: 6.5 | DV186: 1 | DY186: 2 | DZ186: 4.5 | GU186: 陽当り良好・閑静な住宅地・更地
A187: 100098871705 | B187: 1 | C187: 1 | D187: 1 | E187: （株）ゲットハウス | F187: 045-540-8484 | J187: 2 | K187: 2019-05-10 | O187: 神奈川県 | P187: 横浜市戸塚区 | Q187: 品濃町 | W187: 横須賀線 | X187: 東戸塚 | Y187: 14 | AJ187: 1 | AL187: 2 | AQ187: 1 | AU187: 48500000 | AW187: 1248000 | AX187: 378000 | BA187: 128.5 | CB187: 1 | CD187: 1 | CE187: 1 | CG187: 1 | CH187: 50 | CI187: 80 | CJ187: 102.8 | CK187: 3.426666667 | CL187: 3 | CM187: 5 | CN187: 180 | CO187: 31.15151515 | CP187: 1495.272727 | CQ187: 6345.272727 | CR187: 0.028367575 | CS187: 64.25 | CT187: 2 | CU187: 180 | CV187: -77.2 | DA187: 2 | DP187: 1 | DQ187: 1 | DT187: 2 | DU187: 4.5 | GU187: 陽当り良好・閑静な住宅地・更地
A188: 100098871854 | B188: 1 | C188: 1 | D188: 1 | E188: 武相宅建（株） | F188: 0465-83-1062 | J188: 2 | K188: 2019-05-10 | O188: 神奈川県 | P188: 小田原市 | Q188: 曽比 | W188: 小田急線 | X188: 栢山 | Y188: 3 | AJ188: 1 | AL188: 2 | AQ188: 4 | AR188: 1 | AU188: 14400000 | AW188: 351000 | AX188: 107000 | BA188: 135.81 | CB188: 1 | CD188: 1 | CE188: 12 | CG188: 1 | CH188: 60 | CI188: 200 | CJ188: 271.62 | CK188: 9.054 | CL188: 9 | CM188: 5 | CN188: 540 | CO188: 82.30909091 | CP188: 3950.836364 | CQ188: 5390.836364 | CR188: 0.1001699854 | CS188: 81.486 | CT188: 2 | CU188: 180 | CV188: 91.62 | CW188: ! | CZ188: 1 | DA188: 2 | DP188: 1 | DR188: 9.6 | DT188: 7 | DU188: 4
A189: 100098871878 | B189: 1 | C189: 1 | D189: 1 | E189: （株）富士建設 | F189: 0467-84-5851 | J189: 2 | K189: 2019-05-10 | O189: 神奈川県 | P189: 藤沢市 | Q189: 高倉 | W189: 江ノ島線 | X189: 長後 | Y189: 8 | AJ189: 1 | AL189: 2 | AQ189: 4 | AR189: 1 | AU189: 29100000 | AW189: 570000 | AX189: 173000 | BA189: 169 | CB189: 1 | CD189: 1 | CE189: 1 | CH189: 50 | CI189: 80 | CJ189: 135.2 | CK189: 4.506666667 | CL189: 5 | CM189: 5 | CN189: 300 | CO189: 40.96969697 | CP189: 1966.545455 | CQ189: 4876.545455 | CR189: 0.06151895902 | CS189: 84.5 | CT189: 2 | CU189: 180 | CV189: -44.8 | DA189: 2 | DP189: 1 | DQ189: 1 | DR189: 4.8 | DT189: 3 | DU189: 4
A190: 100098871883 | B190: 1 | C190: 1 | D190: 1 | E190: （株）ゲットハウス | F190: 045-540-8484 | J190: 2 | K190: 2019-05-10 | O190: 神奈川県 | P190: 横浜市戸塚区 | Q190: 矢部町 | W190: 横浜ブルー | X190: 踊場 | Y190: 5 | AJ190: 1 | AL190: 2 | AQ190: 1 | AU190: 38800000 | AW190: 791000 | AX190: 240000 | BA190: 162.17 | CB190: 1 | CD190: 1 | CE190: 1 | CG190: 1 | CH190: 50 | CI190: 80 | CJ190: 129.736 | CK190: 4.324533333 | CL190: 4 | CM190: 5 | CN190: 240 | CO190: 39.31393939 | CP190: 1887.069091 | CQ190: 5767.069091 | CR190: 0.04161559298 | CS190: 81.085 | CT190: 2 | CU190: 180 | CV190: -50.264 | DA190: 2 | DP190: 1 | DQ190: 1 | DT190: 4 | DU190: 6.4 | GU190: 整形地・小中学校近く通学安心
A191: 100098871905 | B191: 1 | C191: 1 | D191: 1 | E191: （株）富士建設 | F191: 0467-84-5851 | J191: 2 | K191: 2019-05-10 | O191: 神奈川県 | P191: 平塚市 | Q191: 南原２丁目 | W191: 東海道線 | X191: 平塚 | AA191: 11 | AC191: 南原 | AD191: 1 | AJ191: 1 | AL191: 2 | AQ191: 1 | AS191: 3 | AU191: 30800000 | AW191: 354000 | AX191: 107000 | BA191: 288.24 | CB191: 1 | CD191: 1 | CE191: 11 | CH191: 60 | CI191: 200 | CJ191: 576.48 | CK191: 19.216 | CL191: 19 | CM191: 5 | CN191: 1140 | CO191: 174.6909091 | CP191: 8385.163636 | CQ191: 11465.16364 | CR191: 0.09943163797 | CS191: 172.944 | CT191: 5 | CU191: 450 | CV191: 126.48 | CW191: ! | DA191: 2 | DP191: 1 | DQ191: 1 | DR191: 4.1 | DU191: 6.4
A192: 100098871942 | B192: 1 | C192: 1 | D192: 1 | E192: 武相宅建（株） | F192: 0465-83-1062 | J192: 2 | K192: 2019-05-10 | O192: 神奈川県 | P192: 小田原市 | Q192: 下大井 | W192: 御殿場線 | X192: 上大井 | Y192: 20 | AJ192: 2 | AL192: 1 | AQ192: 4 | AU192: 24000000 | AW192: 200000 | AX192: 61000 | AZ192: 2 | BA192: 396.77 | CB192: 5 | CD192: 2 | CE192: 14 | CG192: 1 | CH192: 30 | CI192: 50 | CJ192: 198.385 | CK192: 6.612833333 | CL192: 7 | CM192: 5 | CN192: 420 | CO192: 60.11666667 | CP192: 2885.6 | CQ192: 5285.6 | CR192: 0.07946117754 | CS192: 119.031 | CT192: 3 | CU192: 270 | CV192: -71.615 | CZ192: 1 | DA192: 2 | DP192: 1 | DQ192: 1 | DR192: 15.4 | DT192: 1 | DU192: 7.5 | EK192: 1
A193: 100098871981 | B193: 1 | C193: 1 | D193: 1 | E193: 三井林業（株） | F193: 03-3202-5339 | G193: 池田 | I193: mitsuiringyo@yahoo.co.jp | J193: 2 | K193: 2019-05-10 | O193: 神奈川県 | P193: 藤沢市 | Q193: 葛原 | R193: １７０７－２ | W193: 江ノ島線 | X193: 長後 | Y193: 53 | Z193: 4200 | AL193: 1 | AQ193: 1 | AU193: 22000000 | AW193: 74000 | AX193: 23000 | AZ193: 2 | BA193: 992 | CJ193: 992 | CK193: 33.06666667 | CL193: 33 | CM193: 5 | CN193: 1980 | CO193: 300.6060606 | CP193: 14429.09091 | CQ193: 16629.09091 | CR193: 0.1190684452 | CS193: 595.2 | CT193: 19 | CU193: 1710 | CV193: -718
A194: 100098871990 | B194: 1 | C194: 1 | D194: 1 | E194: 三井林業（株） | F194: 03-3202-5339 | G194: 池田 | I194: mitsuiringyo@yahoo.co.jp | J194: 2 | K194: 2019-05-10 | O194: 神奈川県 | P194: 横浜市旭区 | Q194: 桐が作 | R194: 1893 | W194: 相鉄線 | X194: 二俣川 | Y194: 23 | Z194: 1800 | AJ194: 1 | AL194: 1 | AQ194: 1 | AR194: 9 | AU194: 40000000 | AW194: 82000 | AX194: 25000 | AZ194: 2 | BA194: 1613 | CB194: 5 | CD194: 2 | CJ194: 1613 | CK194: 53.76666667 | CL194: 54 | CM194: 5 | CN194: 3240 | CO194: 488.7878788 | CP194: 23461.81818 | CQ194: 27461.81818 | CR194: 0.1179819915 | CS194: 967.8 | CT194: 32 | CU194: 2880 | CV194: -1267
A195: 100098872001 | B195: 1 | C195: 1 | D195: 1 | E195: 三井林業（株） | F195: 03-3202-5339 | G195: 池田 | I195: mitsuiringyo@yahoo.co.jp | J195: 2 | K195: 2019-05-10 | O195: 神奈川県 | P195: 綾瀬市 | Q195: 落合北３丁目 | R195: １１５３－２ | W195: 小田急線 | X195: 海老名 | AF195: 6.6 | AJ195: 1 | AL195: 1 | AQ195: 1 | AR195: 9 | AU195: 240000000 | AW195: 166000 | AX195: 51000 | AZ195: 2 | BA195: 4791 | CB195: 5 | CD195: 2 | CJ195: =IF(ISBLANK(CI195),100,CI195)/100*BA195 -> 4791 | CK195: =CJ195/30 -> 159.7 | CL195: =ROUND(CK195,0) -> 160 | CM195: 5 | CN195: =CM195*12*CL195 -> 9600 | CO195: =CJ195/3.3 -> 1451.818182 | CP195: =CO195*40*1.2 -> 69687.27273 | CQ195: =CP195+(AU195/10000) -> 93687.27273 | CR195: =CN195/CQ195 -> 0.1024685608 | CS195: =IF(ISBLANK(CH195),60,CH195)/100*BA195 -> 2874.6 | CT195: =ROUNDDOWN((CS195/30),0) -> 95 | CU195: =CT195*30*3 -> 8550 | CV195: =CJ195-CU195 -> -3759 | CW195: =IF(CV195>0, "!","") -> 
A196: 100098872010 | B196: 1 | C196: 1 | D196: 1 | E196: 浜住研（株） | F196: 045-321-1122 | G196: 関 | J196: 2 | K196: 2019-05-10 | O196: 神奈川県 | P196: 横浜市中区 | Q196: 本牧町１丁目 | W196: 京浜東北線 | X196: 山手 | Y196: 18 | AJ196: 1 | AL196: 2 | AQ196: 1 | AR196: 4 | AS196: 3 | AU196: 190000000 | AW196: 1806000 | AX196: 547000 | BA196: 347.84 | CB196: 1 | CD196: 1 | CE196: 12 | CH196: 60 | CI196: 200 | CJ196: 695.68 | CK196: 23.18933333 | CL196: 23 | CM196: 5 | CN196: 1380 | CO196: 210.8121212 | CP196: 10118.98182 | CQ196: 29118.98182 | CR196: 0.04739176694 | CS196: 208.704 | CT196: 6 | CU196: 540 | CV196: 155.68 | CW196: !
A197: 100098872082 | B197: 1 | C197: 1 | D197: 1 | E197: ジュ（株） | F197: 03-3376-2131 | I197: jutokyo1@gmail.com | J197: 2 | K197: 2019-05-10 | L197: 2019-05-10 | O197: 神奈川県 | P197: 川崎市多摩区 | Q197: 南生田６丁目 | R197: 2019-02-22 | W197: 小田急線 | X197: 生田 | Y197: 20 | AJ197: 1 | AL197: 1 | AQ197: 5 | AR197: 1 | AU197: 29800000 | AW197: 498000 | AX197: 151000 | AZ197: 1 | BA197: 197.93 | BG197: 2 | CB197: 1 | CD197: 1 | CE197: 1 | CG197: 1 | CH197: 50 | CI197: 100 | CJ197: 197.93 | CK197: 6.597666667 | CL197: 7 | CM197: 5 | CN197: 420 | CO197: 59.97878788 | CP197: 2878.981818 | CQ197: 5858.981818 | CR197: 0.07168481027 | CS197: 98.965 | CT197: 3 | CU197: 270 | CV197: -72.07 | CZ197: 4 | DP197: 1 | DQ197: 1 | DR197: 13 | DT197: 5 | DU197: 4 | EK197: 1
A198: 100098872227 | B198: 1 | C198: 1 | D198: 1 | E198: 住友不動産販売（株） 横浜営業センター | F198: 045-319-3601 | G198: 小川侑宏 | H198: 045-319-3601 | J198: 2 | K198: 2019-05-10 | O198: 神奈川県 | P198: 横浜市保土ケ谷区 | Q198: 初音ケ丘 | W198: 横須賀線 | X198: 保土ヶ谷 | AA198: 10 | AC198: 花見台 | AD198: 3 | AE198: 240 | AJ198: 2 | AL198: 2 | AQ198: 3 | AR198: 1 | AU198: 22800000 | AW198: 419000 | AX198: 127000 | AZ198: 1 | BA198: 179.89 | CA198: 3 | CB198: 1 | CC198: 1 | CD198: 1 | CE198: 1 | CH198: 50 | CI198: 100 | CJ198: 179.89 | CK198: 5.996333333 | CL198: 6 | CM198: 5 | CN198: 360 | CO198: 54.51212121 | CP198: 2616.581818 | CQ198: 4896.581818 | CR198: 0.0735206749 | CS198: 89.945 | CT198: 2 | CU198: 180 | CV198: -0.11 | CZ198: 2 | DA198: 2 | DP198: 1 | DQ198: 1 | DR198: 16 | DS198: 2 | DT198: 4 | DU198: 4.6 | DZ198: 0 | EE198: 0 | EJ198: 0 | EK198: 1
A199: 100098872266 | B199: 1 | C199: 1 | D199: 1 | E199: （有）宝島 | F199: 042-724-5552 | J199: 2 | K199: 2019-05-10 | O199: 神奈川県 | P199: 相模原市中央区 | Q199: 中央５丁目 | R199: 4952-12-01 | W199: 横浜線 | X199: 相模原 | Y199: 13 | AJ199: 1 | AL199: 2 | AQ199: 3 | AR199: 1 | AU199: 105000000 | AW199: 821000 | AX199: 249000 | AZ199: 2 | BA199: 423 | BG199: 2 | CB199: 1 | CC199: 1 | CD199: 1 | CE199: 12 | CH199: 60 | CI199: 200 | CJ199: 846 | CK199: 28.2 | CL199: 28 | CM199: 5 | CN199: 1680 | CO199: 256.3636364 | CP199: 12305.45455 | CQ199: 22805.45455 | CR199: 0.07366658694 | CS199: 253.8 | CT199: 8 | CU199: 720 | CV199: 126 | CW199: ! | CZ199: 1 | DA199: 2 | DP199: 2 | DQ199: 1 | EK199: 1
A200: 100098872287 | B200: 1 | C200: 1 | D200: 1 | E200: 住友不動産販売（株） 相模大野営業センター | F200: 042-766-1571 | G200: 谷圭太 | H200: 042-766-1571 | J200: 2 | K200: 2019-05-10 | O200: 神奈川県 | P200: 座間市 | Q200: 立野台３丁目 | W200: 小田急線 | X200: 座間 | Y200: 18 | Z200: 1440 | AJ200: 2 | AL200: 2 | AQ200: 3 | AR200: 1 | AU200: 25800000 | AW200: 422000 | AX200: 128000 | AZ200: 1 | BA200: 202.13 | BG200: 2 | BT200: 2 | CA200: 3 | CB200: 1 | CC200: 1 | CD200: 1 | CE200: 1 | CG200: 1 | CH200: 50 | CI200: 100 | CJ200: 202.13 | CK200: 6.737666667 | CL200: 7 | CM200: 5 | CN200: 420 | CO200: 61.25151515 | CP200: 2940.072727 | CQ200: 5520.072727 | CR200: 0.07608595407 | CS200: 101.065 | CT200: 3 | CU200: 270 | CV200: -67.87 | CZ200: 1 | DA200: 2 | DP200: 2 | DQ200: 1 | DR200: 6.3 | DS200: 2 | DT200: 5 | DU200: 6 | DV200: 1 | DW200: 15.6 | DX200: 2 | DY200: 4 | DZ200: 6 | EE200: 0 | EJ200: 0 | EK200: 1 | GQ200: 中原小学校 | GR200: 350 | GS200: 5 | GT200: 1
... 301 more rows
